Organisation Name,Effective Date,Purch Date,Service Area,Expense Area,Beneficiary,Net amount,      Tax,     Gross,Long Text,MCC Description
Bukcinghamshire Council,30.09.2023,30.09.2023,"Planning, Growth & Sustainability",Housing & Homelessness & Regulatory PGS,TESCO STORES 2041,8,0,8,"Courses, Conference and Seminar Fees",Grocery stores
Bukcinghamshire Council,30.09.2023,30.09.2023,Children's Services,Education & Childrens Services - CS Dir,CANVA* I03924-25865612,99.99,0,99.99,Educational Equipment,Photographic studios
Bukcinghamshire Council,30.09.2023,30.09.2023,Children's Services,Education & Childrens Services - CS Dir,AMAZON.CO.UK,23.98,0,23.98,Support for Foster Carers,Direct sales companies
Bukcinghamshire Council,30.09.2023,30.09.2023,"Planning, Growth & Sustainability",Housing & Homelessness & Regulatory PGS,POST OFFICE COUNTER,7.5,0,7.5,General Postage,Postal services
Bukcinghamshire Council,30.09.2023,30.09.2023,"Planning, Growth & Sustainability",AH&R - PGS Dir,AMZNMKTPLACE,15.49,0,15.49,General Postage,Miscellaneous retail
Bukcinghamshire Council,30.09.2023,30.09.2023,Deputy Chief Executive,Leader - DCE,FACEBK S4MHUTFPN2,155.84,0,155.84,Advertising,Advertising services
Bukcinghamshire Council,30.09.2023,30.09.2023,"Planning, Growth & Sustainability",Planning & Regeneration - PGS,AMAZON PRIME,0.49,0,0.49,Stationery & Office Supplies,Continuous subscriptions
Bukcinghamshire Council,30.09.2023,30.09.2023,"Planning, Growth & Sustainability",Planning & Regeneration - PGS,AMAZON PRIME,-0.49,0,-0.49,Stationery & Office Supplies,Continuous subscriptions
Bukcinghamshire Council,30.09.2023,30.09.2023,Resources,AH&R - Res Dir,FACEBK YF9ZVRTG82,69.56,0,69.56,Permanent Recruitment Costs,Advertising services
Bukcinghamshire Council,30.09.2023,30.09.2023,Resources,AH&R - Res Dir,FACEBK *LM6F8SX742,65.83,0,65.83,Permanent Recruitment Costs,Advertising services
Bukcinghamshire Council,30.09.2023,30.09.2023,Children's Services,Education & Childrens Services - CS Dir,ZETTLE_*99 - WENZELS T,3.3,0,3.3,Subsistence,Restaurants
Bukcinghamshire Council,30.09.2023,29.09.2023,Deputy Chief Executive,AH&R- DCE Dir,PAYPAL,304,0,304,Awaiting Coding,Electronics shops
Bukcinghamshire Council,30.09.2023,29.09.2023,Children's Services,Education & Childrens Services - CS Dir,SUMUP  *CABS4U,80,0,80,Sec 20/31: Transport,Taxicabs & limousines
Bukcinghamshire Council,30.09.2023,29.09.2023,Children's Services,Education & Childrens Services - CS Dir,TRAINLINE,15.06,0,15.06,Sec 20/31: Supp for Contact,Passenger railways
Bukcinghamshire Council,30.09.2023,29.09.2023,Children's Services,Education & Childrens Services - CS Dir,GAILS MARLOW,10.4,0,10.4,"Exp of School, Club & College Activities",Restaurants
Bukcinghamshire Council,30.09.2023,29.09.2023,Children's Services,Education & Childrens Services - CS Dir,TRAVELODGE GB0000,82.6,0,82.6,Other Employees Expenses,Travelodge
Bukcinghamshire Council,30.09.2023,29.09.2023,Children's Services,Education & Childrens Services - CS Dir,BKG*HOTEL AT BOOKING.C,87.6,0,87.6,Other Employees Expenses,Travel agencies
Bukcinghamshire Council,30.09.2023,29.09.2023,Children's Services,Education & Childrens Services - CS Dir,AMZNMktplace,8.99,0,8.99,Awaiting Coding,Miscellaneous retail
Bukcinghamshire Council,30.09.2023,29.09.2023,Children's Services,Education & Childrens Services - CS Dir,AMZNMktplace,6.79,0,6.79,Awaiting Coding,Miscellaneous retail
Bukcinghamshire Council,30.09.2023,29.09.2023,Deputy Chief Executive,Communities - DCE,AO RETAIL LIMITED,647.5,129.5,777,Other Personal Needs,Household appliance stores
Bukcinghamshire Council,30.09.2023,29.09.2023,Children's Services,Education & Childrens Services - CS Dir,A1 TAXI SERVICE,350,70,420,Sec 20/31: Transport,Taxicabs & limousines
Bukcinghamshire Council,30.09.2023,29.09.2023,Communities,Climate Change & Environment - Community,AMZNMktplace,19.98,0,19.98,Awaiting Coding,Miscellaneous retail
Bukcinghamshire Council,30.09.2023,29.09.2023,Resources,AH&R - Res Dir,ROYAL MAIL GROUP LTD,11.65,0,11.65,General Postage,Postal services
Bukcinghamshire Council,30.09.2023,29.09.2023,Adults and Health,Health & Wellbeing - Adults & Health Dir,TESCO STORES 2162,20.89,0,20.89,Awaiting Coding,Grocery stores
Bukcinghamshire Council,30.09.2023,29.09.2023,"Planning, Growth & Sustainability",AH&R - PGS Dir,LOCK & KEY CENTRE,42,0,42,General Repairs & Maintenance,Misc business services
Bukcinghamshire Council,30.09.2023,29.09.2023,Communities,Climate Change & Environment - Community,AMZNMKTPLACE,7.68,0,7.68,Stationery & Office Supplies,Miscellaneous retail
Bukcinghamshire Council,30.09.2023,29.09.2023,Resources,AH&R - Res Dir,GMO GLOBALSIGN LIM,356.4,0,356.4,Annual Licence (IT),Computer network information services
Bukcinghamshire Council,30.09.2023,29.09.2023,Resources,AH&R - Res Dir,SANS INSTITUTE,-133.63,0,-133.63,Subscriptions to National Bodies,Schools
Bukcinghamshire Council,30.09.2023,29.09.2023,Children's Services,Education & Childrens Services - CS Dir,BEAUTIFUL BLOOMS,60,0,60,Support for Foster Carers,Florists
Bukcinghamshire Council,30.09.2023,29.09.2023,Children's Services,Education & Childrens Services - CS Dir,AMZNMKTPLACE,190.92,0,190.92,Support for Foster Carers,Miscellaneous retail
Bukcinghamshire Council,30.09.2023,29.09.2023,Communities,Communities - Trust Accounts,WEXHAM MOWER SVCS,31.68,0,31.68,Seeds & Plants,Lawn & garden supply/nursery
Bukcinghamshire Council,30.09.2023,29.09.2023,Communities,Communities - Trust Accounts,B&M 582 - BRITWELL,8,0,8,Awaiting Coding,Misc. general merchandise
Bukcinghamshire Council,30.09.2023,29.09.2023,Deputy Chief Executive,AH&R- DCE Dir,TRAVELODGE GB0000,62.99,0,62.99,"Courses, Conference and Seminar Fees",Travelodge
Bukcinghamshire Council,30.09.2023,29.09.2023,Resources,AH&R - Res Dir,UBER   *TRIP,11.5,0,11.5,Staff Travelling Expenses,Taxicabs & limousines
Bukcinghamshire Council,30.09.2023,29.09.2023,Communities,Climate Change & Environment - Community,JAYAR CAR PARTS,37.03,0,37.03,Repair & Maint of Vehicles & Plant,Automotive parts & accessories
Bukcinghamshire Council,30.09.2023,29.09.2023,Communities,Transport - Communities Dir,SHELL 40-42 WOODSIDE ROAD,6.01,0,6.01,Petrol,Service stations
Bukcinghamshire Council,30.09.2023,29.09.2023,Communities,Housing & Homelessness & Regulatory Comm,AMAZON.CO.UK,6.88,0,6.88,Stationery & Office Supplies,Direct sales companies
Bukcinghamshire Council,30.09.2023,29.09.2023,"Planning, Growth & Sustainability",Climate Change & Environment - PGS,WATERSTONES.COM,100,0,100,"Books, Records, Films & Oth Publications",Book stores
Bukcinghamshire Council,30.09.2023,29.09.2023,Children's Services,Education & Childrens Services - CS Dir,BUCKINGHAM HOTELS,"1,575.00",315,"1,890.00",Sec 17: Accommodation,"Hotels, motels & resorts"
Bukcinghamshire Council,30.09.2023,29.09.2023,Children's Services,Education & Childrens Services - CS Dir,BUCKINGHAM HOTELS,"1,575.00",315,"1,890.00",Sec 17: Accommodation,"Hotels, motels & resorts"
Bukcinghamshire Council,30.09.2023,29.09.2023,Children's Services,Education & Childrens Services - CS Dir,BUCKINGHAM HOTELS,"1,575.00",315,"1,890.00",Sec 17: Accommodation,"Hotels, motels & resorts"
Bukcinghamshire Council,30.09.2023,29.09.2023,Children's Services,Education & Childrens Services - CS Dir,BUCKINGHAM HOTELS,"1,575.00",315,"1,890.00",Sec 17: Accommodation,"Hotels, motels & resorts"
Bukcinghamshire Council,30.09.2023,28.09.2023,Resources,AH&R - Res Dir,AMZNMKTPLACE,54.98,0,54.98,IT Equipment Purchase,Miscellaneous retail
Bukcinghamshire Council,30.09.2023,28.09.2023,Children's Services,Education & Childrens Services - CS Dir,AMZNMKTPLACE,46.07,0,46.07,Printing & Stationery,Miscellaneous retail
Bukcinghamshire Council,30.09.2023,28.09.2023,Deputy Chief Executive,AH&R- DCE Dir,AMZNMKTPLACE,27.07,0,27.07,Stationery & Office Supplies,Miscellaneous retail
Bukcinghamshire Council,30.09.2023,28.09.2023,Deputy Chief Executive,AH&R- DCE Dir,PAYPAL,-12.95,0,-12.95,Awaiting Coding,Variety stores
Bukcinghamshire Council,30.09.2023,28.09.2023,Children's Services,Education & Childrens Services - CS Dir,TRAVELODGE GB0000,173.35,0,173.35,Sec 20/31: Accomodation,Travelodge
Bukcinghamshire Council,30.09.2023,28.09.2023,Children's Services,Education & Childrens Services - CS Dir,GEN REGISTER OFFICE,14,0,14,Sec 20/31: Specialist Services,Government services
Bukcinghamshire Council,30.09.2023,28.09.2023,Children's Services,Education & Childrens Services - CS Dir,TORFAEN COUNTY BOROUGH,33,0,33,Sec 20/31: Specialist Services,Government services
Bukcinghamshire Council,30.09.2023,28.09.2023,"Planning, Growth & Sustainability",Climate Change & Environment - PGS,PARCELFORCE WL,40.5,0,40.5,General Postage,Courier services / freight forwarders
Bukcinghamshire Council,30.09.2023,28.09.2023,Deputy Chief Executive,Communities - DCE,WWW.ARGOS.CO.UK,234.1,46.82,280.92,Other Personal Needs,Department stores
Bukcinghamshire Council,30.09.2023,28.09.2023,Deputy Chief Executive,Communities - DCE,WWW.ARGOS.CO.UK,0.03,0,0.03,Other Personal Needs,Department stores
Bukcinghamshire Council,30.09.2023,28.09.2023,Children's Services,Education & Childrens Services - CS Dir,AMZNMKTPLACE,45.97,0,45.97,Leaving Care - Grants for Care Leavers,Miscellaneous retail
Bukcinghamshire Council,30.09.2023,28.09.2023,Children's Services,Education & Childrens Services - CS Dir,HM PASSPORT OFFICE,87.5,0,87.5,Sec 20/31: Specialist Services,Government services
Bukcinghamshire Council,30.09.2023,28.09.2023,Deputy Chief Executive,Leader - DCE,NEW YORK DELI GATEHOUSE,64.44,0,64.44,LKD Jubilee Programme - Claydon House,Restaurants
Bukcinghamshire Council,30.09.2023,28.09.2023,"Planning, Growth & Sustainability",Planning & Regeneration - PGS,NEW YORK DELI GATEHOUSE,300,0,300,Subsistence,Restaurants
Bukcinghamshire Council,30.09.2023,28.09.2023,Children's Services,Education & Childrens Services - CS Dir,AMAZON.CO.UK,163.99,0,163.99,YOS - Direct Work,Direct sales companies
Bukcinghamshire Council,30.09.2023,28.09.2023,Communities,Transport - Communities Dir,HALFORDS E.COMM,150,0,150,Vehicle Hire,Automotive parts & accessories
Bukcinghamshire Council,30.09.2023,28.09.2023,Adults and Health,Health & Wellbeing - Adults & Health Dir,SP DECHOKER EUROPE,58.39,0,58.39,Medical Supplies & Services inc Vet'nary,"Laboratory, medical & hospital equipment"
Bukcinghamshire Council,30.09.2023,28.09.2023,Children's Services,Education & Childrens Services - CS Dir,BKG*HOTEL AT BOOKING.C,99,0,99,Staff Travelling Expenses,Travel agencies
Bukcinghamshire Council,30.09.2023,28.09.2023,Children's Services,Education & Childrens Services - CS Dir,A1 Taxi Service,84,0,84,Staff Travelling Expenses,Taxicabs & limousines
Bukcinghamshire Council,30.09.2023,28.09.2023,"Planning, Growth & Sustainability",Transport - PGS Dir,VOUCHER EXPRESS,100,0,100,Other Employees Expenses,Misc business services
Bukcinghamshire Council,30.09.2023,28.09.2023,"Planning, Growth & Sustainability",AH&R - PGS Dir,TIMPSON LTD,18,0,18,Awaiting Coding,Miscellaneous retail
Bukcinghamshire Council,30.09.2023,28.09.2023,"Planning, Growth & Sustainability",AH&R - PGS Dir,TIMPSON LTD,13.5,0,13.5,Awaiting Coding,Miscellaneous retail
Bukcinghamshire Council,30.09.2023,28.09.2023,"Planning, Growth & Sustainability",AH&R - PGS Dir,WICKES AYLESBURY,15.75,0,15.75,General Repairs & Maintenance,Timber & building supplies
Bukcinghamshire Council,30.09.2023,28.09.2023,"Planning, Growth & Sustainability",AH&R - PGS Dir,TOOLSTATION LTD,13.98,0,13.98,General Repairs & Maintenance,Timber & building supplies
Bukcinghamshire Council,30.09.2023,28.09.2023,Children's Services,Education & Childrens Services - CS Dir,AMAZON* 205-9683097-93,18.99,0,18.99,Activities & General Recreation,Misc. general merchandise
Bukcinghamshire Council,30.09.2023,28.09.2023,Children's Services,Education & Childrens Services - CS Dir,AMAZON.CO.UK,18.95,0,18.95,Stationery & Office Supplies,Direct sales companies
Bukcinghamshire Council,30.09.2023,28.09.2023,Resources,AH&R - Res Dir,ABRATAX - MTD,10,2,12,Computer Consumables,Computer software stores
Bukcinghamshire Council,30.09.2023,28.09.2023,Communities,Culture & Leisure - Communities Dir,AMZNMKTPLACE,15.8,3.16,18.96,"Workshop - Materials,Tools & Equipment",Miscellaneous retail
Bukcinghamshire Council,30.09.2023,28.09.2023,Communities,Culture & Leisure - Communities Dir,AMZNMKTPLACE,0.02,0,0.02,"Workshop - Materials,Tools & Equipment",Miscellaneous retail
Bukcinghamshire Council,30.09.2023,28.09.2023,Children's Services,Education & Childrens Services - CS Dir,LONDIS HAMPDEN GARDEN,5.5,0,5.5,General Provisions (Food),Sweets & confectionary
Bukcinghamshire Council,30.09.2023,28.09.2023,Adults and Health,Health & Wellbeing - Adults & Health Dir,TRAVELODGE GB0000,980.95,0,980.95,Other Short Term Support,Travelodge
Bukcinghamshire Council,30.09.2023,28.09.2023,Resources,AH&R - Res Dir,AMAZON* 204-8338209-23,250,0,250,Miscellaneous (Other)  Expenses,Misc. general merchandise
Bukcinghamshire Council,30.09.2023,28.09.2023,Resources,AH&R - Res Dir,PAYPAL,7.2,0,7.2,IT - Computer Network Charges,Computer network information services
Bukcinghamshire Council,30.09.2023,28.09.2023,Adults and Health,Health & Wellbeing - Adults & Health Dir,ASDA SUPERSTORE,7.79,0,7.79,Health & Safety Supplies & Services,Grocery stores
Bukcinghamshire Council,30.09.2023,28.09.2023,Children's Services,Education & Childrens Services - CS Dir,NEALES TAXIS LTD,80,0,80,Leaving Care - Transport,Taxicabs & limousines
Bukcinghamshire Council,30.09.2023,28.09.2023,Children's Services,Education & Childrens Services - CS Dir,BUCKINGHAMSHIRE CNCL,11,0,11,Leaving Care  - Financial Assistance,Government services
Bukcinghamshire Council,30.09.2023,28.09.2023,Deputy Chief Executive,AH&R- DCE Dir,TRAVELODGE GB0000,10,0,10,"Courses, Conference and Seminar Fees",Travelodge
Bukcinghamshire Council,30.09.2023,28.09.2023,Deputy Chief Executive,AH&R- DCE Dir,TRAVELODGE GB0000,296.46,0,296.46,"Courses, Conference and Seminar Fees",Travelodge
Bukcinghamshire Council,30.09.2023,28.09.2023,Resources,AH&R - Res Dir,AMZNMktplace,26.78,0,26.78,Awaiting Coding,Miscellaneous retail
Bukcinghamshire Council,30.09.2023,28.09.2023,Children's Services,Education & Childrens Services - CS Dir,AMZNMKTPLACE,95.19,0,95.19,Activities & General Recreation,Miscellaneous retail
Bukcinghamshire Council,30.09.2023,28.09.2023,Communities,Culture & Leisure - Communities Dir,SAFETY FIRST,113.75,22.75,136.5,Health & Safety Supplies & Services,Men & womens clothing shops
Bukcinghamshire Council,30.09.2023,28.09.2023,Adults and Health,Health & Wellbeing - Adults & Health Dir,AMZNMKTPLACE,37.62,0,37.62,Activities & General Recreation,Miscellaneous retail
Bukcinghamshire Council,30.09.2023,28.09.2023,"Planning, Growth & Sustainability",Housing & Homelessness & Regulatory PGS,SAFETYBOOTSUK,66.43,0,66.43,Administrative Equipment & Tools,Shoe shops
Bukcinghamshire Council,30.09.2023,28.09.2023,Children's Services,Education & Childrens Services - CS Dir,SUMUP  *CABS4U,73,0,73,Sec 17: Transport,Taxicabs & limousines
Bukcinghamshire Council,30.09.2023,28.09.2023,Resources,AH&R - Res Dir,NEALES TAXIS LTD,24,0,24,Staff Travelling Expenses,Taxicabs & limousines
Bukcinghamshire Council,30.09.2023,28.09.2023,Communities,Culture & Leisure - Communities Dir,TVLICENSING.CO.UK,159,0,159,Professional Services (non curriculum) - External,Consultants & public relation services
Bukcinghamshire Council,30.09.2023,28.09.2023,Children's Services,Education & Childrens Services - CS Dir,TRAVELODGE GB0862,10,0,10,Sec 17: Accommodation,Travelodge
Bukcinghamshire Council,30.09.2023,27.09.2023,"Planning, Growth & Sustainability",Housing & Homelessness & Regulatory PGS,HPI INSTANT INK UK,9.99,0,9.99,Awaiting Coding,Electronics shops
Bukcinghamshire Council,30.09.2023,27.09.2023,Deputy Chief Executive,AH&R- DCE Dir,PAYPAL,-9,0,-9,Awaiting Coding,Variety stores
Bukcinghamshire Council,30.09.2023,27.09.2023,Children's Services,Education & Childrens Services - CS Dir,AMZNMKTPLACE,39.94,0,39.94,Sec 20/31: Specialist Services,Miscellaneous retail
Bukcinghamshire Council,30.09.2023,27.09.2023,"Planning, Growth & Sustainability",Housing & Homelessness & Regulatory PGS,ROYAL MAIL ONLINE SHOP,240,0,240,Administrative Equipment & Tools,Postal services
Bukcinghamshire Council,30.09.2023,27.09.2023,"Planning, Growth & Sustainability",Housing & Homelessness & Regulatory PGS,PREMIER INN,689.5,0,689.5,"Courses, Conference and Seminar Fees",Premier Inn
Bukcinghamshire Council,30.09.2023,27.09.2023,"Planning, Growth & Sustainability",Climate Change & Environment - PGS,AFRIKANA - MILE END,138.1,0,138.1,Subsistence,Restaurants
Bukcinghamshire Council,30.09.2023,27.09.2023,Deputy Chief Executive,Communities - DCE,WWW.ARGOS.CO.UK,463.95,0,463.95,Other Personal Needs,Department stores
Bukcinghamshire Council,30.09.2023,27.09.2023,Deputy Chief Executive,Communities - DCE,AO RETAIL LIMITED,332.5,66.5,399,Other Personal Needs,Household appliance stores
Bukcinghamshire Council,30.09.2023,27.09.2023,Deputy Chief Executive,Communities - DCE,AO RETAIL LIMITED,726.66,145.34,872,Other Personal Needs,Household appliance stores
Bukcinghamshire Council,30.09.2023,27.09.2023,Children's Services,Education & Childrens Services - CS Dir,AMZNMKTPLACE,16.49,0,16.49,Leaving Care - Grants for Care Leavers,Miscellaneous retail
Bukcinghamshire Council,30.09.2023,27.09.2023,Children's Services,Education & Childrens Services - CS Dir,WF *UK3968030954,43.07,0,43.07,Leaving Care - Grants for Care Leavers,Furniture & home furnishing
Bukcinghamshire Council,30.09.2023,27.09.2023,Children's Services,Education & Childrens Services - CS Dir,IKEA LTD SHOP ONLINE,461,0,461,Leaving Care - Grants for Care Leavers,Furniture & home furnishing
Bukcinghamshire Council,30.09.2023,27.09.2023,Children's Services,Education & Childrens Services - CS Dir,DIRECT CARS,70,0,70,Sec 20/31: Transport,Taxicabs & limousines
Bukcinghamshire Council,30.09.2023,27.09.2023,Children's Services,Education & Childrens Services - CS Dir,ANN ARBOR PUBLISH,137.75,27.55,165.3,Training Materials,Publishing & printing services
Bukcinghamshire Council,30.09.2023,27.09.2023,Adults and Health,Health & Wellbeing - Adults & Health Dir,NEW TOWN NEWS,6.52,0,6.52,General Provisions (Food),Grocery stores
Bukcinghamshire Council,30.09.2023,27.09.2023,Communities,Transport - Communities Dir,WH SMITH HIGH WYCOMBE,13.76,0,13.76,Materials,Newspapers / newsagents
Bukcinghamshire Council,30.09.2023,27.09.2023,Communities,Partnerships - Communities,AYLESBURY STATION T/O,45.6,0,45.6,Miscellaneous (Other)  Expenses,Passenger railways
Bukcinghamshire Council,30.09.2023,27.09.2023,Communities,Housing & Homelessness & Regulatory Comm,ZETTLE_*SHANTOCK NURSE,202.5,0,202.5,Maintenance of Grounds,Miscellaneous retail
Bukcinghamshire Council,30.09.2023,27.09.2023,Communities,Housing & Homelessness & Regulatory Comm,HAWES PLANT & TOOL HIR,327.6,0,327.6,Maintenance of Grounds,"Equipment, tool, furniture hire & leasing"
Bukcinghamshire Council,30.09.2023,27.09.2023,Communities,Housing & Homelessness & Regulatory Comm,ZETTLE_*SHANTOCK NURSERIE,14,0,14,Maintenance of Grounds,Miscellaneous retail
Bukcinghamshire Council,30.09.2023,27.09.2023,Communities,Housing & Homelessness & Regulatory Comm,ZETTLE_*SHANTOCK NURSERIE,875,0,875,Maintenance of Grounds,Miscellaneous retail
Bukcinghamshire Council,30.09.2023,27.09.2023,Deputy Chief Executive,AH&R- DCE Dir,POSTURITE LTD,96.95,19.39,116.34,Printing & Stationery,Misc. home furnishing
Bukcinghamshire Council,30.09.2023,27.09.2023,Deputy Chief Executive,AH&R- DCE Dir,POSTURITE LTD,0.01,0,0.01,Printing & Stationery,Misc. home furnishing
Bukcinghamshire Council,30.09.2023,27.09.2023,"Planning, Growth & Sustainability",AH&R - PGS Dir,ASHCO,17.98,0,17.98,Community Premises Expenditure,Hardware stores
Bukcinghamshire Council,30.09.2023,27.09.2023,Communities,Culture & Leisure - Communities Dir,AMZNMKTPLACE,28.3,5.66,33.96,"Workshop - Materials,Tools & Equipment",Miscellaneous retail
Bukcinghamshire Council,30.09.2023,27.09.2023,Communities,Culture & Leisure - Communities Dir,AMZNMKTPLACE,0.02,0,0.02,"Workshop - Materials,Tools & Equipment",Miscellaneous retail
Bukcinghamshire Council,30.09.2023,27.09.2023,Communities,Transport - Communities Dir,ANGLIA COMPOSITES LTD,511,0,511,Area Teams and Materials,Floor covering stores
Bukcinghamshire Council,30.09.2023,27.09.2023,Children's Services,Education & Childrens Services - CS Dir,WM MORRISONS STORE,28.56,0,28.56,General Provisions (Food),Grocery stores
Bukcinghamshire Council,30.09.2023,27.09.2023,Adults and Health,Health & Wellbeing - Adults & Health Dir,TRAVELODGE GB0000,134.99,0,134.99,Other Short Term Support,Travelodge
Bukcinghamshire Council,30.09.2023,27.09.2023,Children's Services,Education & Childrens Services - CS Dir,NEALES TAXIS LTD,504,0,504,Sec 20/31: Transport,Taxicabs & limousines
Bukcinghamshire Council,30.09.2023,27.09.2023,Communities,Climate Change & Environment - Community,HELLOPRINT UNITED KINGDOM,399.28,0,399.28,Photocopiers,Photocopy & reproduction services
Bukcinghamshire Council,30.09.2023,27.09.2023,"Planning, Growth & Sustainability",AH&R - PGS Dir,ICELAND,9.3,0,9.3,General Provisions (Food),Grocery stores
Bukcinghamshire Council,30.09.2023,27.09.2023,Resources,AH&R - Res Dir,SANS INSTITUTE,807.47,0,807.47,Subscriptions to National Bodies,Schools
Bukcinghamshire Council,30.09.2023,27.09.2023,Children's Services,Education & Childrens Services - CS Dir,HOBBYCRAFT,10.5,0,10.5,Support for Foster Carers,Art & craft shops
Bukcinghamshire Council,30.09.2023,27.09.2023,Children's Services,Education & Childrens Services - CS Dir,HOMEBASE.CO.UK,200,0,200,Support for Foster Carers,Home supply warehouse stores
Bukcinghamshire Council,30.09.2023,27.09.2023,Children's Services,Education & Childrens Services - CS Dir,AMAZON* 204-9130146-96,250,0,250,General Allowances,Misc. general merchandise
Bukcinghamshire Council,30.09.2023,27.09.2023,Communities,Culture & Leisure - Communities Dir,EBAY COMMERCE UK LTD,31.98,0,31.98,Miscellaneous (Other)  Expenses,Department stores
Bukcinghamshire Council,30.09.2023,27.09.2023,Communities,Culture & Leisure - Communities Dir,EBAY COMMERCE UK LTD,8.95,0,8.95,Miscellaneous (Other)  Expenses,Department stores
Bukcinghamshire Council,30.09.2023,27.09.2023,Children's Services,Education & Childrens Services - CS Dir,WWW.ARGOS.CO.UK,401.95,0,401.95,Activities & General Recreation,Department stores
Bukcinghamshire Council,30.09.2023,27.09.2023,Communities,Communities - Trust Accounts,WEXHAM MOWER SVCS,98.4,0,98.4,Seeds & Plants,Lawn & garden supply/nursery
Bukcinghamshire Council,30.09.2023,27.09.2023,Children's Services,Education & Childrens Services - CS Dir,AMZNMKTPLACE,8.38,0,8.38,Activities & General Recreation,Miscellaneous retail
Bukcinghamshire Council,30.09.2023,27.09.2023,"Planning, Growth & Sustainability",Planning & Regeneration - PGS,UBR* PENDING.UBER.COM,5.99,0,5.99,Staff Travelling Expenses,Taxicabs & limousines
Bukcinghamshire Council,30.09.2023,27.09.2023,Resources,AH&R - Res Dir,LINKEDIN ADS 9458225704,119.29,0,119.29,Permanent Recruitment Costs,Advertising services
Bukcinghamshire Council,30.09.2023,27.09.2023,Resources,AH&R - Res Dir,ISTANBUL,50,0,50,Subsistence,Restaurants
Bukcinghamshire Council,30.09.2023,27.09.2023,Resources,AH&R - Res Dir,NEW YORK DELI GATEHOUSE,261.6,0,261.6,Subsistence,Restaurants
Bukcinghamshire Council,30.09.2023,27.09.2023,Children's Services,Education & Childrens Services - CS Dir,AMAZON PRIME,8.99,0,8.99,Stationery & Office Supplies,Continuous subscriptions
Bukcinghamshire Council,30.09.2023,27.09.2023,Children's Services,Education & Childrens Services - CS Dir,JD SPORTS FASHION PLC,20,0,20,YOS - Direct Work,Sporting goods shops
Bukcinghamshire Council,30.09.2023,27.09.2023,Children's Services,Education & Childrens Services - CS Dir,SAINSBURYS S/MKTS,20,0,20,YOS - Direct Work,Grocery stores
Bukcinghamshire Council,30.09.2023,27.09.2023,Children's Services,Education & Childrens Services - CS Dir,WH SMITH AYLESBURY,8.8,0,8.8,General Postage,Newspapers / newsagents
Bukcinghamshire Council,30.09.2023,27.09.2023,"Planning, Growth & Sustainability",Planning & Regeneration - PGS,WWW.MAJESTIC.CO.UK,253.62,0,253.62,Discretionary Awards - Maintenance,Off Licenses / alcohol sales
Bukcinghamshire Council,30.09.2023,27.09.2023,Communities,Climate Change & Environment - Community,CH MORGAN,41.2,0,41.2,Professional Services (non curriculum) - External,"Architectural, engineering & surveying"
Bukcinghamshire Council,30.09.2023,27.09.2023,Communities,Culture & Leisure - Communities Dir,ARTS PROFESSIONAL,285,0,285,"Books, Records, Films & Oth Publications",
Bukcinghamshire Council,30.09.2023,27.09.2023,Children's Services,Education & Childrens Services - CS Dir,TRAVELODGE GB0000,139.21,0,139.21,Sec 17: Accommodation,Travelodge
Bukcinghamshire Council,30.09.2023,27.09.2023,Communities,Housing & Homelessness & Regulatory Comm,AMZNMKTPLACE,23.25,0,23.25,Printing & Stationery,Miscellaneous retail
Bukcinghamshire Council,30.09.2023,27.09.2023,Communities,Transport - Communities Dir,FITCHS SERVICE STATION,3.58,0,3.58,Petrol,Service stations
Bukcinghamshire Council,30.09.2023,27.09.2023,Deputy Chief Executive,AH&R- DCE Dir,PAYPAL,300.94,0,300.94,Awaiting Coding,Variety stores
Bukcinghamshire Council,30.09.2023,27.09.2023,Deputy Chief Executive,AH&R- DCE Dir,PAYPAL,699.98,0,699.98,Awaiting Coding,Variety stores
Bukcinghamshire Council,30.09.2023,27.09.2023,Deputy Chief Executive,AH&R- DCE Dir,PAYPAL,868,0,868,Awaiting Coding,Electronics shops
Bukcinghamshire Council,30.09.2023,27.09.2023,Deputy Chief Executive,AH&R- DCE Dir,PAYPAL,377.95,0,377.95,Awaiting Coding,Variety stores
Bukcinghamshire Council,30.09.2023,27.09.2023,Deputy Chief Executive,AH&R- DCE Dir,PAYPAL,12.5,0,12.5,Awaiting Coding,Variety stores
Bukcinghamshire Council,30.09.2023,26.09.2023,Children's Services,Education & Childrens Services - CS Dir,AMZNMKTPLACE,24.98,0,24.98,Leaving Care  - Financial Assistance,Miscellaneous retail
Bukcinghamshire Council,30.09.2023,26.09.2023,Deputy Chief Executive,AH&R- DCE Dir,PAYPAL,-30,0,-30,Awaiting Coding,Variety stores
Bukcinghamshire Council,30.09.2023,26.09.2023,Deputy Chief Executive,AH&R- DCE Dir,PAYPAL,-20,0,-20,Awaiting Coding,Variety stores
Bukcinghamshire Council,30.09.2023,26.09.2023,Adults and Health,Health & Wellbeing - Adults & Health Dir,ASDA  STORES 4396,2.9,0,2.9,General Provisions (Food),Grocery stores
Bukcinghamshire Council,30.09.2023,26.09.2023,Children's Services,Education & Childrens Services - CS Dir,FIRST BUS - WEB,15.6,0,15.6,Sec 20/31: Supp for Contact,"Buses, charter & tour"
Bukcinghamshire Council,30.09.2023,26.09.2023,Children's Services,Education & Childrens Services - CS Dir,LYNKPAY* 001 TAXIS,72.1,0,72.1,Sec 20/31: Transport,
Bukcinghamshire Council,30.09.2023,26.09.2023,Children's Services,Education & Childrens Services - CS Dir,LYNKPAY* 001 TAXIS,72.1,0,72.1,Sec 20/31: Transport,
Bukcinghamshire Council,30.09.2023,26.09.2023,Children's Services,Education & Childrens Services - CS Dir,LYNKPAY* 001 TAXIS,72.1,0,72.1,Sec 20/31: Transport,
Bukcinghamshire Council,30.09.2023,26.09.2023,Children's Services,Education & Childrens Services - CS Dir,LYNKPAY* 001 TAXIS,72.1,0,72.1,Sec 20/31: Transport,
Bukcinghamshire Council,30.09.2023,26.09.2023,Children's Services,Education & Childrens Services - CS Dir,LYNKPAY* 001 TAXIS,72.1,0,72.1,Sec 20/31: Transport,
Bukcinghamshire Council,30.09.2023,26.09.2023,Children's Services,Education & Childrens Services - CS Dir,LYNKPAY* 001 TAXIS,72.1,0,72.1,Sec 20/31: Transport,
Bukcinghamshire Council,30.09.2023,26.09.2023,Children's Services,Education & Childrens Services - CS Dir,LYNKPAY* 001 TAXIS,72.1,0,72.1,Sec 20/31: Transport,
Bukcinghamshire Council,30.09.2023,26.09.2023,Children's Services,Education & Childrens Services - CS Dir,SUMUP  *CABS4U,120,0,120,Sec 20/31: Transport,Taxicabs & limousines
Bukcinghamshire Council,30.09.2023,26.09.2023,Children's Services,Education & Childrens Services - CS Dir,ARRIVA UK BUS,8,0,8,Sec 20/31: Supp for Contact,"Buses, charter & tour"
Bukcinghamshire Council,30.09.2023,26.09.2023,"Planning, Growth & Sustainability",Climate Change & Environment - PGS,TOGATHER.COM,180.88,0,180.88,Contract Catering,Misc. personal services
Bukcinghamshire Council,30.09.2023,26.09.2023,"Planning, Growth & Sustainability",Climate Change & Environment - PGS,TRAINLINE,59.01,0,59.01,Staff Travelling Expenses,Passenger railways
Bukcinghamshire Council,30.09.2023,26.09.2023,"Planning, Growth & Sustainability",Climate Change & Environment - PGS,TRAINLINE,26.11,0,26.11,Staff Travelling Expenses,Passenger railways
Bukcinghamshire Council,30.09.2023,26.09.2023,Deputy Chief Executive,Communities - DCE,AO RETAIL LIMITED,659.99,132.01,792,Other Personal Needs,Household appliance stores
Bukcinghamshire Council,30.09.2023,26.09.2023,Deputy Chief Executive,Communities - DCE,AO RETAIL LIMITED,723.33,144.67,868,Other Personal Needs,Household appliance stores
Bukcinghamshire Council,30.09.2023,26.09.2023,Deputy Chief Executive,Communities - DCE,AO RETAIL LIMITED,773.33,154.67,928,Other Personal Needs,Household appliance stores
Bukcinghamshire Council,30.09.2023,26.09.2023,Deputy Chief Executive,Communities - DCE,AO RETAIL LIMITED,329.16,65.84,395,Other Personal Needs,Household appliance stores
Bukcinghamshire Council,30.09.2023,26.09.2023,Deputy Chief Executive,Communities - DCE,AO RETAIL LIMITED,576.66,115.34,692,Other Personal Needs,Household appliance stores
Bukcinghamshire Council,30.09.2023,26.09.2023,Deputy Chief Executive,Communities - DCE,AO RETAIL LIMITED,723.33,144.67,868,Other Personal Needs,Household appliance stores
Bukcinghamshire Council,30.09.2023,26.09.2023,Deputy Chief Executive,Communities - DCE,WWW.ARGOS.CO.UK,0.01,0,0.01,Other Personal Needs,Department stores
Bukcinghamshire Council,30.09.2023,26.09.2023,Deputy Chief Executive,Communities - DCE,WWW.ARGOS.CO.UK,279.95,55.99,335.94,Other Personal Needs,Department stores
Bukcinghamshire Council,30.09.2023,26.09.2023,Deputy Chief Executive,Communities - DCE,WWW.ARGOS.CO.UK,103.29,20.66,123.95,Other Personal Needs,Department stores
Bukcinghamshire Council,30.09.2023,26.09.2023,Deputy Chief Executive,Communities - DCE,WWW.ARGOS.CO.UK,163.29,32.66,195.95,Other Personal Needs,Department stores
Bukcinghamshire Council,30.09.2023,26.09.2023,Deputy Chief Executive,Communities - DCE,WWW.ARGOS.CO.UK,0.01,0,0.01,Other Personal Needs,Department stores
Bukcinghamshire Council,30.09.2023,26.09.2023,Deputy Chief Executive,Communities - DCE,WWW.ARGOS.CO.UK,29.95,5.99,35.94,Other Personal Needs,Department stores
Bukcinghamshire Council,30.09.2023,26.09.2023,Deputy Chief Executive,Communities - DCE,WWW.ARGOS.CO.UK,135.79,27.16,162.95,Other Personal Needs,Department stores
Bukcinghamshire Council,30.09.2023,26.09.2023,Deputy Chief Executive,Communities - DCE,WWW.ARGOS.CO.UK,0.05,0,0.05,Other Personal Needs,Department stores
Bukcinghamshire Council,30.09.2023,26.09.2023,Deputy Chief Executive,Communities - DCE,WWW.ARGOS.CO.UK,42,8.4,50.4,Other Personal Needs,Department stores
Bukcinghamshire Council,30.09.2023,26.09.2023,Deputy Chief Executive,Communities - DCE,WWW.ARGOS.CO.UK,0.03,0,0.03,Other Personal Needs,Department stores
Bukcinghamshire Council,30.09.2023,26.09.2023,Deputy Chief Executive,Communities - DCE,WWW.ARGOS.CO.UK,149.1,29.82,178.92,Other Personal Needs,Department stores
Bukcinghamshire Council,30.09.2023,26.09.2023,Deputy Chief Executive,Communities - DCE,WWW.ARGOS.CO.UK,0.03,0,0.03,Other Personal Needs,Department stores
Bukcinghamshire Council,30.09.2023,26.09.2023,Deputy Chief Executive,Communities - DCE,WWW.ARGOS.CO.UK,274.1,54.82,328.92,Other Personal Needs,Department stores
Bukcinghamshire Council,30.09.2023,26.09.2023,Deputy Chief Executive,Communities - DCE,WWW.ARGOS.CO.UK,0.03,0,0.03,Other Personal Needs,Department stores
Bukcinghamshire Council,30.09.2023,26.09.2023,Deputy Chief Executive,Communities - DCE,WWW.ARGOS.CO.UK,40.35,8.07,48.42,Other Personal Needs,Department stores
Bukcinghamshire Council,30.09.2023,26.09.2023,Deputy Chief Executive,Communities - DCE,WWW.ARGOS.CO.UK,0.01,0,0.01,Other Personal Needs,Department stores
Bukcinghamshire Council,30.09.2023,26.09.2023,Deputy Chief Executive,Communities - DCE,WWW.ARGOS.CO.UK,272.45,54.49,326.94,Other Personal Needs,Department stores
Bukcinghamshire Council,30.09.2023,26.09.2023,Deputy Chief Executive,Communities - DCE,WWW.ARGOS.CO.UK,-5.95,0,-5.95,Other Personal Needs,Department stores
Bukcinghamshire Council,30.09.2023,26.09.2023,Deputy Chief Executive,Communities - DCE,WWW.ARGOS.CO.UK,-42.83,0,-42.83,Other Personal Needs,Department stores
Bukcinghamshire Council,30.09.2023,26.09.2023,Children's Services,Education & Childrens Services - CS Dir,DVLA DRIVER ONLINE,34,0,34,Leaving Care  - Financial Assistance,Government services
Bukcinghamshire Council,30.09.2023,26.09.2023,Children's Services,Education & Childrens Services - CS Dir,STUDENT FEES,"4,625.00",0,"4,625.00",Leaving Care - Higher Education Supp,Colleges & universities
Bukcinghamshire Council,30.09.2023,26.09.2023,Communities,Climate Change & Environment - Community,TRAINLINE,79.53,0,79.53,"Courses, Conference and Seminar Fees",Passenger railways
Bukcinghamshire Council,30.09.2023,26.09.2023,Children's Services,Education & Childrens Services - CS Dir,A1 TAXI SERVICE,210,42,252,Sec 20/31: Supp for Contact,Taxicabs & limousines
Bukcinghamshire Council,30.09.2023,26.09.2023,Children's Services,Education & Childrens Services - CS Dir,CURRYS BUSINESS,802.65,160.53,963.18,Computer Consumables,Computer software stores
Bukcinghamshire Council,30.09.2023,26.09.2023,Children's Services,Education & Childrens Services - CS Dir,CURRYS BUSINESS,818.6,163.72,982.32,Computer Consumables,Computer software stores
Bukcinghamshire Council,30.09.2023,26.09.2023,Children's Services,Education & Childrens Services - CS Dir,CURRYS BUSINESS,0.03,0,0.03,Computer Consumables,Computer software stores
Bukcinghamshire Council,30.09.2023,26.09.2023,Children's Services,Education & Childrens Services - CS Dir,CURRYS BUSINESS,457.5,91.5,549,Computer Consumables,Computer software stores
Bukcinghamshire Council,30.09.2023,26.09.2023,Children's Services,Education & Childrens Services - CS Dir,CURRYS BUSINESS,457.5,91.5,549,Computer Consumables,Computer software stores
Bukcinghamshire Council,30.09.2023,26.09.2023,"Planning, Growth & Sustainability",AH&R - PGS Dir,SCREWFIX HIGH WYCOMBE CRE,16.65,3.33,19.98,Cleaning Materials,Timber & building supplies
Bukcinghamshire Council,30.09.2023,26.09.2023,"Planning, Growth & Sustainability",AH&R - PGS Dir,SCREWFIX HIGH WYCOMBE CRE,0.01,0,0.01,Cleaning Materials,Timber & building supplies
Bukcinghamshire Council,30.09.2023,26.09.2023,Children's Services,Education & Childrens Services - CS Dir,BT BUSINESS BILL,68.28,0,68.28,Telephones,Phone services
Bukcinghamshire Council,30.09.2023,26.09.2023,Communities,Housing & Homelessness & Regulatory Comm,AMZNMKTPLACE,14.99,3,17.99,Furniture Fittings & IT,Miscellaneous retail
Bukcinghamshire Council,30.09.2023,26.09.2023,Adults and Health,Health & Wellbeing - Adults & Health Dir,TRAVELODGE GB0000,152.98,0,152.98,Other Short Term Support,Travelodge
Bukcinghamshire Council,30.09.2023,26.09.2023,Communities,Culture & Leisure - Communities Dir,AMZNMKTPLACE,35.5,7.1,42.6,"Workshop - Materials,Tools & Equipment",Miscellaneous retail
Bukcinghamshire Council,30.09.2023,26.09.2023,Communities,Culture & Leisure - Communities Dir,AMZNMKTPLACE,0.02,0,0.02,"Workshop - Materials,Tools & Equipment",Miscellaneous retail
Bukcinghamshire Council,30.09.2023,26.09.2023,Deputy Chief Executive,AH&R- DCE Dir,NEW YORK DELI GATEHOUSE,36.96,0,36.96,General Provisions (Food),Restaurants
Bukcinghamshire Council,30.09.2023,26.09.2023,Deputy Chief Executive,AH&R- DCE Dir,NEW YORK DELI GATEHOUSE,164.22,0,164.22,General Provisions (Food),Restaurants
Bukcinghamshire Council,30.09.2023,26.09.2023,Children's Services,Education & Childrens Services - CS Dir,ALDI 110 775,21.57,0,21.57,General Provisions (Food),Grocery stores
Bukcinghamshire Council,30.09.2023,26.09.2023,Adults and Health,Health & Wellbeing - Adults & Health Dir,TRAVELODGE GB0000,478.93,0,478.93,Other Short Term Support,Travelodge
Bukcinghamshire Council,30.09.2023,26.09.2023,Adults and Health,Health & Wellbeing - Adults & Health Dir,TRAVELODGE GB0000,319.97,0,319.97,Other Short Term Support,Travelodge
Bukcinghamshire Council,30.09.2023,26.09.2023,Communities,Climate Change & Environment - Community,AMZNMKTPLACE,38.88,0,38.88,Stationery & Office Supplies,Miscellaneous retail
Bukcinghamshire Council,30.09.2023,26.09.2023,Deputy Chief Executive,Leader - DCE,WP ENGINE,30.41,0,30.41,Computer Support Services,Computer network information services
Bukcinghamshire Council,30.09.2023,26.09.2023,Children's Services,Education & Childrens Services - CS Dir,TEAMUP CALENDAR,"1,063.95",0,"1,063.95",Computer Consumables,Computer software stores
Bukcinghamshire Council,30.09.2023,26.09.2023,Children's Services,Education & Childrens Services - CS Dir,ASDA  STORES 4396,14.3,0,14.3,General Provisions (Food),Grocery stores
Bukcinghamshire Council,30.09.2023,26.09.2023,Deputy Chief Executive,Communities - DCE,STARBUCKS AYLESBURY SAINS,3.95,0,3.95,Subsistence,Fast food restaurants
Bukcinghamshire Council,30.09.2023,26.09.2023,Communities,Transport - Communities Dir,AMZNMKTPLACE,19.98,0,19.98,Materials,Miscellaneous retail
Bukcinghamshire Council,30.09.2023,26.09.2023,Children's Services,Education & Childrens Services - CS Dir,AMZNMKTPLACE,52.43,0,52.43,Activities & General Recreation,Miscellaneous retail
Bukcinghamshire Council,30.09.2023,26.09.2023,Adults and Health,Health & Wellbeing - Adults & Health Dir,AMZNMKTPLACE,66.32,0,66.32,Health & Safety Supplies & Services,Miscellaneous retail
Bukcinghamshire Council,30.09.2023,26.09.2023,Children's Services,Education & Childrens Services - CS Dir,SUMUP  *CABS4U,99,0,99,Leaving Care  - Financial Assistance,Taxicabs & limousines
Bukcinghamshire Council,30.09.2023,26.09.2023,Deputy Chief Executive,AH&R- DCE Dir,PREMIER INN,97.99,0,97.99,"Courses, Conference and Seminar Fees",Premier Inn
Bukcinghamshire Council,30.09.2023,26.09.2023,Deputy Chief Executive,Communities - DCE,AMERSHAM OLD TOWN,2.6,0,2.6,Staff Travelling Expenses,Car parking & garages
Bukcinghamshire Council,30.09.2023,26.09.2023,"Planning, Growth & Sustainability",Planning & Regeneration - PGS,EXPO HIRE UK,369.6,0,369.6,Discretionary Awards - Maintenance,"Equipment, tool, furniture hire & leasing"
Bukcinghamshire Council,30.09.2023,26.09.2023,Adults and Health,Health & Wellbeing - Adults & Health Dir,AMZNMKTPLACE,35.12,0,35.12,Health & Safety Supplies & Services,Miscellaneous retail
Bukcinghamshire Council,30.09.2023,26.09.2023,Communities,Transport - Communities Dir,TESCO PFS 3917,66.14,0,66.14,Petrol,Service stations
Bukcinghamshire Council,30.09.2023,26.09.2023,Adults and Health,Health & Wellbeing - Adults & Health Dir,AMZNMKTPLACE,53.29,10.66,63.95,Other General Office Expenses,Miscellaneous retail
Bukcinghamshire Council,30.09.2023,26.09.2023,"Planning, Growth & Sustainability",Climate Change & Environment - PGS,WALLINGFORD HYDROSOLUTION,33,0,33,Environmental Projects,Membership organisations
Bukcinghamshire Council,30.09.2023,26.09.2023,Children's Services,Education & Childrens Services - CS Dir,FREEDOM PROGRAMME LIMITED,12,0,12,Sec 17: Specialist Services,Schools
Bukcinghamshire Council,30.09.2023,26.09.2023,Children's Services,Education & Childrens Services - CS Dir,FREEDOM PROGRAMME LIMITED,24,0,24,Sec 17: Specialist Services,Schools
Bukcinghamshire Council,30.09.2023,26.09.2023,Communities,Partnerships - Communities,MK BUSINESS LEADERS,375,75,450,Miscellaneous (Other)  Expenses,Membership organisations
Bukcinghamshire Council,30.09.2023,26.09.2023,Children's Services,Education & Childrens Services - CS Dir,TRAINLINE,45.72,0,45.72,Sec 20/31: Transport,Passenger railways
Bukcinghamshire Council,30.09.2023,26.09.2023,"Planning, Growth & Sustainability",Leader - PGS,IONOS CLOUD LTD,16.82,0,16.82,Computer Support Services,Computer network information services
Bukcinghamshire Council,30.09.2023,26.09.2023,"Planning, Growth & Sustainability",Planning & Regeneration - PGS,INKTOPRINTL,568.79,0,568.79,Stationery & Office Supplies,Electronics shops
Bukcinghamshire Council,30.09.2023,25.09.2023,Children's Services,Education & Childrens Services - CS Dir,AMZNMKTPLACE,11.73,0,11.73,Other Equipment and Materials,Miscellaneous retail
Bukcinghamshire Council,30.09.2023,25.09.2023,Deputy Chief Executive,AH&R- DCE Dir,PAYPAL,-130,0,-130,Awaiting Coding,Variety stores
Bukcinghamshire Council,30.09.2023,25.09.2023,Deputy Chief Executive,AH&R- DCE Dir,PAYPAL,-12.95,0,-12.95,Awaiting Coding,Variety stores
Bukcinghamshire Council,30.09.2023,25.09.2023,Children's Services,Education & Childrens Services - CS Dir,LYNKPAY* 001 TAXIS,66.95,0,66.95,Sec 20/31: Transport,
Bukcinghamshire Council,30.09.2023,25.09.2023,"Planning, Growth & Sustainability",Climate Change & Environment - PGS,PARCELFORCE WL,28.5,0,28.5,General Postage,Courier services / freight forwarders
Bukcinghamshire Council,30.09.2023,25.09.2023,Adults and Health,Health & Wellbeing - Adults & Health Dir,LYRECO UK LTD,54.25,10.85,65.1,Stationery & Office Supplies,Stationery & office supplies
Bukcinghamshire Council,30.09.2023,25.09.2023,Adults and Health,Health & Wellbeing - Adults & Health Dir,LYRECO UK LTD,29.35,5.87,35.22,Stationery & Office Supplies,Stationery & office supplies
Bukcinghamshire Council,30.09.2023,25.09.2023,Adults and Health,Health & Wellbeing - Adults & Health Dir,LYRECO UK LTD,0.02,0,0.02,Stationery & Office Supplies,Stationery & office supplies
Bukcinghamshire Council,30.09.2023,25.09.2023,Deputy Chief Executive,Communities - DCE,WWW.ARGOS.CO.UK,44.1,8.82,52.92,Other Personal Needs,Department stores
Bukcinghamshire Council,30.09.2023,25.09.2023,Deputy Chief Executive,Communities - DCE,WWW.ARGOS.CO.UK,0.03,0,0.03,Other Personal Needs,Department stores
Bukcinghamshire Council,30.09.2023,25.09.2023,Deputy Chief Executive,Communities - DCE,WWW.ARGOS.CO.UK,277.45,55.49,332.94,Other Personal Needs,Department stores
Bukcinghamshire Council,30.09.2023,25.09.2023,Deputy Chief Executive,Communities - DCE,WWW.ARGOS.CO.UK,0.01,0,0.01,Other Personal Needs,Department stores
Bukcinghamshire Council,30.09.2023,25.09.2023,Deputy Chief Executive,Communities - DCE,WWW.ARGOS.CO.UK,241.6,48.32,289.92,Other Personal Needs,Department stores
Bukcinghamshire Council,30.09.2023,25.09.2023,Deputy Chief Executive,Communities - DCE,WWW.ARGOS.CO.UK,0.03,0,0.03,Other Personal Needs,Department stores
Bukcinghamshire Council,30.09.2023,25.09.2023,Deputy Chief Executive,Communities - DCE,WWW.ARGOS.CO.UK,288.95,0,288.95,Other Personal Needs,Department stores
Bukcinghamshire Council,30.09.2023,25.09.2023,Deputy Chief Executive,Communities - DCE,WWW.ARGOS.CO.UK,203.95,0,203.95,Other Personal Needs,Department stores
Bukcinghamshire Council,30.09.2023,25.09.2023,Deputy Chief Executive,Communities - DCE,WWW.ARGOS.CO.UK,48.78,0,48.78,Other Personal Needs,Department stores
Bukcinghamshire Council,30.09.2023,25.09.2023,Deputy Chief Executive,Communities - DCE,WWW.ARGOS.CO.UK,294.12,58.83,352.95,Other Personal Needs,Department stores
Bukcinghamshire Council,30.09.2023,25.09.2023,Deputy Chief Executive,Communities - DCE,AO RETAIL LIMITED,564.99,113.01,678,Other Personal Needs,Household appliance stores
Bukcinghamshire Council,30.09.2023,25.09.2023,Deputy Chief Executive,Communities - DCE,AO RETAIL LIMITED,423.33,84.67,508,Other Personal Needs,Household appliance stores
Bukcinghamshire Council,30.09.2023,25.09.2023,Children's Services,Education & Childrens Services - CS Dir,WWW.ARGOS.CO.UK,13.5,0,13.5,Leaving Care - Grants for Care Leavers,Department stores
Bukcinghamshire Council,30.09.2023,25.09.2023,Children's Services,Education & Childrens Services - CS Dir,AMZNMKTPLACE,48.98,0,48.98,Leaving Care - Grants for Care Leavers,Miscellaneous retail
Bukcinghamshire Council,30.09.2023,25.09.2023,Children's Services,Education & Childrens Services - CS Dir,TESCO STORES 2038,196.09,0,196.09,General Provisions (Food),Grocery stores
Bukcinghamshire Council,30.09.2023,25.09.2023,Resources,AH&R - Res Dir,QUADIENT UK LTD,"1,132.80",0,"1,132.80",Stationery & Office Supplies,Stationery & office supplies
Bukcinghamshire Council,30.09.2023,25.09.2023,Resources,AH&R - Res Dir,QUADIENT UK LTD,"1,684.80",0,"1,684.80",Stationery & Office Supplies,Stationery & office supplies
Bukcinghamshire Council,30.09.2023,25.09.2023,"Planning, Growth & Sustainability",AH&R - PGS Dir,TOOLSTATION LTD,32.98,0,32.98,Other Equipment and Materials,Timber & building supplies
Bukcinghamshire Council,30.09.2023,25.09.2023,"Planning, Growth & Sustainability",AH&R - PGS Dir,BOOKER LTD - 38534944,46.44,9.29,55.73,Vending Machines Supplies,Grocery stores
Bukcinghamshire Council,30.09.2023,25.09.2023,"Planning, Growth & Sustainability",AH&R - PGS Dir,VITAL PARTS LTD,20.37,4.08,24.45,Security & Safety Supplies & Equipment,Misc. general merchandise
Bukcinghamshire Council,30.09.2023,25.09.2023,"Planning, Growth & Sustainability",AH&R - PGS Dir,VITAL PARTS LTD,-10.4,-2.08,-12.48,Security & Safety Supplies & Equipment,Misc. general merchandise
Bukcinghamshire Council,30.09.2023,25.09.2023,"Planning, Growth & Sustainability",AH&R - PGS Dir,VITAL PARTS LTD,-0.02,0,-0.02,Security & Safety Supplies & Equipment,Misc. general merchandise
Bukcinghamshire Council,30.09.2023,25.09.2023,"Planning, Growth & Sustainability",AH&R - PGS Dir,EDMUNDSON ELECTRICAL,40.8,0,40.8,Special Projects,Electrical parts & equipment
Bukcinghamshire Council,30.09.2023,25.09.2023,"Planning, Growth & Sustainability",AH&R - PGS Dir,AMZNMKTPLACE,67.24,0,67.24,General Repairs & Maintenance,Miscellaneous retail
Bukcinghamshire Council,30.09.2023,25.09.2023,"Planning, Growth & Sustainability",AH&R - PGS Dir,TESCO STORES 2020,11.6,0,11.6,Purchase.of Refreshments and Food,Grocery stores
Bukcinghamshire Council,30.09.2023,25.09.2023,"Planning, Growth & Sustainability",AH&R - PGS Dir,B & Q 1305,10,0,10,General Repairs & Maintenance,Home supply warehouse stores
Bukcinghamshire Council,30.09.2023,25.09.2023,Deputy Chief Executive,AH&R- DCE Dir,AMZNMKTPLACE,30,0,30,Other Personal Needs,Miscellaneous retail
Bukcinghamshire Council,30.09.2023,25.09.2023,Communities,Climate Change & Environment - Community,WWW.SCREWFIX.COM,19.48,0,19.48,Equipment,Timber & building supplies
Bukcinghamshire Council,30.09.2023,25.09.2023,Children's Services,Education & Childrens Services - CS Dir,ASDA SUPERSTORE,157.09,0,157.09,General Provisions (Food),Grocery stores
Bukcinghamshire Council,30.09.2023,25.09.2023,Communities,Climate Change & Environment - Community,HELLOPRINT UNITED KINGDOM,126.71,0,126.71,Photocopiers,Photocopy & reproduction services
Bukcinghamshire Council,30.09.2023,25.09.2023,Children's Services,Education & Childrens Services - CS Dir,REZUMEUKLTD,144,0,144,Professional Services (non curriculum) - External,Consultants & public relation services
Bukcinghamshire Council,30.09.2023,25.09.2023,Children's Services,Education & Childrens Services - CS Dir,AMAZON* 204-2938663-78,10,0,10,Activities Programme,Misc. general merchandise
Bukcinghamshire Council,30.09.2023,25.09.2023,Communities,Transport - Communities Dir,AMZNMKTPLACE,10.88,0,10.88,Repair and Maintenance of Equipment,Miscellaneous retail
Bukcinghamshire Council,30.09.2023,25.09.2023,"Planning, Growth & Sustainability",AH&R - PGS Dir,DIGITAL ID,463.27,92.66,555.93,Administrative Equipment & Tools,"Computers, peripherals & software"
Bukcinghamshire Council,30.09.2023,25.09.2023,Deputy Chief Executive,Leader - DCE,FACEBK 5HV5EU3QN2,840,0,840,Advertising,Advertising services
Bukcinghamshire Council,30.09.2023,25.09.2023,Deputy Chief Executive,Leader - DCE,FACEBK *PFMPNRXG22,70,0,70,Advertising,Advertising services
Bukcinghamshire Council,30.09.2023,25.09.2023,Children's Services,Education & Childrens Services - CS Dir,WWW.ARGOS.CO.UK,312.95,0,312.95,Activities & General Recreation,Department stores
Bukcinghamshire Council,30.09.2023,25.09.2023,Children's Services,Education & Childrens Services - CS Dir,STUDENT ROOST,"1,637.13",0,"1,637.13",Leaving Care - Higher Education Supp,Estate Agents & Property Management
Bukcinghamshire Council,30.09.2023,25.09.2023,Children's Services,Education & Childrens Services - CS Dir,HALFORDS E.COMM,295,0,295,Leaving Care ? Financial Assistance One Off,Automotive parts & accessories
Bukcinghamshire Council,30.09.2023,25.09.2023,Adults and Health,Health & Wellbeing - Adults & Health Dir,TESCO STORES 5135,222.74,0,222.74,General Provisions (Food),Grocery stores
Bukcinghamshire Council,30.09.2023,25.09.2023,Communities,Communities - Trust Accounts,SIGNS EXPRESS SLOUGH,42,0,42,Photocopiers,Photocopy & reproduction services
Bukcinghamshire Council,30.09.2023,25.09.2023,Deputy Chief Executive,Leader - DCE,BRIGHTON SST,62,0,62,Staff Travelling Expenses,Passenger railways
Bukcinghamshire Council,30.09.2023,25.09.2023,"Planning, Growth & Sustainability",Housing & Homelessness & Regulatory PGS,AMZNMKTPLACE,42.9,0,42.9,Other General Office Expenses,Miscellaneous retail
Bukcinghamshire Council,30.09.2023,25.09.2023,Communities,Climate Change & Environment - Community,POST OFFICE COUNTER,6.85,0,6.85,General Postage,Postal services
Bukcinghamshire Council,30.09.2023,25.09.2023,Adults and Health,Health & Wellbeing - Adults & Health Dir,TESCO STORES 5135,99.79,0,99.79,Awaiting Coding,Grocery stores
Bukcinghamshire Council,30.09.2023,25.09.2023,Communities,Transport - Communities Dir,CJ'S LOCKSMITHS,15.95,0,15.95,Awaiting Coding,Misc. repair services
Bukcinghamshire Council,30.09.2023,25.09.2023,"Planning, Growth & Sustainability",Housing & Homelessness & Regulatory PGS,ROYAL MAIL ONLINE SHOP,150.4,0,150.4,General Postage,Postal services
Bukcinghamshire Council,30.09.2023,25.09.2023,Children's Services,Education & Childrens Services - CS Dir,GEN REGISTER OFFICE,11,0,11,Sec 20/31: Financial Assistance One Off,Government services
Bukcinghamshire Council,30.09.2023,25.09.2023,Children's Services,Education & Childrens Services - CS Dir,GEN REGISTER OFFICE,11,0,11,Sec 20/31: Financial Assistance One Off,Government services
Bukcinghamshire Council,30.09.2023,25.09.2023,Children's Services,Education & Childrens Services - CS Dir,GEN REGISTER OFFICE,11,0,11,Sec 20/31: Financial Assistance One Off,Government services
Bukcinghamshire Council,30.09.2023,25.09.2023,Children's Services,Education & Childrens Services - CS Dir,LYNKPAY* 001 TAXIS,-149.35,0,-149.35,Sec 20/31: Transport,
Bukcinghamshire Council,30.09.2023,25.09.2023,Children's Services,Education & Childrens Services - CS Dir,TRAINLINE,23.25,0,23.25,Leaving Care ? Financial Assistance One Off,Passenger railways
Bukcinghamshire Council,30.09.2023,25.09.2023,Deputy Chief Executive,AH&R- DCE Dir,PAYPAL,424.33,0,424.33,Awaiting Coding,Variety stores
Bukcinghamshire Council,30.09.2023,25.09.2023,Deputy Chief Executive,AH&R- DCE Dir,PAYPAL,142.95,0,142.95,Awaiting Coding,Variety stores
Bukcinghamshire Council,30.09.2023,25.09.2023,Deputy Chief Executive,AH&R- DCE Dir,PAYPAL,45.76,0,45.76,Staff Travelling Expenses,Taxicabs & limousines
Bukcinghamshire Council,30.09.2023,24.09.2023,"Planning, Growth & Sustainability",Climate Change & Environment - PGS,AMAZON* 204-1633873-49,23.98,0,23.98,Stationery & Office Supplies,Misc. general merchandise
Bukcinghamshire Council,30.09.2023,24.09.2023,Children's Services,Education & Childrens Services - CS Dir,AMZNMKTPLACE,42.98,0,42.98,Leaving Care - Higher Education Supp,Miscellaneous retail
Bukcinghamshire Council,30.09.2023,24.09.2023,Children's Services,Education & Childrens Services - CS Dir,AMZN DIGITAL,20,0,20,Activities & General Recreation,Miscellaneous retail
Bukcinghamshire Council,30.09.2023,24.09.2023,Communities,Culture & Leisure - Communities Dir,AMZNMKTPLACE,14.14,2.83,16.97,Events Expenditure,Miscellaneous retail
Bukcinghamshire Council,30.09.2023,24.09.2023,Children's Services,Education & Childrens Services - CS Dir,ASDA GROCERIES ONLINE,40.15,0,40.15,General Provisions (Food),Grocery stores
Bukcinghamshire Council,30.09.2023,24.09.2023,Children's Services,Education & Childrens Services - CS Dir,ASDA GROCERIES ONLINE,-2,0,-2,General Provisions (Food),Grocery stores
Bukcinghamshire Council,30.09.2023,24.09.2023,Children's Services,Education & Childrens Services - CS Dir,ACCESS HEMEL HEMPSTEAD,86,0,86,Sec 20/31: Financial Assistance,Warehousing
Bukcinghamshire Council,30.09.2023,24.09.2023,Communities,Culture & Leisure - Communities Dir,PITCHCARE,71.75,14.35,86.1,"Workshop - Materials,Tools & Equipment",Lawn & garden supply/nursery
Bukcinghamshire Council,30.09.2023,24.09.2023,Adults and Health,Health & Wellbeing - Adults & Health Dir,AMZNMKTPLACE,28.76,4.8,38.34,Other Supplies,Miscellaneous retail
Bukcinghamshire Council,30.09.2023,24.09.2023,Adults and Health,Health & Wellbeing - Adults & Health Dir,AMZNMKTPLACE,32.89,5.48,32.89,Stationery & Office Supplies,Miscellaneous retail
Bukcinghamshire Council,30.09.2023,24.09.2023,Children's Services,Education & Childrens Services - CS Dir,PAYPAL,24.96,0,24.96,Medical Supplies & Services inc Vet'nary,Medical & health services
Bukcinghamshire Council,30.09.2023,24.09.2023,Communities,Culture & Leisure - Communities Dir,EBAY O*02-10583-47627,-27.49,0,-27.49,"Workshop - Materials,Tools & Equipment",Department stores
Bukcinghamshire Council,30.09.2023,23.09.2023,Children's Services,Education & Childrens Services - CS Dir,AMZNMKTPLACE,37.99,0,37.99,Leaving Care - Higher Education Supp,Miscellaneous retail
Bukcinghamshire Council,30.09.2023,23.09.2023,Children's Services,Education & Childrens Services - CS Dir,SPORTSDIRECT 210,53.99,0,53.99,Other Personal Needs,Sporting goods shops
Bukcinghamshire Council,30.09.2023,23.09.2023,Children's Services,Education & Childrens Services - CS Dir,SPORTSDIRECT 210,191,0,191,Other Personal Needs,Sporting goods shops
Bukcinghamshire Council,30.09.2023,23.09.2023,Communities,Culture & Leisure - Communities Dir,AMZNMKTPLACE,83.11,16.63,99.74,"Workshop - Materials,Tools & Equipment",Miscellaneous retail
Bukcinghamshire Council,30.09.2023,23.09.2023,Deputy Chief Executive,Leader - DCE,TIMES NEWSPAPERS LTD,26,0,26,"Books, Records, Films & Oth Publications","Books, periodicals & newspapers"
Bukcinghamshire Council,30.09.2023,23.09.2023,Deputy Chief Executive,Leader - DCE,TELEGRAPH SUBSCRIPTION,14.99,0,14.99,Stationery & Office Supplies,Continuous subscriptions
Bukcinghamshire Council,30.09.2023,23.09.2023,Resources,AH&R - Res Dir,LINKEDIN ADS 9446382414,44.68,0,44.68,Permanent Recruitment Costs,Advertising services
Bukcinghamshire Council,30.09.2023,23.09.2023,Resources,AH&R - Res Dir,TEAMGANTT,49.68,0,49.68,Computer Consumables,"Computers, peripherals & software"
Bukcinghamshire Council,30.09.2023,23.09.2023,"Planning, Growth & Sustainability",Climate Change & Environment - PGS,AMZNMKTPLACE,59.98,0,59.98,Grants to External Bodies,Miscellaneous retail
Bukcinghamshire Council,30.09.2023,22.09.2023,Resources,AH&R - Res Dir,AMZNMktplace,25.98,0,25.98,Awaiting Coding,Miscellaneous retail
Bukcinghamshire Council,30.09.2023,22.09.2023,Communities,Transport - Communities Dir,AMZNMKTPLACE,33.4,0,33.4,"Maps, Plans & Drawing Office Materials",Miscellaneous retail
Bukcinghamshire Council,30.09.2023,22.09.2023,Deputy Chief Executive,AH&R- DCE Dir,PAYPAL,239.74,0,239.74,Awaiting Coding,Variety stores
Bukcinghamshire Council,30.09.2023,22.09.2023,Deputy Chief Executive,AH&R- DCE Dir,PAYPAL,367.95,0,367.95,Awaiting Coding,Variety stores
Bukcinghamshire Council,30.09.2023,22.09.2023,Deputy Chief Executive,AH&R- DCE Dir,PAYPAL,408.2,0,408.2,Awaiting Coding,Variety stores
Bukcinghamshire Council,30.09.2023,22.09.2023,Children's Services,Education & Childrens Services - CS Dir,LYNKPAY* 001 TAXIS,149.35,0,149.35,Sec 20/31: Transport,
Bukcinghamshire Council,30.09.2023,22.09.2023,"Planning, Growth & Sustainability",Housing & Homelessness & Regulatory PGS,LEAVINGCARD.COM,10.34,0,10.34,Administrative Equipment & Tools,
Bukcinghamshire Council,30.09.2023,22.09.2023,Deputy Chief Executive,Communities - DCE,AO RETAIL LIMITED,757.49,151.51,909,Other Personal Needs,Household appliance stores
Bukcinghamshire Council,30.09.2023,22.09.2023,Deputy Chief Executive,Communities - DCE,WWW.ARGOS.CO.UK,274.1,54.82,328.92,Other Personal Needs,Department stores
Bukcinghamshire Council,30.09.2023,22.09.2023,Deputy Chief Executive,Communities - DCE,WWW.ARGOS.CO.UK,0.03,0,0.03,Other Personal Needs,Department stores
Bukcinghamshire Council,30.09.2023,22.09.2023,Deputy Chief Executive,Communities - DCE,WWW.ARGOS.CO.UK,621.6,124.32,745.92,Other Personal Needs,Department stores
Bukcinghamshire Council,30.09.2023,22.09.2023,Deputy Chief Executive,Communities - DCE,WWW.ARGOS.CO.UK,0.03,0,0.03,Other Personal Needs,Department stores
Bukcinghamshire Council,30.09.2023,22.09.2023,Children's Services,Education & Childrens Services - CS Dir,PAYPAL,135,0,135,Leaving Care - Grants for Care Leavers,Variety stores
Bukcinghamshire Council,30.09.2023,22.09.2023,Children's Services,Education & Childrens Services - CS Dir,PAYPAL,77.77,0,77.77,Leaving Care - Grants for Care Leavers,Variety stores
Bukcinghamshire Council,30.09.2023,22.09.2023,Children's Services,Education & Childrens Services - CS Dir,HIGH SPEED TRAINING,62.4,0,62.4,Miscellaneous (Other)  Expenses,Schools
Bukcinghamshire Council,30.09.2023,22.09.2023,Children's Services,Education & Childrens Services - CS Dir,M AQUATICS AYLESBURY,-62.99,0,-62.99,Repair and Maintenance of Equipment,"Pet shops, food & supply"
Bukcinghamshire Council,30.09.2023,22.09.2023,"Planning, Growth & Sustainability",Housing & Homelessness & Regulatory PGS,ROYAL MAIL GROUP LTD,8.19,0,8.19,Burial Costs,Postal services
Bukcinghamshire Council,30.09.2023,22.09.2023,"Planning, Growth & Sustainability",AH&R - PGS Dir,WICKES AYLESBURY,27.1,0,27.1,Other Equipment and Materials,Timber & building supplies
Bukcinghamshire Council,30.09.2023,22.09.2023,Deputy Chief Executive,Communities - DCE,DISCLOSURE & BARRING,13,0,13,Miscellaneous (Other)  Expenses,Government services
Bukcinghamshire Council,30.09.2023,22.09.2023,Resources,AH&R - Res Dir,ROYAL MAIL GROUP LTD,11.65,0,11.65,General Postage,Postal services
Bukcinghamshire Council,30.09.2023,22.09.2023,Children's Services,Education & Childrens Services - CS Dir,TRAINLINE,147.16,0,147.16,Sec 20/31: Transport,Passenger railways
Bukcinghamshire Council,30.09.2023,22.09.2023,"Planning, Growth & Sustainability",AH&R - PGS Dir,WWW.SCREWFIX.COM,84.45,0,84.45,Equipment,Timber & building supplies
Bukcinghamshire Council,30.09.2023,22.09.2023,Communities,Culture & Leisure - Communities Dir,AMZNMKTPLACE,58.2,11.64,69.84,Events Expenditure,Miscellaneous retail
Bukcinghamshire Council,30.09.2023,22.09.2023,Communities,Culture & Leisure - Communities Dir,AMZNMKTPLACE,0.06,0,0.06,Events Expenditure,Miscellaneous retail
Bukcinghamshire Council,30.09.2023,22.09.2023,Communities,Culture & Leisure - Communities Dir,AMZNMKTPLACE,15.35,3.07,18.42,Events Expenditure,Miscellaneous retail
Bukcinghamshire Council,30.09.2023,22.09.2023,Communities,Culture & Leisure - Communities Dir,AMZNMKTPLACE,0.01,0,0.01,Events Expenditure,Miscellaneous retail
Bukcinghamshire Council,30.09.2023,22.09.2023,Communities,Culture & Leisure - Communities Dir,AMZNMKTPLACE,107.9,21.58,129.48,Events Expenditure,Miscellaneous retail
Bukcinghamshire Council,30.09.2023,22.09.2023,Communities,Culture & Leisure - Communities Dir,AMZNMKTPLACE,0.03,0,0.03,Events Expenditure,Miscellaneous retail
Bukcinghamshire Council,30.09.2023,22.09.2023,Children's Services,Education & Childrens Services - CS Dir,AMAZON* 204-1401445-99,25.62,0,25.62,"Books, Records, Films & Oth Publications",Misc. general merchandise
Bukcinghamshire Council,30.09.2023,22.09.2023,Children's Services,Education & Childrens Services - CS Dir,AMZNMKTPLACE,46.68,0,46.68,"Books, Records, Films & Oth Publications",Miscellaneous retail
Bukcinghamshire Council,30.09.2023,22.09.2023,Children's Services,Education & Childrens Services - CS Dir,ASDA SUPERSTORE,98.49,0,98.49,General Provisions (Food),Grocery stores
Bukcinghamshire Council,30.09.2023,22.09.2023,"Planning, Growth & Sustainability",AH&R - PGS Dir,LONDIS,10.2,0,10.2,General Provisions (Food),Sweets & confectionary
Bukcinghamshire Council,30.09.2023,22.09.2023,Children's Services,Education & Childrens Services - CS Dir,MAMAS & PAPAS (DIGITAL,499.95,0,499.95,Equipment (including storage),Children/infants shops
Bukcinghamshire Council,30.09.2023,22.09.2023,Children's Services,Education & Childrens Services - CS Dir,TESCO STORES 5927,3.5,0,3.5,General Provisions (Food),Grocery stores
Bukcinghamshire Council,30.09.2023,22.09.2023,Children's Services,Education & Childrens Services - CS Dir,BUCKINGHAMSHIRE CNCL,11,0,11,Sec 20/31: Financial Assistance One Off,Government services
Bukcinghamshire Council,30.09.2023,22.09.2023,Communities,Communities - Trust Accounts,WICKES SLOUGH,80.5,0,80.5,General Repairs & Maintenance,Timber & building supplies
Bukcinghamshire Council,30.09.2023,22.09.2023,Communities,Communities - Trust Accounts,SELCO TRADING CTR,25.74,0,25.74,General Repairs & Maintenance,Timber & building supplies
Bukcinghamshire Council,30.09.2023,22.09.2023,Communities,Communities - Trust Accounts,BOOKER LTD - 38531354,568.28,0,568.28,Awaiting Coding,Grocery stores
Bukcinghamshire Council,30.09.2023,22.09.2023,Communities,Communities - Trust Accounts,BOOKER LTD - 38531354,42.87,0,42.87,Awaiting Coding,Grocery stores
Bukcinghamshire Council,30.09.2023,22.09.2023,Children's Services,Education & Childrens Services - CS Dir,AMZNMKTPLACE,29.99,0,29.99,IT Equipment Purchase,Miscellaneous retail
Bukcinghamshire Council,30.09.2023,22.09.2023,Communities,Culture & Leisure - Communities Dir,MRS DAWN HEASLEY & MR,420,0,420,"Courses, Conference and Seminar Fees",Vocational & trade schools
Bukcinghamshire Council,30.09.2023,22.09.2023,Children's Services,Education & Childrens Services - CS Dir,AMZNMKTPLACE,93.56,0,93.56,Consumable Supplies,Miscellaneous retail
Bukcinghamshire Council,30.09.2023,22.09.2023,Adults and Health,Health & Wellbeing - Adults & Health Dir,WM MORRISONS STORE,4,0,4,Awaiting Coding,Grocery stores
Bukcinghamshire Council,30.09.2023,21.09.2023,Communities,Climate Change & Environment - Community,AMZNMktplace,24.98,0,24.98,Awaiting Coding,Miscellaneous retail
Bukcinghamshire Council,30.09.2023,21.09.2023,"Planning, Growth & Sustainability",Housing & Homelessness & Regulatory PGS,ROYAL MAIL ONLINE SHOP,55,0,55,Administrative Equipment & Tools,Postal services
Bukcinghamshire Council,30.09.2023,21.09.2023,"Planning, Growth & Sustainability",Housing & Homelessness & Regulatory PGS,ROYAL MAIL ONLINE SHOP,80,0,80,Administrative Equipment & Tools,Postal services
Bukcinghamshire Council,30.09.2023,21.09.2023,"Planning, Growth & Sustainability",Housing & Homelessness & Regulatory PGS,PREMIER INN,580.5,0,580.5,"Courses, Conference and Seminar Fees",Premier Inn
Bukcinghamshire Council,30.09.2023,21.09.2023,"Planning, Growth & Sustainability",Climate Change & Environment - PGS,AMZNMKTPLACE,52.86,0,52.86,Stationery & Office Supplies,Miscellaneous retail
Bukcinghamshire Council,30.09.2023,21.09.2023,Deputy Chief Executive,Communities - DCE,AO RETAIL LIMITED,199.16,39.84,239,Other Personal Needs,Household appliance stores
Bukcinghamshire Council,30.09.2023,21.09.2023,Deputy Chief Executive,Communities - DCE,LONGMOOR FARM ENTERPRISES,101.9,0,101.9,Other Personal Needs,Lawn & garden supply/nursery
Bukcinghamshire Council,30.09.2023,21.09.2023,Children's Services,Education & Childrens Services - CS Dir,WWW.ARGOS.CO.UK,20.95,0,20.95,Leaving Care - Grants for Care Leavers,Department stores
Bukcinghamshire Council,30.09.2023,21.09.2023,Children's Services,Education & Childrens Services - CS Dir,FS *TECHSMITH,51.16,0,51.16,Computer Software Licences & Purchase,Computer software stores
Bukcinghamshire Council,30.09.2023,21.09.2023,Children's Services,Education & Childrens Services - CS Dir,Amazon.co.uk,7.75,0,7.75,Stationery & Office Supplies,Direct sales companies
Bukcinghamshire Council,30.09.2023,21.09.2023,Children's Services,Education & Childrens Services - CS Dir,Amazon.co.uk,7.75,0,7.75,Stationery & Office Supplies,Direct sales companies
Bukcinghamshire Council,30.09.2023,21.09.2023,Children's Services,Education & Childrens Services - CS Dir,Amazon.co.uk,7.25,0,7.25,Stationery & Office Supplies,Direct sales companies
Bukcinghamshire Council,30.09.2023,21.09.2023,Children's Services,Education & Childrens Services - CS Dir,Amazon.co.uk,3.99,0,3.99,Stationery & Office Supplies,Direct sales companies
Bukcinghamshire Council,30.09.2023,21.09.2023,Children's Services,Education & Childrens Services - CS Dir,Amazon.co.uk,7.75,0,7.75,Stationery & Office Supplies,Direct sales companies
Bukcinghamshire Council,30.09.2023,21.09.2023,Children's Services,Education & Childrens Services - CS Dir,AMZNMktplace,16.39,0,16.39,Awaiting Coding,Miscellaneous retail
Bukcinghamshire Council,30.09.2023,21.09.2023,Children's Services,Education & Childrens Services - CS Dir,AMZNMktplace,29.85,0,29.85,Awaiting Coding,Miscellaneous retail
Bukcinghamshire Council,30.09.2023,21.09.2023,Deputy Chief Executive,Communities - DCE,AO RETAIL LIMITED,730,146,876,Other Personal Needs,Household appliance stores
Bukcinghamshire Council,30.09.2023,21.09.2023,Deputy Chief Executive,Communities - DCE,AO RETAIL LIMITED,2,0,2,Other Personal Needs,Household appliance stores
Bukcinghamshire Council,30.09.2023,21.09.2023,Deputy Chief Executive,Communities - DCE,AO RETAIL LIMITED,265,53,318,Other Personal Needs,Household appliance stores
Bukcinghamshire Council,30.09.2023,21.09.2023,Deputy Chief Executive,Communities - DCE,AO RETAIL LIMITED,50,0,50,Other Personal Needs,Household appliance stores
Bukcinghamshire Council,30.09.2023,21.09.2023,Deputy Chief Executive,Communities - DCE,WWW.ARGOS.CO.UK,224.1,44.82,268.92,Other Personal Needs,Department stores
Bukcinghamshire Council,30.09.2023,21.09.2023,Deputy Chief Executive,Communities - DCE,WWW.ARGOS.CO.UK,0.03,0,0.03,Other Personal Needs,Department stores
Bukcinghamshire Council,30.09.2023,21.09.2023,Children's Services,Education & Childrens Services - CS Dir,TRAVELODGE GB0000,56.08,0,56.08,"Courses, Conference and Seminar Fees",Travelodge
Bukcinghamshire Council,30.09.2023,21.09.2023,Children's Services,Education & Childrens Services - CS Dir,FIRST BUS - WEB,72,0,72,Staff Travelling Expenses,"Buses, charter & tour"
Bukcinghamshire Council,30.09.2023,21.09.2023,Communities,Transport - Communities Dir,KWIK FIT,519.96,0,519.96,Vehicle Hire,Auto servicing
Bukcinghamshire Council,30.09.2023,21.09.2023,Deputy Chief Executive,AH&R- DCE Dir,ONLINEMEDICALSERVI,59.9,0,59.9,Legal Fees,Chemists & pharmacies
Bukcinghamshire Council,30.09.2023,21.09.2023,Deputy Chief Executive,AH&R- DCE Dir,ONLINEMEDICALSERVI,59.9,0,59.9,Legal Fees,Chemists & pharmacies
Bukcinghamshire Council,30.09.2023,21.09.2023,Children's Services,Education & Childrens Services - CS Dir,CORAMBAAF,93.3,0,93.3,Miscellaneous (Other)  Expenses,
Bukcinghamshire Council,30.09.2023,21.09.2023,"Planning, Growth & Sustainability",AH&R - PGS Dir,SCREWFIX DIR LTD,18.47,0,18.47,Other Equipment and Materials,Timber & building supplies
Bukcinghamshire Council,30.09.2023,21.09.2023,Adults and Health,Communities - Adults & Health,S S FOOD & WINE,13.85,0,13.85,Project Funding,Misc Food stores
Bukcinghamshire Council,30.09.2023,21.09.2023,Communities,Climate Change & Environment - Community,TRAVELODGE GB0000,68.32,0,68.32,Course Fees & Post Entry Training,Travelodge
Bukcinghamshire Council,30.09.2023,21.09.2023,Adults and Health,Health & Wellbeing - Adults & Health Dir,LIDL GB  HIGH WYCOMBE,7.8,0,7.8,Awaiting Coding,Grocery stores
Bukcinghamshire Council,30.09.2023,21.09.2023,Communities,Transport - Communities Dir,EURO CAR PARKS LTD,100,0,100,Staff Travelling Expenses,Car parking & garages
Bukcinghamshire Council,30.09.2023,21.09.2023,Children's Services,Education & Childrens Services - CS Dir,AMAZON.CO.UK,4.95,0,4.95,Stationery & Office Supplies,Direct sales companies
Bukcinghamshire Council,30.09.2023,21.09.2023,Deputy Chief Executive,Communities - DCE,MURSLEY FREE RANGE EGG,3.5,0,3.5,General Provisions (Food),Misc Food stores
Bukcinghamshire Council,30.09.2023,21.09.2023,Adults and Health,Health & Wellbeing - Adults & Health Dir,TRAVELODGE GB0000,383.95,0,383.95,Other Short Term Support,Travelodge
Bukcinghamshire Council,30.09.2023,21.09.2023,Children's Services,Education & Childrens Services - CS Dir,CORAMBAAF,150,0,150,"Courses, Conference and Seminar Fees",
Bukcinghamshire Council,30.09.2023,21.09.2023,Communities,Climate Change & Environment - Community,HELLOPRINT UNITED KINGDOM,685.15,0,685.15,Photocopiers,Photocopy & reproduction services
Bukcinghamshire Council,30.09.2023,21.09.2023,Resources,AH&R - Res Dir,AMZNMKTPLACE,26.85,0,26.85,Computer Consumables,Miscellaneous retail
Bukcinghamshire Council,30.09.2023,21.09.2023,Children's Services,Education & Childrens Services - CS Dir,WWW.SNBBOUTIQUE.CO.UK,100,0,100,Support for Foster Carers,Miscellaneous retail
Bukcinghamshire Council,30.09.2023,21.09.2023,Adults and Health,Communities - Adults & Health,HOBBYCRAFT,18.1,0,18.1,Project Funding,Art & craft shops
Bukcinghamshire Council,30.09.2023,21.09.2023,Children's Services,Education & Childrens Services - CS Dir,A1 TAXI SERVICE,84,0,84,Leaving Care - Transport,Taxicabs & limousines
Bukcinghamshire Council,30.09.2023,21.09.2023,Children's Services,Education & Childrens Services - CS Dir,WWW.BLOOMANDWILD.COM,22.5,0,22.5,Equipment (including storage),Florists
Bukcinghamshire Council,30.09.2023,21.09.2023,Children's Services,Education & Childrens Services - CS Dir,CPD ONLINE COLLEGE,48,0,48,Health & Safety Supplies & Services,Schools
Bukcinghamshire Council,30.09.2023,21.09.2023,Adults and Health,Health & Wellbeing - Adults & Health Dir,ASDA GROCERIES ONLINE,49.53,0,49.53,General Provisions (Food),Grocery stores
Bukcinghamshire Council,30.09.2023,21.09.2023,Resources,AH&R - Res Dir,AMZNMKTPLACE,68.15,0,68.15,Equipment for Homeworking,Miscellaneous retail
Bukcinghamshire Council,30.09.2023,21.09.2023,Children's Services,Education & Childrens Services - CS Dir,NEALES TAXIS LTD,500,0,500,Sec 20/31: Transport,Taxicabs & limousines
Bukcinghamshire Council,30.09.2023,21.09.2023,Deputy Chief Executive,AH&R- DCE Dir,PAYPAL,123.24,0,123.24,Awaiting Coding,Variety stores
Bukcinghamshire Council,30.09.2023,21.09.2023,Deputy Chief Executive,AH&R- DCE Dir,PAYPAL,939.95,0,939.95,Awaiting Coding,Variety stores
Bukcinghamshire Council,30.09.2023,21.09.2023,"Planning, Growth & Sustainability",Housing & Homelessness & Regulatory PGS,HOLIDAY INN AYLESB,149.38,0,149.38,Homelessness,"Hotels, motels & resorts"
Bukcinghamshire Council,30.09.2023,20.09.2023,Deputy Chief Executive,AH&R- DCE Dir,PAYPAL,-722.95,0,-722.95,Awaiting Coding,Variety stores
Bukcinghamshire Council,30.09.2023,20.09.2023,Deputy Chief Executive,AH&R- DCE Dir,PAYPAL,-70,0,-70,Awaiting Coding,Variety stores
Bukcinghamshire Council,30.09.2023,20.09.2023,Deputy Chief Executive,AH&R- DCE Dir,PAYPAL,-222.7,0,-222.7,Awaiting Coding,Variety stores
Bukcinghamshire Council,30.09.2023,20.09.2023,"Planning, Growth & Sustainability",Climate Change & Environment - PGS,AMZNMKTPLACE,13.99,0,13.99,Stationery & Office Supplies,Miscellaneous retail
Bukcinghamshire Council,30.09.2023,20.09.2023,Children's Services,Education & Childrens Services - CS Dir,BUCKINGHAMSHIRE CNCL,11,0,11,Sec 20/31: Financial Assistance,Government services
Bukcinghamshire Council,30.09.2023,20.09.2023,Deputy Chief Executive,Communities - DCE,WWW.ARGOS.CO.UK,44.1,8.82,52.92,Other Personal Needs,Department stores
Bukcinghamshire Council,30.09.2023,20.09.2023,Deputy Chief Executive,Communities - DCE,WWW.ARGOS.CO.UK,0.03,0,0.03,Other Personal Needs,Department stores
Bukcinghamshire Council,30.09.2023,20.09.2023,Deputy Chief Executive,Communities - DCE,AO RETAIL LIMITED,464.99,93.01,558,Other Personal Needs,Household appliance stores
Bukcinghamshire Council,30.09.2023,20.09.2023,Deputy Chief Executive,Communities - DCE,WWW.ARGOS.CO.UK,224.1,44.82,268.92,Other Personal Needs,Department stores
Bukcinghamshire Council,30.09.2023,20.09.2023,Deputy Chief Executive,Communities - DCE,WWW.ARGOS.CO.UK,0.03,0,0.03,Other Personal Needs,Department stores
Bukcinghamshire Council,30.09.2023,20.09.2023,Deputy Chief Executive,Communities - DCE,AO RETAIL LIMITED,519.16,103.84,623,Other Personal Needs,Household appliance stores
Bukcinghamshire Council,30.09.2023,20.09.2023,Children's Services,Education & Childrens Services - CS Dir,WWW.ARGOS.CO.UK,18,0,18,Leaving Care - Grants for Care Leavers,Department stores
Bukcinghamshire Council,30.09.2023,20.09.2023,Children's Services,Education & Childrens Services - CS Dir,WWW.ARGOS.CO.UK,-18,0,-18,Leaving Care - Grants for Care Leavers,Department stores
Bukcinghamshire Council,30.09.2023,20.09.2023,Resources,AH&R - Res Dir,ROYAL MAIL FEES,570,0,570,General Postage,Postal services
Bukcinghamshire Council,30.09.2023,20.09.2023,Communities,Culture & Leisure - Communities Dir,EBAY COMMERCE UK LTD,4.99,0,4.99,"Workshop - Materials,Tools & Equipment",Department stores
Bukcinghamshire Council,30.09.2023,20.09.2023,Communities,Culture & Leisure - Communities Dir,AMZNMKTPLACE,31.32,6.27,37.59,"Workshop - Materials,Tools & Equipment",Miscellaneous retail
Bukcinghamshire Council,30.09.2023,20.09.2023,Communities,Culture & Leisure - Communities Dir,AMZNMKTPLACE,0.06,0,0.06,"Workshop - Materials,Tools & Equipment",Miscellaneous retail
Bukcinghamshire Council,30.09.2023,20.09.2023,Communities,Culture & Leisure - Communities Dir,EBAY O*06-10563-65770,8.87,0,8.87,"Workshop - Materials,Tools & Equipment",Department stores
Bukcinghamshire Council,30.09.2023,20.09.2023,Resources,AH&R - Res Dir,NEALES TAXIS LTD,24,0,24,Staff Travelling Expenses,Taxicabs & limousines
Bukcinghamshire Council,30.09.2023,20.09.2023,Children's Services,Education & Childrens Services - CS Dir,SumUp  *Cabs4u,20,0,20,Staff Travelling Expenses,Taxicabs & limousines
Bukcinghamshire Council,30.09.2023,20.09.2023,Children's Services,Education & Childrens Services - CS Dir,SUMUP  *CABS4U,200,0,200,Sec 20/31: Transport,Taxicabs & limousines
Bukcinghamshire Council,30.09.2023,20.09.2023,Communities,Partnerships - Communities,CAR PARK CHARGES,1.6,0,1.6,Miscellaneous (Other)  Expenses,Car parking & garages
Bukcinghamshire Council,30.09.2023,20.09.2023,Communities,Housing & Homelessness & Regulatory Comm,TAYNA LTD,29.48,0,29.48,Maintenance of Grounds,Automotive parts & accessories
Bukcinghamshire Council,30.09.2023,20.09.2023,"Planning, Growth & Sustainability",AH&R - PGS Dir,VITAL PARTS LTD,23.96,0,23.96,Awaiting Coding,Misc. general merchandise
Bukcinghamshire Council,30.09.2023,20.09.2023,Resources,AH&R - Res Dir,RINGGO PARKING,0.8,0,0.8,Staff Travelling Expenses,Car parking & garages
Bukcinghamshire Council,30.09.2023,20.09.2023,Adults and Health,Communities - Adults & Health,WM MORRISONS STORE,33.47,0,33.47,Project Funding,Grocery stores
Bukcinghamshire Council,30.09.2023,20.09.2023,Adults and Health,Communities - Adults & Health,POUNDLAND LTD - 2492,14.5,0,14.5,Project Funding,Discount stores
Bukcinghamshire Council,30.09.2023,20.09.2023,Communities,Culture & Leisure - Communities Dir,AMZNMKTPLACE,25.93,5.19,31.12,"Workshop - Materials,Tools & Equipment",Miscellaneous retail
Bukcinghamshire Council,30.09.2023,20.09.2023,Communities,Culture & Leisure - Communities Dir,AMZNMKTPLACE,70.7,14.14,84.84,"Workshop - Materials,Tools & Equipment",Miscellaneous retail
Bukcinghamshire Council,30.09.2023,20.09.2023,Communities,Climate Change & Environment - Community,TESCO STORES 2041,11.75,0,11.75,Equipment,Grocery stores
Bukcinghamshire Council,30.09.2023,20.09.2023,Deputy Chief Executive,Communities - DCE,RINGGO PARKING,0.95,0,0.95,Staff Travelling Expenses,Car parking & garages
Bukcinghamshire Council,30.09.2023,20.09.2023,Children's Services,Education & Childrens Services - CS Dir,WWW.SCREWFIX.COM,39.99,0,39.99,Miscellaneous (Other)  Expenses,Timber & building supplies
Bukcinghamshire Council,30.09.2023,20.09.2023,Children's Services,Education & Childrens Services - CS Dir,ASDA SUPERSTORE,8.3,0,8.3,General Provisions (Food),Grocery stores
Bukcinghamshire Council,30.09.2023,20.09.2023,Communities,Climate Change & Environment - Community,AMZNMKTPLACE,28.96,0,28.96,Stationery & Office Supplies,Miscellaneous retail
Bukcinghamshire Council,30.09.2023,20.09.2023,Communities,Climate Change & Environment - Community,HOBAN SKIPS,314.16,0,314.16,General Repairs & Maintenance,Utilities
Bukcinghamshire Council,30.09.2023,20.09.2023,Communities,Climate Change & Environment - Community,PAYPAL,65.15,0,65.15,Advertising,Advertising services
Bukcinghamshire Council,30.09.2023,20.09.2023,Children's Services,Education & Childrens Services - CS Dir,HOLIDAY INN EXPRESS,26.5,0,26.5,"Courses, Conference and Seminar Fees","Hotels, motels & resorts"
Bukcinghamshire Council,30.09.2023,20.09.2023,Children's Services,Education & Childrens Services - CS Dir,ODEON AYLESBURY,4.3,0,4.3,Awaiting Coding,Cinemas
Bukcinghamshire Council,30.09.2023,20.09.2023,Adults and Health,Health & Wellbeing - Adults & Health Dir,ASDA GROCERIES ONLINE,-13.5,0,-13.5,Awaiting Coding,Grocery stores
Bukcinghamshire Council,30.09.2023,20.09.2023,Deputy Chief Executive,AH&R- DCE Dir,MILLER & CARTER,92.03,0,92.03,"Courses, Conference and Seminar Fees",Restaurants
Bukcinghamshire Council,30.09.2023,20.09.2023,Children's Services,Education & Childrens Services - CS Dir,HELLO STUDENT,978.6,0,978.6,Leaving Care - Higher Education Supp,Estate Agents & Property Management
Bukcinghamshire Council,30.09.2023,20.09.2023,Children's Services,Education & Childrens Services - CS Dir,AMZNMKTPLACE,7.99,0,7.99,Activities & General Recreation,Miscellaneous retail
Bukcinghamshire Council,30.09.2023,20.09.2023,Children's Services,Education & Childrens Services - CS Dir,AMZNMKTPLACE,28.14,0,28.14,Activities & General Recreation,Miscellaneous retail
Bukcinghamshire Council,30.09.2023,20.09.2023,Children's Services,Education & Childrens Services - CS Dir,AMZNMKTPLACE,13.98,0,13.98,Activities & General Recreation,Miscellaneous retail
Bukcinghamshire Council,30.09.2023,20.09.2023,Children's Services,Education & Childrens Services - CS Dir,AELP.ORG.UK,82.8,0,82.8,Training (Inc. Health & Safety Courses),Schools
Bukcinghamshire Council,30.09.2023,20.09.2023,Children's Services,Education & Childrens Services - CS Dir,WWW.EVERYONEACTIVE.COM,13.5,0,13.5,General Provisions (Food),Sport & recreational camps
Bukcinghamshire Council,30.09.2023,20.09.2023,Children's Services,Education & Childrens Services - CS Dir,TESCO STORES 2020,28.56,0,28.56,Activities Programme,Grocery stores
Bukcinghamshire Council,30.09.2023,20.09.2023,Children's Services,Education & Childrens Services - CS Dir,TESCO STORES 2020,1.25,0,1.25,Activities Programme,Grocery stores
Bukcinghamshire Council,30.09.2023,20.09.2023,Communities,Culture & Leisure - Communities Dir,SAINSBURY S S/MKTS,4.2,0,4.2,Other Catering Supplies,Grocery stores
Bukcinghamshire Council,30.09.2023,20.09.2023,Adults and Health,Health & Wellbeing - Adults & Health Dir,CARTRIDGEPEOPLE.COM,177.4,35.48,212.88,Other General Office Expenses,Stationery & office supplies
Bukcinghamshire Council,30.09.2023,20.09.2023,Adults and Health,Health & Wellbeing - Adults & Health Dir,CARTRIDGEPEOPLE.COM,0.01,0,0.01,Other General Office Expenses,Stationery & office supplies
Bukcinghamshire Council,30.09.2023,20.09.2023,Adults and Health,Health & Wellbeing - Adults & Health Dir,AMZNMKTPLACE,106.58,21.32,127.9,Other General Office Expenses,Miscellaneous retail
Bukcinghamshire Council,30.09.2023,20.09.2023,Communities,Culture & Leisure - Communities Dir,EBAY O*17-10557-15371,5.15,0,5.15,"Workshop - Materials,Tools & Equipment",Department stores
Bukcinghamshire Council,30.09.2023,20.09.2023,Communities,Culture & Leisure - Communities Dir,EBAY O*17-10557-15372,2.25,0,2.25,"Workshop - Materials,Tools & Equipment",Department stores
Bukcinghamshire Council,30.09.2023,20.09.2023,Children's Services,Education & Childrens Services - CS Dir,TRAINLINE,147.26,0,147.26,Sec 20/31: Supp for Contact,Passenger railways
Bukcinghamshire Council,30.09.2023,20.09.2023,Children's Services,Education & Childrens Services - CS Dir,AMZNMKTPLACE,7.49,0,7.49,Miscellaneous (Other)  Expenses,Miscellaneous retail
Bukcinghamshire Council,30.09.2023,20.09.2023,Communities,Transport - Communities Dir,AMZNMktplace,43.99,0,43.99,Awaiting Coding,Miscellaneous retail
Bukcinghamshire Council,30.09.2023,20.09.2023,Deputy Chief Executive,AH&R- DCE Dir,PAYPAL,902,0,902,Awaiting Coding,Electronics shops
Bukcinghamshire Council,30.09.2023,20.09.2023,Deputy Chief Executive,AH&R- DCE Dir,PAYPAL,902,0,902,Awaiting Coding,Electronics shops
Bukcinghamshire Council,30.09.2023,20.09.2023,Communities,Culture & Leisure - Communities Dir,PAYPAL,29.9,5.98,35.88,"Workshop - Materials,Tools & Equipment",Misc Durable goods
Bukcinghamshire Council,30.09.2023,20.09.2023,Communities,Culture & Leisure - Communities Dir,PAYPAL,0.04,0,0.04,"Workshop - Materials,Tools & Equipment",Misc Durable goods
Bukcinghamshire Council,30.09.2023,20.09.2023,Communities,Culture & Leisure - Communities Dir,PAYPAL,27.49,0,27.49,"Workshop - Materials,Tools & Equipment",Misc Durable goods
Bukcinghamshire Council,30.09.2023,19.09.2023,Children's Services,Education & Childrens Services - CS Dir,TRAINLINE,45.72,0,45.72,Sec 20/31: Supp for Contact,Passenger railways
Bukcinghamshire Council,30.09.2023,19.09.2023,Children's Services,Education & Childrens Services - CS Dir,TRAINLINE,19.14,0,19.14,Sec 20/31: Supp for Contact,Passenger railways
Bukcinghamshire Council,30.09.2023,19.09.2023,Communities,Transport - Communities Dir,FITCHS SERVICE STATION,4.22,0,4.22,Petrol,Service stations
Bukcinghamshire Council,30.09.2023,19.09.2023,Deputy Chief Executive,AH&R- DCE Dir,PAYPAL,142.95,0,142.95,Awaiting Coding,Variety stores
Bukcinghamshire Council,30.09.2023,19.09.2023,Deputy Chief Executive,AH&R- DCE Dir,PAYPAL,279,0,279,Awaiting Coding,Electronics shops
Bukcinghamshire Council,30.09.2023,19.09.2023,Deputy Chief Executive,AH&R- DCE Dir,PAYPAL,142.95,0,142.95,Awaiting Coding,Variety stores
Bukcinghamshire Council,30.09.2023,19.09.2023,Deputy Chief Executive,AH&R- DCE Dir,PAYPAL,328.99,0,328.99,Awaiting Coding,Variety stores
Bukcinghamshire Council,30.09.2023,19.09.2023,Deputy Chief Executive,AH&R- DCE Dir,PAYPAL,607.95,0,607.95,Awaiting Coding,Variety stores
Bukcinghamshire Council,30.09.2023,19.09.2023,Deputy Chief Executive,AH&R- DCE Dir,PAYPAL,207.78,0,207.78,Awaiting Coding,Variety stores
Bukcinghamshire Council,30.09.2023,19.09.2023,Deputy Chief Executive,AH&R- DCE Dir,PAYPAL,27.99,0,27.99,Awaiting Coding,Variety stores
Bukcinghamshire Council,30.09.2023,19.09.2023,Deputy Chief Executive,AH&R- DCE Dir,PAYPAL,303.99,0,303.99,Awaiting Coding,Variety stores
Bukcinghamshire Council,30.09.2023,19.09.2023,Deputy Chief Executive,AH&R- DCE Dir,PAYPAL,9,0,9,Awaiting Coding,Variety stores
Bukcinghamshire Council,30.09.2023,19.09.2023,"Planning, Growth & Sustainability",Housing & Homelessness & Regulatory PGS,LAND REGISTRY ECOM CCC,3,0,3,Homelessness,Government services
Bukcinghamshire Council,30.09.2023,19.09.2023,Deputy Chief Executive,Communities - DCE,AO RETAIL LIMITED,207.5,41.5,249,Other Personal Needs,Household appliance stores
Bukcinghamshire Council,30.09.2023,19.09.2023,Deputy Chief Executive,Communities - DCE,WWW.ARGOS.CO.UK,44.1,8.82,52.92,Other Personal Needs,Department stores
Bukcinghamshire Council,30.09.2023,19.09.2023,Deputy Chief Executive,Communities - DCE,WWW.ARGOS.CO.UK,0.03,0,0.03,Other Personal Needs,Department stores
Bukcinghamshire Council,30.09.2023,19.09.2023,Deputy Chief Executive,Communities - DCE,WWW.ARGOS.CO.UK,224.1,44.82,268.92,Other Personal Needs,Department stores
Bukcinghamshire Council,30.09.2023,19.09.2023,Deputy Chief Executive,Communities - DCE,WWW.ARGOS.CO.UK,0.03,0,0.03,Other Personal Needs,Department stores
Bukcinghamshire Council,30.09.2023,19.09.2023,Deputy Chief Executive,Communities - DCE,WWW.ARGOS.CO.UK,332.45,66.49,398.94,Other Personal Needs,Department stores
Bukcinghamshire Council,30.09.2023,19.09.2023,Deputy Chief Executive,Communities - DCE,WWW.ARGOS.CO.UK,0.01,0,0.01,Other Personal Needs,Department stores
Bukcinghamshire Council,30.09.2023,19.09.2023,Deputy Chief Executive,Communities - DCE,AO RETAIL LIMITED,743.33,148.67,892,Other Personal Needs,Household appliance stores
Bukcinghamshire Council,30.09.2023,19.09.2023,Children's Services,Education & Childrens Services - CS Dir,B&M 426 - HS AYLESBURY,13,0,13,Other Personal Needs,Misc. general merchandise
Bukcinghamshire Council,30.09.2023,19.09.2023,Children's Services,Education & Childrens Services - CS Dir,TESCO STORES 2038,181.56,0,181.56,General Provisions (Food),Grocery stores
Bukcinghamshire Council,30.09.2023,19.09.2023,"Planning, Growth & Sustainability",AH&R - PGS Dir,AMZNMKTPLACE,9.99,0,9.99,Other Equipment and Materials,Miscellaneous retail
Bukcinghamshire Council,30.09.2023,19.09.2023,Communities,Housing & Homelessness & Regulatory Comm,CHENIES GARDEN CENTRE,77.98,0,77.98,Maintenance of Grounds,Lawn & garden supply/nursery
Bukcinghamshire Council,30.09.2023,19.09.2023,Communities,Housing & Homelessness & Regulatory Comm,ESSO HAZLEMERE CROSS RD S,30.16,0,30.16,Maintenance of Grounds,Service stations
Bukcinghamshire Council,30.09.2023,19.09.2023,"Planning, Growth & Sustainability",AH&R - PGS Dir,VITAL PARTS LTD,24.3,4.86,29.16,Security & Safety Supplies & Equipment,Misc. general merchandise
Bukcinghamshire Council,30.09.2023,19.09.2023,"Planning, Growth & Sustainability",AH&R - PGS Dir,VITAL PARTS LTD,0.04,0,0.04,Security & Safety Supplies & Equipment,Misc. general merchandise
Bukcinghamshire Council,30.09.2023,19.09.2023,"Planning, Growth & Sustainability",Leader - PGS,W A CARR   SON LIMITED,237.36,0,237.36,Special Events,"Bands, orchestras & misc entertainment"
Bukcinghamshire Council,30.09.2023,19.09.2023,Communities,Climate Change & Environment - Community,HALFORDS E.COMM,239.98,0,239.98,Equipment,Automotive parts & accessories
Bukcinghamshire Council,30.09.2023,19.09.2023,Deputy Chief Executive,Communities - DCE,RINGGO PARKING,1.65,0,1.65,Staff Travelling Expenses,Car parking & garages
Bukcinghamshire Council,30.09.2023,19.09.2023,Deputy Chief Executive,AH&R- DCE Dir,VOUCHER EXPRESS,100,0,100,Long Service Awards,Misc business services
Bukcinghamshire Council,30.09.2023,19.09.2023,"Planning, Growth & Sustainability",Partnership Climate Change & Envir - PGS,WWW.THOMASTELFORD.ORG.,658.8,0,658.8,Miscellaneous (Other)  Expenses,Publishing & printing services
Bukcinghamshire Council,30.09.2023,19.09.2023,Communities,Culture & Leisure - Communities Dir,WICKES AYLESBURY,14.4,2.88,17.28,Administrative Equipment & Tools,Timber & building supplies
Bukcinghamshire Council,30.09.2023,19.09.2023,Communities,Culture & Leisure - Communities Dir,WICKES AYLESBURY,0.02,0,0.02,Administrative Equipment & Tools,Timber & building supplies
Bukcinghamshire Council,30.09.2023,19.09.2023,Children's Services,Education & Childrens Services - CS Dir,PURE W1U 6TA,5.45,0,5.45,Subsistence,Fast food restaurants
Bukcinghamshire Council,30.09.2023,19.09.2023,Children's Services,Education & Childrens Services - CS Dir,HADDENHAM & THAME PARK,49.8,0,49.8,Staff Travelling Expenses,Passenger railways
Bukcinghamshire Council,30.09.2023,19.09.2023,Children's Services,Education & Childrens Services - CS Dir,SUMUP  *ARROW TRANSPOR,120,0,120,Sec 17: Transport,Taxicabs & limousines
Bukcinghamshire Council,30.09.2023,19.09.2023,Children's Services,Education & Childrens Services - CS Dir,MARKS&SPENCER PLC SA,102.7,0,102.7,Support for Foster Carers,Grocery stores
Bukcinghamshire Council,30.09.2023,19.09.2023,Children's Services,Education & Childrens Services - CS Dir,MARKS&SPENCER PLC SACA,15.3,0,15.3,Support for Foster Carers,Grocery stores
Bukcinghamshire Council,30.09.2023,19.09.2023,Children's Services,Education & Childrens Services - CS Dir,WWW.JOHNLEWIS.COM,216,0,216,Support for Foster Carers,Department stores
Bukcinghamshire Council,30.09.2023,19.09.2023,Children's Services,Education & Childrens Services - CS Dir,WWW.JOHNLEWIS.COM,29.5,0,29.5,Support for Foster Carers,Department stores
Bukcinghamshire Council,30.09.2023,19.09.2023,Resources,AH&R - Res Dir,C2E866300853M UKVI,"3,199.00",0,"3,199.00",Professional Services (non curriculum) - External,Government services
Bukcinghamshire Council,30.09.2023,19.09.2023,"Planning, Growth & Sustainability",AH&R - PGS Dir,SCREWFIX DIR LTD,11.99,0,11.99,General Repairs & Maintenance,Timber & building supplies
Bukcinghamshire Council,30.09.2023,19.09.2023,Children's Services,Education & Childrens Services - CS Dir,A1 TAXI SERVICE,84,0,84,Leaving Care - Transport,Taxicabs & limousines
Bukcinghamshire Council,30.09.2023,19.09.2023,Children's Services,Education & Childrens Services - CS Dir,AMZNMKTPLACE,59.6,0,59.6,Leaving Care - Grants for Care Leavers,Miscellaneous retail
Bukcinghamshire Council,30.09.2023,19.09.2023,Communities,Communities - Trust Accounts,COSTCO WHOLESALE #102,18.97,0,18.97,Stationery & Office Supplies,Buying & shopping services/clubs
Bukcinghamshire Council,30.09.2023,19.09.2023,Resources,AH&R - Res Dir,LINKEDIN ADS 9431103974,20.89,0,20.89,Permanent Recruitment Costs,Advertising services
Bukcinghamshire Council,30.09.2023,19.09.2023,Children's Services,Education & Childrens Services - CS Dir,AMZNMKTPLACE,87.48,0,87.48,Activities & General Recreation,Miscellaneous retail
Bukcinghamshire Council,30.09.2023,19.09.2023,"Planning, Growth & Sustainability",AH&R - PGS Dir,GWR DIDCOT PKWY TO,85.3,0,85.3,Staff Travelling Expenses,Passenger railways
Bukcinghamshire Council,30.09.2023,19.09.2023,Children's Services,Education & Childrens Services - CS Dir,PARENTPAY E-COM R,15,0,15,General Provisions (Food),Colleges & universities
Bukcinghamshire Council,30.09.2023,19.09.2023,Communities,Climate Change & Environment - Community,WWW.ARGOS.CO.UK,73.95,0,73.95,Health & Safety Supplies & Services,Department stores
Bukcinghamshire Council,30.09.2023,19.09.2023,"Planning, Growth & Sustainability",Housing & Homelessness & Regulatory PGS,WH SMITH AYLESBURY,29.98,0,29.98,Other General Office Expenses,Newspapers / newsagents
Bukcinghamshire Council,30.09.2023,19.09.2023,Communities,Transport - Communities Dir,SPORTSDIRECT.COM,59.99,0,59.99,Awaiting Coding,Sports & riding apparel shops
Bukcinghamshire Council,30.09.2023,19.09.2023,Communities,Transport - Communities Dir,AMZNMktplace,24.95,0,24.95,Awaiting Coding,Miscellaneous retail
Bukcinghamshire Council,30.09.2023,19.09.2023,Communities,Transport - Communities Dir,AMZNMktplace,29.95,0,29.95,Awaiting Coding,Miscellaneous retail
Bukcinghamshire Council,30.09.2023,19.09.2023,Children's Services,Education & Childrens Services - CS Dir,FLIGHT ON BOOKING.COM,86.04,0,86.04,Sec 17: Transport,Travel agencies
Bukcinghamshire Council,30.09.2023,19.09.2023,Children's Services,Education & Childrens Services - CS Dir,PREMIER INN,95.99,0,95.99,Sec 17: Accommodation,Premier Inn
Bukcinghamshire Council,30.09.2023,18.09.2023,Deputy Chief Executive,AH&R- DCE Dir,PAYPAL,520.16,0,520.16,Awaiting Coding,Variety stores
Bukcinghamshire Council,30.09.2023,18.09.2023,Deputy Chief Executive,AH&R- DCE Dir,PAYPAL,79,0,79,Awaiting Coding,Variety stores
Bukcinghamshire Council,30.09.2023,18.09.2023,Deputy Chief Executive,AH&R- DCE Dir,PAYPAL,20.95,0,20.95,Awaiting Coding,Variety stores
Bukcinghamshire Council,30.09.2023,18.09.2023,Deputy Chief Executive,AH&R- DCE Dir,PAYPAL,"1,022.95",0,"1,022.95",Awaiting Coding,Variety stores
Bukcinghamshire Council,30.09.2023,18.09.2023,Deputy Chief Executive,AH&R- DCE Dir,PAYPAL,292.7,0,292.7,Awaiting Coding,Variety stores
Bukcinghamshire Council,30.09.2023,18.09.2023,Children's Services,Education & Childrens Services - CS Dir,AMZNMKTPLACE,100.93,0,100.93,Professional Services (non curriculum) - External,Miscellaneous retail
Bukcinghamshire Council,30.09.2023,18.09.2023,Children's Services,Education & Childrens Services - CS Dir,TRAVELODGE GB0000,81.07,0,81.07,"Courses, Conference and Seminar Fees",Travelodge
Bukcinghamshire Council,30.09.2023,18.09.2023,"Planning, Growth & Sustainability",AH&R - PGS Dir,WESTMINSTER INSIGHT,322.92,0,322.92,"Courses, Conference and Seminar Fees",
Bukcinghamshire Council,30.09.2023,18.09.2023,Children's Services,Education & Childrens Services - CS Dir,ARRIVA UK BUS,8,0,8,Sec 20/31: Supp for Contact,"Buses, charter & tour"
Bukcinghamshire Council,30.09.2023,18.09.2023,Children's Services,Education & Childrens Services - CS Dir,LYNKPAY* 001 TAXIS,72.1,0,72.1,Sec 20/31: Transport,
Bukcinghamshire Council,30.09.2023,18.09.2023,Children's Services,Education & Childrens Services - CS Dir,LYNKPAY* 001 TAXIS,72.1,0,72.1,Sec 20/31: Transport,
Bukcinghamshire Council,30.09.2023,18.09.2023,Children's Services,Education & Childrens Services - CS Dir,FIRST BUS - WEB,15.6,0,15.6,Sec 20/31: Supp for Contact,"Buses, charter & tour"
Bukcinghamshire Council,30.09.2023,18.09.2023,Children's Services,Education & Childrens Services - CS Dir,LYNKPAY* 001 TAXIS,-149.35,0,-149.35,Sec 20/31: Transport,
Bukcinghamshire Council,30.09.2023,18.09.2023,"Planning, Growth & Sustainability",Climate Change & Environment - PGS,TOGATHER.COM,752.5,0,752.5,Printing & Stationery,Misc. personal services
Bukcinghamshire Council,30.09.2023,18.09.2023,Deputy Chief Executive,Communities - DCE,WWW.ARGOS.CO.UK,662.95,0,662.95,Other Personal Needs,Department stores
Bukcinghamshire Council,30.09.2023,18.09.2023,Deputy Chief Executive,Communities - DCE,WWW.ARGOS.CO.UK,146.6,29.32,175.92,Other Personal Needs,Department stores
Bukcinghamshire Council,30.09.2023,18.09.2023,Deputy Chief Executive,Communities - DCE,WWW.ARGOS.CO.UK,0.03,0,0.03,Other Personal Needs,Department stores
Bukcinghamshire Council,30.09.2023,18.09.2023,Deputy Chief Executive,Communities - DCE,WWW.ARGOS.CO.UK,-180,0,-180,Other Personal Needs,Department stores
Bukcinghamshire Council,30.09.2023,18.09.2023,Children's Services,Education & Childrens Services - CS Dir,M AQUATICS AYLESBURY,62.99,0,62.99,Other Equipment and Materials,"Pet shops, food & supply"
Bukcinghamshire Council,30.09.2023,18.09.2023,Children's Services,Education & Childrens Services - CS Dir,COSTCO WHOLESALE #117,150.82,0,150.82,Cleaning & Domestic Equipment,Buying & shopping services/clubs
Bukcinghamshire Council,30.09.2023,18.09.2023,Children's Services,Education & Childrens Services - CS Dir,AMZNMKTPLACE,301.29,0,301.29,Professional Services (non curriculum) - External,Miscellaneous retail
Bukcinghamshire Council,30.09.2023,18.09.2023,Resources,AH&R - Res Dir,POSTURITE LTD,102.18,0,102.18,Printing & Stationery,Misc. home furnishing
Bukcinghamshire Council,30.09.2023,18.09.2023,"Planning, Growth & Sustainability",AH&R - PGS Dir,ASDA SUPERSTORE,12.5,0,12.5,Awaiting Coding,Grocery stores
Bukcinghamshire Council,30.09.2023,18.09.2023,Deputy Chief Executive,Communities - DCE,PAYPAL,-275,0,-275,Other Personal Needs,Variety stores
Bukcinghamshire Council,30.09.2023,18.09.2023,Deputy Chief Executive,Communities - DCE,PAYPAL,-528.95,0,-528.95,Other Personal Needs,Variety stores
Bukcinghamshire Council,30.09.2023,18.09.2023,Resources,AH&R - Res Dir,TRAVELODGE GB0000,472.18,0,472.18,"Courses, Conference and Seminar Fees",Travelodge
Bukcinghamshire Council,30.09.2023,18.09.2023,Communities,Transport - Communities Dir,PERRYS AYLESBURY FIAT,82.8,0,82.8,Vehicle Hire,Automobile dealers - new & used
Bukcinghamshire Council,30.09.2023,18.09.2023,Communities,Transport - Communities Dir,POLICE SUPPLIES,71.91,0,71.91,Equipment,Misc. clothing & accessory shops
Bukcinghamshire Council,30.09.2023,18.09.2023,Adults and Health,Health & Wellbeing - Adults & Health Dir,TESCO STORES 2162,62.95,0,62.95,Other Supplies,Grocery stores
Bukcinghamshire Council,30.09.2023,18.09.2023,Children's Services,Education & Childrens Services - CS Dir,WWW.BUCKINGHAMSHIRE.GOV,111,0,111,General Repairs & Maintenance,Government services
Bukcinghamshire Council,30.09.2023,18.09.2023,Resources,AH&R - Res Dir,TRAINLINE,188.31,0,188.31,Staff Travelling Expenses,Passenger railways
Bukcinghamshire Council,30.09.2023,18.09.2023,Communities,Culture & Leisure - Communities Dir,SAINSBURY S S/MKTS,200,0,200,Other Employees Expenses,Grocery stores
Bukcinghamshire Council,30.09.2023,18.09.2023,"Planning, Growth & Sustainability",AH&R - PGS Dir,TESCO STORES 2020,10.15,0,10.15,Purchase.of Refreshments and Food,Grocery stores
Bukcinghamshire Council,30.09.2023,18.09.2023,Deputy Chief Executive,AH&R- DCE Dir,BUCKINGHAMSHIRE CNCL,130.5,0,130.5,Grants to External Bodies,Government services
Bukcinghamshire Council,30.09.2023,18.09.2023,Children's Services,Education & Childrens Services - CS Dir,HOBBYCRAFT,46.75,9.35,56.1,Educational Equipment,Art & craft shops
Bukcinghamshire Council,30.09.2023,18.09.2023,Children's Services,Education & Childrens Services - CS Dir,TESCO STORES 2668,8.26,0,8.26,Continuing Professional Development,Grocery stores
Bukcinghamshire Council,30.09.2023,18.09.2023,Children's Services,Partnerships - Children's Services,TRAINLINE,221.11,0,221.11,Staff Travelling Expenses,Passenger railways
Bukcinghamshire Council,30.09.2023,18.09.2023,Deputy Chief Executive,Communities - DCE,THE BELL HOTEL - MAIN,6,0,6,General Provisions (Food),Restaurants
Bukcinghamshire Council,30.09.2023,18.09.2023,Communities,Climate Change & Environment - Community,TRAINLINE,28.41,0,28.41,Staff Travelling Expenses,Passenger railways
Bukcinghamshire Council,30.09.2023,18.09.2023,Children's Services,Education & Childrens Services - CS Dir,AMZNMKTPLACE,514.4,0,514.4,Furniture,Miscellaneous retail
Bukcinghamshire Council,30.09.2023,18.09.2023,Children's Services,Education & Childrens Services - CS Dir,JUST EAT,41.42,0,41.42,Activities & General Recreation,Fast food restaurants
Bukcinghamshire Council,30.09.2023,18.09.2023,Resources,AH&R - Res Dir,PAYPAL,8.99,0,8.99,IT - Computer Network Charges,Computer network information services
Bukcinghamshire Council,30.09.2023,18.09.2023,Children's Services,Education & Childrens Services - CS Dir,DARTINGTON CRYSTAL - PAY,74.08,0,74.08,Support for Foster Carers,Glassware & crystal shops
Bukcinghamshire Council,30.09.2023,18.09.2023,Children's Services,Education & Childrens Services - CS Dir,AMZNMKTPLACE,71.98,0,71.98,Support for Foster Carers,Miscellaneous retail
Bukcinghamshire Council,30.09.2023,18.09.2023,Children's Services,Education & Childrens Services - CS Dir,PREMIER INN,155.98,0,155.98,"Courses, Conference and Seminar Fees",Premier Inn
Bukcinghamshire Council,30.09.2023,18.09.2023,Children's Services,Education & Childrens Services - CS Dir,ASDA SUPERSTORE,2.45,0,2.45,General Provisions (Food),Grocery stores
Bukcinghamshire Council,30.09.2023,18.09.2023,Resources,AH&R - Res Dir,AMZNMKTPLACE,49.98,0,49.98,IT Equipment Purchase,Miscellaneous retail
Bukcinghamshire Council,30.09.2023,18.09.2023,Children's Services,Education & Childrens Services - CS Dir,THE WORKS,3,0,3,Awaiting Coding,Discount stores
Bukcinghamshire Council,30.09.2023,18.09.2023,Children's Services,Education & Childrens Services - CS Dir,THE WORKS,8.5,0,8.5,Awaiting Coding,Discount stores
Bukcinghamshire Council,30.09.2023,18.09.2023,"Planning, Growth & Sustainability",Leader - PGS,LINKEDIN ADS 9427674584,17.12,0,17.12,Advertising,Advertising services
Bukcinghamshire Council,30.09.2023,18.09.2023,Children's Services,Education & Childrens Services - CS Dir,MENTIMETER BASIC,144,0,144,Computer Consumables,Computer software stores
Bukcinghamshire Council,30.09.2023,18.09.2023,Children's Services,Education & Childrens Services - CS Dir,WWW.ARGOS.CO.UK,25.95,0,25.95,Leaving Care - Grants for Care Leavers,Department stores
Bukcinghamshire Council,30.09.2023,18.09.2023,Children's Services,Education & Childrens Services - CS Dir,WWW.ARGOS.CO.UK,163.94,0,163.94,Leaving Care - Grants for Care Leavers,Department stores
Bukcinghamshire Council,30.09.2023,18.09.2023,Adults and Health,Health & Wellbeing - Adults & Health Dir,TESCO STORES 5135,220.1,0,220.1,General Provisions (Food),Grocery stores
Bukcinghamshire Council,30.09.2023,18.09.2023,Adults and Health,Health & Wellbeing - Adults & Health Dir,LIDL GB AYLESBURY,9.34,0,9.34,Other General Office Expenses,Grocery stores
Bukcinghamshire Council,30.09.2023,18.09.2023,Adults and Health,Health & Wellbeing - Adults & Health Dir,ICELAND FOODS LTD 1748,6.5,0,6.5,Other General Office Expenses,Grocery stores
Bukcinghamshire Council,30.09.2023,18.09.2023,Adults and Health,Health & Wellbeing - Adults & Health Dir,A AND M FABRICS,43,0,43,Other General Office Expenses,Fabric and sewing shops
Bukcinghamshire Council,30.09.2023,18.09.2023,Adults and Health,Health & Wellbeing - Adults & Health Dir,HOBBYCRAFT,1.65,0.33,1.98,Other General Office Expenses,Art & craft shops
Bukcinghamshire Council,30.09.2023,18.09.2023,Adults and Health,Health & Wellbeing - Adults & Health Dir,HOBBYCRAFT,0.02,0,0.02,Other General Office Expenses,Art & craft shops
Bukcinghamshire Council,30.09.2023,18.09.2023,Adults and Health,Health & Wellbeing - Adults & Health Dir,LIDL GB AYLESBURY,2.07,0.42,11.83,Other General Office Expenses,Grocery stores
Bukcinghamshire Council,30.09.2023,18.09.2023,Adults and Health,Health & Wellbeing - Adults & Health Dir,TESCO STORES 5135,84,0,84,Awaiting Coding,Grocery stores
Bukcinghamshire Council,30.09.2023,18.09.2023,Adults and Health,Health & Wellbeing - Adults & Health Dir,AMZNMktplace,35.9,0,35.9,Awaiting Coding,Miscellaneous retail
Bukcinghamshire Council,30.09.2023,18.09.2023,Adults and Health,Health & Wellbeing - Adults & Health Dir,AMZNMKTPLACE,24.54,4.92,29.46,Other General Office Expenses,Miscellaneous retail
Bukcinghamshire Council,30.09.2023,18.09.2023,Children's Services,Education & Childrens Services - CS Dir,NEALES TAXIS LTD,833.33,166.67,"1,000.00",Sec 20/31: Transport,Taxicabs & limousines
Bukcinghamshire Council,30.09.2023,18.09.2023,Children's Services,Education & Childrens Services - CS Dir,TESCO GIFT CARD,40,0,40,Sec 17: Accommodation,Grocery stores
Bukcinghamshire Council,30.09.2023,18.09.2023,"Planning, Growth & Sustainability",Climate Change & Environment - PGS,WATKINS & DONCASTER,320.68,0,320.68,Grants to External Bodies,Miscellaneous retail
Bukcinghamshire Council,30.09.2023,17.09.2023,Communities,Culture & Leisure - Communities Dir,AMAZON.CO.UK,15.3,0,15.3,Stationery & Office Supplies,Direct sales companies
Bukcinghamshire Council,30.09.2023,17.09.2023,"Planning, Growth & Sustainability",Climate Change & Environment - PGS,AMZNMKTPLACE,169.99,0,169.99,Advertising,Miscellaneous retail
Bukcinghamshire Council,30.09.2023,17.09.2023,Children's Services,Education & Childrens Services - CS Dir,AMZNMKTPLACE,17.9,0,17.9,Leaving Care - Grants for Care Leavers,Miscellaneous retail
Bukcinghamshire Council,30.09.2023,17.09.2023,Children's Services,Education & Childrens Services - CS Dir,B & Q 1305,102.35,0,102.35,Other Equipment and Materials,Home supply warehouse stores
Bukcinghamshire Council,30.09.2023,17.09.2023,Children's Services,Education & Childrens Services - CS Dir,SPORTSDIRECT 210,88.2,0,88.2,Other Personal Needs,Sporting goods shops
Bukcinghamshire Council,30.09.2023,17.09.2023,Children's Services,Education & Childrens Services - CS Dir,IKEA LTD 185 MILTON KEYNE,224,0,224,Furniture,Furniture & home furnishing
Bukcinghamshire Council,30.09.2023,17.09.2023,Children's Services,Education & Childrens Services - CS Dir,AMZNMKTPLACE,323.86,0,323.86,Interpreters Fees,Miscellaneous retail
Bukcinghamshire Council,30.09.2023,17.09.2023,Children's Services,Education & Childrens Services - CS Dir,AMZNMKTPLACE,59.9,0,59.9,Professional Services (non curriculum) - External,Miscellaneous retail
Bukcinghamshire Council,30.09.2023,17.09.2023,Children's Services,Education & Childrens Services - CS Dir,AMZNMKTPLACE,84.18,0,84.18,Other Employees Expenses,Miscellaneous retail
Bukcinghamshire Council,30.09.2023,17.09.2023,Adults and Health,Health & Wellbeing - Adults & Health Dir,AMZNMktplace,89.44,0,89.44,Awaiting Coding,Miscellaneous retail
Bukcinghamshire Council,30.09.2023,17.09.2023,Children's Services,Education & Childrens Services - CS Dir,AMAZON.CO.UK,17,0,17,Stationery & Office Supplies,Direct sales companies
Bukcinghamshire Council,30.09.2023,17.09.2023,Resources,AH&R - Res Dir,FACEBK *QA85UTK4X2,27.86,0,27.86,Permanent Recruitment Costs,Advertising services
Bukcinghamshire Council,30.09.2023,17.09.2023,Resources,AH&R - Res Dir,AMZNMKTPLACE,64.37,0,64.37,Printing & Stationery,Miscellaneous retail
Bukcinghamshire Council,30.09.2023,17.09.2023,Communities,Culture & Leisure - Communities Dir,AMZNMKTPLACE,14.59,2.93,17.52,Health & Safety Supplies & Services,Miscellaneous retail
Bukcinghamshire Council,30.09.2023,17.09.2023,Children's Services,Education & Childrens Services - CS Dir,CANVA* 03911-21252243,34.99,0,34.99,Marketing,"Commercial photo, art & graphic"
Bukcinghamshire Council,30.09.2023,16.09.2023,Deputy Chief Executive,Communities - DCE,RINGGO PARKING,2.9,0,2.9,Staff Travelling Expenses,Car parking & garages
Bukcinghamshire Council,30.09.2023,16.09.2023,Children's Services,Education & Childrens Services - CS Dir,AMZNMKTPLACE,335.76,0,335.76,Professional Services (non curriculum) - External,Miscellaneous retail
Bukcinghamshire Council,30.09.2023,16.09.2023,Children's Services,Education & Childrens Services - CS Dir,AMZNMKTPLACE,56.46,0,56.46,Professional Services (non curriculum) - External,Miscellaneous retail
Bukcinghamshire Council,30.09.2023,16.09.2023,Children's Services,Education & Childrens Services - CS Dir,SAGE PUBLICATIONS UK,116.97,0,116.97,Professional Services (non curriculum) - External,Newspapers / newsagents
Bukcinghamshire Council,30.09.2023,16.09.2023,"Planning, Growth & Sustainability",Planning & Regeneration - PGS,AMZNMKTPLACE,2.99,0,2.99,"Courses, Conference and Seminar Fees",Miscellaneous retail
Bukcinghamshire Council,30.09.2023,16.09.2023,Communities,Climate Change & Environment - Community,STK*SHUTTERSTOCK,139,0,139,Waste Prevention costs,"Commercial photo, art & graphic"
Bukcinghamshire Council,30.09.2023,16.09.2023,Communities,Communities - Trust Accounts,BOOKER LTD - 38531354,99.48,0,99.48,Awaiting Coding,Grocery stores
Bukcinghamshire Council,30.09.2023,16.09.2023,Communities,Communities - Trust Accounts,ICELAND,15,0,15,Awaiting Coding,Grocery stores
Bukcinghamshire Council,30.09.2023,16.09.2023,Deputy Chief Executive,AH&R- DCE Dir,OXFORD BUS COMPANY,2,0,2,Staff Travelling Expenses,"Buses, charter & tour"
Bukcinghamshire Council,30.09.2023,16.09.2023,Deputy Chief Executive,AH&R- DCE Dir,UBER* TRIP,4.83,0,4.83,Staff Travelling Expenses,Taxicabs & limousines
Bukcinghamshire Council,30.09.2023,16.09.2023,Resources,AH&R - Res Dir,FACEBK SFK9VT7VH2,25,0,25,Permanent Recruitment Costs,Advertising services
Bukcinghamshire Council,30.09.2023,16.09.2023,Resources,AH&R - Res Dir,AMAZON.CO.UK,34.99,0,34.99,Stationery & Office Supplies,Direct sales companies
Bukcinghamshire Council,30.09.2023,16.09.2023,Communities,Climate Change & Environment - Community,ROADWARRIOR,12.47,0,12.47,Computer Support Services,"Programming, data processing & system design"
Bukcinghamshire Council,30.09.2023,16.09.2023,Communities,Climate Change & Environment - Community,ROADWARRIOR,12.47,0,12.47,Computer Support Services,"Programming, data processing & system design"
Bukcinghamshire Council,30.09.2023,16.09.2023,Communities,Housing & Homelessness & Regulatory Comm,WWW.SCREWFIX.COM,71.66,0,71.66,Protective Clothing & Uniforms,Timber & building supplies
Bukcinghamshire Council,30.09.2023,15.09.2023,Deputy Chief Executive,AH&R- DCE Dir,PAYPAL,722.95,0,722.95,Awaiting Coding,Variety stores
Bukcinghamshire Council,30.09.2023,15.09.2023,Deputy Chief Executive,AH&R- DCE Dir,PAYPAL,912,0,912,Awaiting Coding,Electronics shops
Bukcinghamshire Council,30.09.2023,15.09.2023,Deputy Chief Executive,AH&R- DCE Dir,PAYPAL,314,0,314,Awaiting Coding,Electronics shops
Bukcinghamshire Council,30.09.2023,15.09.2023,"Planning, Growth & Sustainability",Climate Change & Environment - PGS,INPRINT LITHO LIMITED,80.4,0,80.4,Printing & Stationery,Publishing & printing services
Bukcinghamshire Council,30.09.2023,15.09.2023,Children's Services,Education & Childrens Services - CS Dir,AMZNMKTPLACE,57.99,0,57.99,Furniture,Miscellaneous retail
Bukcinghamshire Council,30.09.2023,15.09.2023,Children's Services,Education & Childrens Services - CS Dir,AMZNMKTPLACE,31.79,0,31.79,Professional Services (non curriculum) - External,Miscellaneous retail
Bukcinghamshire Council,30.09.2023,15.09.2023,Children's Services,Education & Childrens Services - CS Dir,INFORMA UK ECOM GB,179.97,0,179.97,Professional Services (non curriculum) - External,Publishing & printing services
Bukcinghamshire Council,30.09.2023,15.09.2023,Resources,AH&R - Res Dir,MY.MORRISONS.COM,20,0,20,Local Staff Training,Grocery stores
Bukcinghamshire Council,30.09.2023,15.09.2023,Deputy Chief Executive,Communities - DCE,AO RETAIL LIMITED,927.49,185.51,"1,113.00",Other Personal Needs,Household appliance stores
Bukcinghamshire Council,30.09.2023,15.09.2023,Deputy Chief Executive,Communities - DCE,AO RETAIL LIMITED,249.16,49.84,299,Other Personal Needs,Household appliance stores
Bukcinghamshire Council,30.09.2023,15.09.2023,Children's Services,Education & Childrens Services - CS Dir,BUCKINGHAM HOTELS,"1,890.00",0,"1,890.00",Sec 17: Accommodation,"Hotels, motels & resorts"
Bukcinghamshire Council,30.09.2023,15.09.2023,Children's Services,Education & Childrens Services - CS Dir,BUCKINGHAM HOTELS,"1,890.00",0,"1,890.00",Sec 17: Accommodation,"Hotels, motels & resorts"
Bukcinghamshire Council,30.09.2023,15.09.2023,Children's Services,Education & Childrens Services - CS Dir,NEALES TAXIS LTD,900,0,900,Sec 20/31: Financial Assistance,Taxicabs & limousines
Bukcinghamshire Council,30.09.2023,15.09.2023,Communities,Housing & Homelessness & Regulatory Comm,J PARKER DUTCH BULBS LTD,142.14,0,142.14,Maintenance of Grounds,Lawn & garden supply/nursery
Bukcinghamshire Council,30.09.2023,15.09.2023,Children's Services,Education & Childrens Services - CS Dir,AMZNMKTPLACE,30.36,0,30.36,Other Equipment and Materials,Miscellaneous retail
Bukcinghamshire Council,30.09.2023,15.09.2023,"Planning, Growth & Sustainability",AH&R - PGS Dir,EDMUNDSON ELECTRICAL,11.33,0,11.33,Special Projects,Electrical parts & equipment
Bukcinghamshire Council,30.09.2023,15.09.2023,Children's Services,Education & Childrens Services - CS Dir,AMZNMKTPLACE,32.99,0,32.99,Consumable Supplies,Miscellaneous retail
Bukcinghamshire Council,30.09.2023,15.09.2023,Communities,Culture & Leisure - Communities Dir,CO-OP GROUP FOOD,2.8,0,2.8,Events Expenditure,Grocery stores
Bukcinghamshire Council,30.09.2023,15.09.2023,Communities,Culture & Leisure - Communities Dir,FACEBK FSR3RUFJB2,40,0,40,Advertising,Advertising services
Bukcinghamshire Council,30.09.2023,15.09.2023,Deputy Chief Executive,AH&R- DCE Dir,DUKE OF CLARENCE,37.15,0,37.15,Subsistence,"Bars, taverns, pubs & nightclubs"
Bukcinghamshire Council,30.09.2023,15.09.2023,Adults and Health,Health & Wellbeing - Adults & Health Dir,TRAVELODGE GB0000,846.93,0,846.93,Other Short Term Support,Travelodge
Bukcinghamshire Council,30.09.2023,15.09.2023,Communities,Climate Change & Environment - Community,PAYPAL,90,0,90,Advertising,Advertising services
Bukcinghamshire Council,30.09.2023,15.09.2023,Children's Services,Education & Childrens Services - CS Dir,REZUMEUKLTD,99.59,0,99.59,Professional Services (non curriculum) - External,Consultants & public relation services
Bukcinghamshire Council,30.09.2023,15.09.2023,Resources,AH&R - Res Dir,PAYPAL,8.4,0,8.4,IT - Computer Network Charges,Computer network information services
Bukcinghamshire Council,30.09.2023,15.09.2023,Children's Services,Education & Childrens Services - CS Dir,SUMUP  *CABS4U,120,0,120,Sec 20/31: Transport,Taxicabs & limousines
Bukcinghamshire Council,30.09.2023,15.09.2023,Children's Services,Education & Childrens Services - CS Dir,SUMUP  *CABS4U,80,0,80,Sec 20/31: Transport,Taxicabs & limousines
Bukcinghamshire Council,30.09.2023,15.09.2023,Children's Services,Education & Childrens Services - CS Dir,ASDA SUPERSTORE,33.54,0,33.54,General Provisions (Food),Grocery stores
Bukcinghamshire Council,30.09.2023,15.09.2023,Children's Services,Education & Childrens Services - CS Dir,Just Eat,13.59,0,13.59,Subsistence,Fast food restaurants
Bukcinghamshire Council,30.09.2023,15.09.2023,"Planning, Growth & Sustainability",AH&R - PGS Dir,ROYAL MAIL GROUP LTD,24.99,0,24.99,General Postage,Postal services
Bukcinghamshire Council,30.09.2023,15.09.2023,"Planning, Growth & Sustainability",AH&R - PGS Dir,ROYAL MAIL GROUP LTD,23.25,0,23.25,General Postage,Postal services
Bukcinghamshire Council,30.09.2023,15.09.2023,Communities,Transport - Communities Dir,STOKE MANDEVILLE T/O,22.6,0,22.6,Staff Travelling Expenses,Passenger railways
Bukcinghamshire Council,30.09.2023,15.09.2023,Communities,Transport - Communities Dir,TFL TRAVEL CH,2.7,0,2.7,Staff Travelling Expenses,Local commuter transport
Bukcinghamshire Council,30.09.2023,15.09.2023,Children's Services,Education & Childrens Services - CS Dir,JEREMYSHOME,16.89,0,16.89,Leaving Care - Higher Education Supp,Variety stores
Bukcinghamshire Council,30.09.2023,15.09.2023,Children's Services,Education & Childrens Services - CS Dir,DUNELM SOFTFURNISHINGS,210,0,210,Leaving Care - Grants for Care Leavers,Furniture & home furnishing
Bukcinghamshire Council,30.09.2023,15.09.2023,Children's Services,Education & Childrens Services - CS Dir,SP UNIKITOUT,189,0,189,Leaving Care - Higher Education Supp,Misc. general merchandise
Bukcinghamshire Council,30.09.2023,15.09.2023,Children's Services,Education & Childrens Services - CS Dir,BKG*HOTEL AT BOOKING.C,72,0,72,Staff Travelling Expenses,Travel agencies
Bukcinghamshire Council,30.09.2023,15.09.2023,"Planning, Growth & Sustainability",Planning & Regeneration - PGS,TRAINLINE,16.5,0,16.5,Staff Travelling Expenses,Passenger railways
Bukcinghamshire Council,30.09.2023,15.09.2023,Resources,AH&R - Res Dir,WWW.BANNERWORLD.CO.UK,75,0,75,Permanent Recruitment Costs,Publishing & printing services
Bukcinghamshire Council,30.09.2023,15.09.2023,Communities,Climate Change & Environment - Community,TOOLSTATION UK,327.6,0,327.6,Equipment,Hardware stores
Bukcinghamshire Council,30.09.2023,15.09.2023,Children's Services,Education & Childrens Services - CS Dir,TRAINLINE,77,0,77,Sec 20/31: Supp for Contact,Passenger railways
Bukcinghamshire Council,30.09.2023,15.09.2023,Children's Services,Education & Childrens Services - CS Dir,TRAINLINE,53.9,0,53.9,Sec 20/31: Supp for Contact,Passenger railways
Bukcinghamshire Council,30.09.2023,15.09.2023,Children's Services,Education & Childrens Services - CS Dir,TRAINLINE,47.8,0,47.8,Sec 20/31: Supp for Contact,Passenger railways
Bukcinghamshire Council,30.09.2023,15.09.2023,Communities,Climate Change & Environment - Community,SCREWFIX DIR LTD,9.96,0,9.96,Equipment,Timber & building supplies
Bukcinghamshire Council,30.09.2023,15.09.2023,Communities,Climate Change & Environment - Community,B & Q 1305,31.9,0,31.9,Equipment,Home supply warehouse stores
Bukcinghamshire Council,30.09.2023,15.09.2023,Communities,Climate Change & Environment - Community,WICKES AYLESBURY,60,0,60,Equipment,Timber & building supplies
Bukcinghamshire Council,30.09.2023,15.09.2023,Communities,Climate Change & Environment - Community,SCREWFIX DIR LTD,-9.96,0,-9.96,General Repairs & Maintenance,Timber & building supplies
Bukcinghamshire Council,30.09.2023,15.09.2023,Communities,Partnerships - Communities,PAYPAL,-35,0,-35,Miscellaneous (Other)  Expenses,Shoe shops
Bukcinghamshire Council,30.09.2023,15.09.2023,Children's Services,Education & Childrens Services - CS Dir,THE UNIVERSITY OF NOTTING,"3,748.54",0,"3,748.54",Leaving Care - Higher Education Supp,Colleges & universities
Bukcinghamshire Council,30.09.2023,15.09.2023,Children's Services,Education & Childrens Services - CS Dir,VF NORTHERN EUROPE LTD-GB,80,0,80,Leaving Care - Higher Education Supp,Family clothing shops
Bukcinghamshire Council,30.09.2023,14.09.2023,Children's Services,Education & Childrens Services - CS Dir,AMZNMKTPLACE,4.79,0,4.79,Leaving Care - Grants for Care Leavers,Miscellaneous retail
Bukcinghamshire Council,30.09.2023,14.09.2023,Children's Services,Education & Childrens Services - CS Dir,AMZNMKTPLACE,31.82,0,31.82,Leaving Care - Grants for Care Leavers,Miscellaneous retail
Bukcinghamshire Council,30.09.2023,14.09.2023,Children's Services,Education & Childrens Services - CS Dir,RING UNLIMITED YEARLY,80,0,80,Computer Consumables,"Computers, peripherals & software"
Bukcinghamshire Council,30.09.2023,14.09.2023,Communities,Transport - Communities Dir,AMZNMktplace,106.98,0,106.98,Awaiting Coding,Miscellaneous retail
Bukcinghamshire Council,30.09.2023,14.09.2023,Adults and Health,Health & Wellbeing - Adults & Health Dir,SAINSBURYS S/MKTS,12.55,0,12.55,General Provisions (Food),Grocery stores
Bukcinghamshire Council,30.09.2023,14.09.2023,Children's Services,Education & Childrens Services - CS Dir,LYNKPAY* 001 TAXIS,149.35,0,149.35,Sec 20/31: Transport,
Bukcinghamshire Council,30.09.2023,14.09.2023,Children's Services,Education & Childrens Services - CS Dir,LYNKPAY* 001 TAXIS,149.35,0,149.35,Sec 20/31: Transport,
Bukcinghamshire Council,30.09.2023,14.09.2023,Children's Services,Education & Childrens Services - CS Dir,LYNKPAY* 001 TAXIS,149.35,0,149.35,Sec 20/31: Transport,
Bukcinghamshire Council,30.09.2023,14.09.2023,Children's Services,Education & Childrens Services - CS Dir,LYNKPAY* 001 TAXIS,149.35,0,149.35,Sec 20/31: Transport,
Bukcinghamshire Council,30.09.2023,14.09.2023,Children's Services,Education & Childrens Services - CS Dir,LYNKPAY* 001 TAXIS,149.35,0,149.35,Sec 20/31: Transport,
Bukcinghamshire Council,30.09.2023,14.09.2023,Children's Services,Education & Childrens Services - CS Dir,LYNKPAY* 001 TAXIS,149.35,0,149.35,Sec 20/31: Transport,
Bukcinghamshire Council,30.09.2023,14.09.2023,Children's Services,Education & Childrens Services - CS Dir,BUCKINGHAMSHIRE CNCL,11,0,11,Sec 20/31: Specialist Services,Government services
Bukcinghamshire Council,30.09.2023,14.09.2023,"Planning, Growth & Sustainability",Housing & Homelessness & Regulatory PGS,LAND REGISTRY ECOM CCC,3,0,3,Homelessness,Government services
Bukcinghamshire Council,30.09.2023,14.09.2023,"Planning, Growth & Sustainability",Housing & Homelessness & Regulatory PGS,LAND REGISTRY ECOM CCC,3,0,3,Homelessness,Government services
Bukcinghamshire Council,30.09.2023,14.09.2023,Communities,Climate Change & Environment - Community,GWR OXFORD SST,85.3,0,85.3,Staff Travelling Expenses,Passenger railways
Bukcinghamshire Council,30.09.2023,14.09.2023,"Planning, Growth & Sustainability",Climate Change & Environment - PGS,AMZNMKTPLACE,8.99,0,8.99,Advertising,Miscellaneous retail
Bukcinghamshire Council,30.09.2023,14.09.2023,Children's Services,Education & Childrens Services - CS Dir,NEW YORK DELI GATEHOUSE,21.75,0,21.75,"Exp of School, Club & College Activities",Restaurants
Bukcinghamshire Council,30.09.2023,14.09.2023,Children's Services,Education & Childrens Services - CS Dir,BKG*HOTEL AT BOOKING.C,60,0,60,Staff Travelling Expenses,Travel agencies
Bukcinghamshire Council,30.09.2023,14.09.2023,Children's Services,Education & Childrens Services - CS Dir,BKG*HOTEL AT BOOKING.C,192.5,0,192.5,Other Employees Expenses,Travel agencies
Bukcinghamshire Council,30.09.2023,14.09.2023,Children's Services,Education & Childrens Services - CS Dir,AMZNMKTPLACE,10.98,0,10.98,Leaving Care - Grants for Care Leavers,Miscellaneous retail
Bukcinghamshire Council,30.09.2023,14.09.2023,Children's Services,Education & Childrens Services - CS Dir,AMZNMKTPLACE,24.33,0,24.33,Leaving Care - Grants for Care Leavers,Miscellaneous retail
Bukcinghamshire Council,30.09.2023,14.09.2023,Children's Services,Education & Childrens Services - CS Dir,AMZNMKTPLACE,9.22,0,9.22,Leaving Care - Grants for Care Leavers,Miscellaneous retail
Bukcinghamshire Council,30.09.2023,14.09.2023,Children's Services,Education & Childrens Services - CS Dir,AMAZON PRIME,8.99,0,8.99,Stationery & Office Supplies,Continuous subscriptions
Bukcinghamshire Council,30.09.2023,14.09.2023,Children's Services,Education & Childrens Services - CS Dir,WWW.YELLOW-DOOR.NET,50.99,0,50.99,Professional Services (non curriculum) - External,Publishing & printing services
Bukcinghamshire Council,30.09.2023,14.09.2023,Children's Services,Education & Childrens Services - CS Dir,WWW.ROMPALIMITED.COM,467.7,0,467.7,Professional Services (non curriculum) - External,Miscellaneous retail
Bukcinghamshire Council,30.09.2023,14.09.2023,Children's Services,Education & Childrens Services - CS Dir,FINDEL EDUCATION,119.89,0,119.89,Professional Services (non curriculum) - External,Direct sales companies
Bukcinghamshire Council,30.09.2023,14.09.2023,Children's Services,Education & Childrens Services - CS Dir,AMZNMKTPLACE,286.74,0,286.74,Professional Services (non curriculum) - External,Miscellaneous retail
Bukcinghamshire Council,30.09.2023,14.09.2023,Children's Services,Education & Childrens Services - CS Dir,AMZNMKTPLACE,29.97,0,29.97,Professional Services (non curriculum) - External,Miscellaneous retail
Bukcinghamshire Council,30.09.2023,14.09.2023,Deputy Chief Executive,Communities - DCE,AO RETAIL LIMITED,839.16,167.84,"1,007.00",Other Personal Needs,Household appliance stores
Bukcinghamshire Council,30.09.2023,14.09.2023,Deputy Chief Executive,Communities - DCE,WWW.ARGOS.CO.UK,224.1,44.82,268.92,Other Personal Needs,Department stores
Bukcinghamshire Council,30.09.2023,14.09.2023,Deputy Chief Executive,Communities - DCE,WWW.ARGOS.CO.UK,0.03,0,0.03,Other Personal Needs,Department stores
Bukcinghamshire Council,30.09.2023,14.09.2023,"Planning, Growth & Sustainability",AH&R - PGS Dir,TESCO STORES 5525,6.2,0,6.2,Purchase.of Refreshments and Food,Grocery stores
Bukcinghamshire Council,30.09.2023,14.09.2023,Adults and Health,Communities - Adults & Health,AMAZON.CO.UK,28.99,0,28.99,Stationery & Office Supplies,Direct sales companies
Bukcinghamshire Council,30.09.2023,14.09.2023,Adults and Health,Health & Wellbeing - Adults & Health Dir,ASDA SUPERSTORE,35.17,0,35.17,Awaiting Coding,Grocery stores
Bukcinghamshire Council,30.09.2023,14.09.2023,Communities,Culture & Leisure - Communities Dir,EVENTBRITE.COM ORG FEE,129,0,129,Events Expenditure,Computer software stores
Bukcinghamshire Council,30.09.2023,14.09.2023,Children's Services,Education & Childrens Services - CS Dir,TESCO STORES 2038,44.7,0,44.7,General Provisions (Food),Grocery stores
Bukcinghamshire Council,30.09.2023,14.09.2023,Adults and Health,Health & Wellbeing - Adults & Health Dir,TRAVELODGE GB0000,244.95,0,244.95,Other Short Term Support,Travelodge
Bukcinghamshire Council,30.09.2023,14.09.2023,Children's Services,Education & Childrens Services - CS Dir,BUDGETCARS.UK.COM,18,0,18,Sec 17: Transport,Taxicabs & limousines
Bukcinghamshire Council,30.09.2023,14.09.2023,Children's Services,Education & Childrens Services - CS Dir,DOMINO S PIZZA,57.5,0,57.5,Activities & General Recreation,Restaurants
Bukcinghamshire Council,30.09.2023,14.09.2023,Resources,AH&R - Res Dir,PAYPAL,35.95,0,35.95,IT - Computer Network Charges,Computer network information services
Bukcinghamshire Council,30.09.2023,14.09.2023,Resources,AH&R - Res Dir,PAYPAL,57.55,0,57.55,IT - Computer Network Charges,Computer network information services
Bukcinghamshire Council,30.09.2023,14.09.2023,Children's Services,Education & Childrens Services - CS Dir,AMZNMKTPLACE,10.98,0,10.98,Support for Foster Carers,Miscellaneous retail
Bukcinghamshire Council,30.09.2023,14.09.2023,Children's Services,Education & Childrens Services - CS Dir,ASDA  STORES 4396,13.05,0,13.05,General Provisions (Food),Grocery stores
Bukcinghamshire Council,30.09.2023,14.09.2023,Communities,Transport - Communities Dir,TESCO STORES 2020,58,0,58,Awaiting Coding,Grocery stores
Bukcinghamshire Council,30.09.2023,14.09.2023,"Planning, Growth & Sustainability",Transport - PGS Dir,SWAN POOL&LEISURE,87.5,0,87.5,Project Work and Project Management Costs,"Member clubs, sport, recreation & golf"
Bukcinghamshire Council,30.09.2023,14.09.2023,Resources,AH&R - Res Dir,AMAZON* 204-4297739-88,250,0,250,Telephones,Phone equipment & sales
Bukcinghamshire Council,30.09.2023,14.09.2023,"Planning, Growth & Sustainability",AH&R - PGS Dir,EBAY O*18-10533-65489,30.39,0,30.39,Miscellaneous (Other)  Expenses,Department stores
Bukcinghamshire Council,30.09.2023,14.09.2023,Children's Services,Education & Childrens Services - CS Dir,WWW.ARGOS.CO.UK,269.99,0,269.99,Leaving Care - Grants for Care Leavers,Department stores
Bukcinghamshire Council,30.09.2023,14.09.2023,Children's Services,Education & Childrens Services - CS Dir,WWW.ARGOS.CO.UK,249,0,249,Leaving Care - Higher Education Supp,Department stores
Bukcinghamshire Council,30.09.2023,14.09.2023,Resources,AH&R - Res Dir,AMZ*AWOOOD,-99.99,0,-99.99,Leaving Care - Grants for Care Leavers,Miscellaneous retail
Bukcinghamshire Council,30.09.2023,14.09.2023,Deputy Chief Executive,Communities - DCE,TESCO STORES 3045,3.85,0,3.85,Seeds & Plants,Grocery stores
Bukcinghamshire Council,30.09.2023,14.09.2023,Communities,Communities - Trust Accounts,B & Q 1245,61.51,10.25,61.51,Awaiting Coding,Home supply warehouse stores
Bukcinghamshire Council,30.09.2023,14.09.2023,"Planning, Growth & Sustainability",Planning & Regeneration - PGS,ARRIVA THE SHIRES LIMITED,5.6,0,5.6,Staff Travelling Expenses,"Buses, charter & tour"
Bukcinghamshire Council,30.09.2023,14.09.2023,Resources,AH&R - Res Dir,FACEBK *Y56QTU74X2,125,0,125,Permanent Recruitment Costs,Advertising services
Bukcinghamshire Council,30.09.2023,14.09.2023,Children's Services,Education & Childrens Services - CS Dir,AMAZON.CO.UK,11.05,2.21,13.26,Administrative Equipment & Tools,Direct sales companies
Bukcinghamshire Council,30.09.2023,14.09.2023,Children's Services,Education & Childrens Services - CS Dir,AMAZON.CO.UK,0.02,0,0.02,Administrative Equipment & Tools,Direct sales companies
Bukcinghamshire Council,30.09.2023,14.09.2023,Children's Services,Education & Childrens Services - CS Dir,SP EARTH UNIFORM LTD,-41,0,-41,"Workshop - Materials,Tools & Equipment",Children/infants shops
Bukcinghamshire Council,30.09.2023,14.09.2023,Communities,Leader - PGS,MAILCHIMP,50.69,0,50.69,Software Support,
Bukcinghamshire Council,30.09.2023,14.09.2023,Resources,AH&R - Res Dir,POSTURITE LTD,518.28,0,518.28,Printing & Stationery,Misc. home furnishing
Bukcinghamshire Council,30.09.2023,14.09.2023,"Planning, Growth & Sustainability",Planning & Regeneration - PGS,C I H,336,0,336,Other Training Expenses,"Civic, social & fraternal associations"
Bukcinghamshire Council,30.09.2023,14.09.2023,Children's Services,Education & Childrens Services - CS Dir,AMZNMKTPLACE,358.18,0,358.18,Consumable Supplies,Miscellaneous retail
Bukcinghamshire Council,30.09.2023,14.09.2023,Resources,AH&R - Res Dir,AMZNMktplace,6.97,0,6.97,Awaiting Coding,Miscellaneous retail
Bukcinghamshire Council,30.09.2023,14.09.2023,Deputy Chief Executive,AH&R- DCE Dir,PAYPAL,120,0,120,Awaiting Coding,Variety stores
Bukcinghamshire Council,30.09.2023,14.09.2023,Deputy Chief Executive,AH&R- DCE Dir,PAYPAL,662.95,0,662.95,Awaiting Coding,Variety stores
Bukcinghamshire Council,30.09.2023,14.09.2023,Communities,Culture & Leisure - Communities Dir,PAYPAL,67.9,0,67.9,Protective Clothing & Uniforms,Sporting goods shops
Bukcinghamshire Council,30.09.2023,14.09.2023,Deputy Chief Executive,Communities - DCE,PAYPAL,528.95,0,528.95,Other Personal Needs,Variety stores
Bukcinghamshire Council,30.09.2023,14.09.2023,Deputy Chief Executive,Communities - DCE,PAYPAL,275,0,275,Other Personal Needs,Variety stores
Bukcinghamshire Council,30.09.2023,13.09.2023,Deputy Chief Executive,AH&R- DCE Dir,OPTIMAL WORKSHOP,205.79,0,205.79,Computer Consumables,Computer software stores
Bukcinghamshire Council,30.09.2023,13.09.2023,"Planning, Growth & Sustainability",Housing & Homelessness & Regulatory PGS,SUMUP  *CABS4U,35,0,35,Staff Travelling Expenses,Taxicabs & limousines
Bukcinghamshire Council,30.09.2023,13.09.2023,"Planning, Growth & Sustainability",Housing & Homelessness & Regulatory PGS,WWW.SCREWFIX.COM,35.99,0,35.99,Administrative Equipment & Tools,Timber & building supplies
Bukcinghamshire Council,30.09.2023,13.09.2023,Communities,Climate Change & Environment - Community,BHI STATION TVM,29.6,0,29.6,Staff Travelling Expenses,Passenger railways
Bukcinghamshire Council,30.09.2023,13.09.2023,Communities,Climate Change & Environment - Community,BHM STATION TVM,4.6,0,4.6,Staff Travelling Expenses,Passenger railways
Bukcinghamshire Council,30.09.2023,13.09.2023,Deputy Chief Executive,Communities - DCE,AO RETAIL LIMITED,220,44,264,Other Personal Needs,Household appliance stores
Bukcinghamshire Council,30.09.2023,13.09.2023,Deputy Chief Executive,Communities - DCE,AO RETAIL LIMITED,328.33,65.67,394,Other Personal Needs,Household appliance stores
Bukcinghamshire Council,30.09.2023,13.09.2023,Deputy Chief Executive,Communities - DCE,DELIVEROO,36.43,0,36.43,Other Personal Needs,Restaurants
Bukcinghamshire Council,30.09.2023,13.09.2023,Children's Services,Education & Childrens Services - CS Dir,AMZNMKTPLACE,65.65,0,65.65,Leaving Care - Grants for Care Leavers,Miscellaneous retail
Bukcinghamshire Council,30.09.2023,13.09.2023,Children's Services,Education & Childrens Services - CS Dir,AMAZON.CO.UK,25.48,0,25.48,Printing & Stationery,Direct sales companies
Bukcinghamshire Council,30.09.2023,13.09.2023,Children's Services,Education & Childrens Services - CS Dir,AMZNMKTPLACE,12.99,0,12.99,Printing & Stationery,Miscellaneous retail
Bukcinghamshire Council,30.09.2023,13.09.2023,Children's Services,Education & Childrens Services - CS Dir,AMZNMKTPLACE,59.95,0,59.95,Furniture,Miscellaneous retail
Bukcinghamshire Council,30.09.2023,13.09.2023,Resources,AH&R - Res Dir,COSTA COFFEE 43010475,15,0,15,Subsistence,Fast food restaurants
Bukcinghamshire Council,30.09.2023,13.09.2023,Resources,AH&R - Res Dir,POST OFFICE COUNTER,25,0,25,General Postage,Postal services
Bukcinghamshire Council,30.09.2023,13.09.2023,Deputy Chief Executive,Leader - DCE,SMART PARKING (E),10.5,0,10.5,Staff Travelling Expenses,Car parking & garages
Bukcinghamshire Council,30.09.2023,13.09.2023,Children's Services,Education & Childrens Services - CS Dir,ALLIED VEHICLES,"1,155.00",0,"1,155.00",Sec 20/31: Financial Assistance,Automobile dealers - new & used
Bukcinghamshire Council,30.09.2023,13.09.2023,Children's Services,Education & Childrens Services - CS Dir,NEALES TAXIS LTD,24,0,24,Sec 17: Transport,Taxicabs & limousines
Bukcinghamshire Council,30.09.2023,13.09.2023,"Planning, Growth & Sustainability",Housing & Homelessness & Regulatory PGS,LAND REGISTRY ECOM CCC,3,0,3,Homelessness,Government services
Bukcinghamshire Council,30.09.2023,13.09.2023,"Planning, Growth & Sustainability",Housing & Homelessness & Regulatory PGS,LAND REGISTRY ECOM CCC,3,0,3,Homelessness,Government services
Bukcinghamshire Council,30.09.2023,13.09.2023,"Planning, Growth & Sustainability",Housing & Homelessness & Regulatory PGS,LAND REGISTRY ECOM CCC,3,0,3,Homelessness,Government services
Bukcinghamshire Council,30.09.2023,13.09.2023,Resources,AH&R - Res Dir,GEN REGISTER OFFICE,14,0,14,Miscellaneous (Other)  Expenses,Government services
Bukcinghamshire Council,30.09.2023,13.09.2023,Children's Services,Education & Childrens Services - CS Dir,DIRECT CARS,210,0,210,Sec 20/31: Transport,Taxicabs & limousines
Bukcinghamshire Council,30.09.2023,13.09.2023,Communities,Partnerships - Communities,WWW.BUCKINGHAMSHIRE.GOV,82.15,16.43,98.58,Miscellaneous (Other)  Expenses,Government services
Bukcinghamshire Council,30.09.2023,13.09.2023,Communities,Partnerships - Communities,WWW.BUCKINGHAMSHIRE.GOV,38,0,38,Miscellaneous (Other)  Expenses,Government services
Bukcinghamshire Council,30.09.2023,13.09.2023,Deputy Chief Executive,AH&R- DCE Dir,AMZNMKTPLACE,52.99,0,52.99,Other Personal Needs,Miscellaneous retail
Bukcinghamshire Council,30.09.2023,13.09.2023,Children's Services,Education & Childrens Services - CS Dir,AMZNMKTPLACE,146.89,0,146.89,Continuing Professional Development,Miscellaneous retail
Bukcinghamshire Council,30.09.2023,13.09.2023,Communities,Culture & Leisure - Communities Dir,AMZNMKTPLACE,13.88,2.78,16.66,"Workshop - Materials,Tools & Equipment",Miscellaneous retail
Bukcinghamshire Council,30.09.2023,13.09.2023,"Planning, Growth & Sustainability",Housing & Homelessness & Regulatory PGS,HOLIDAY INN,944,0,944,"Courses, Conference and Seminar Fees","Hotels, motels & resorts"
Bukcinghamshire Council,30.09.2023,13.09.2023,"Planning, Growth & Sustainability",Housing & Homelessness & Regulatory PGS,HOLIDAY INN,994.25,0,994.25,"Courses, Conference and Seminar Fees","Hotels, motels & resorts"
Bukcinghamshire Council,30.09.2023,13.09.2023,Communities,Transport - Communities Dir,B & Q 1305,22.84,0,22.84,Materials,Home supply warehouse stores
Bukcinghamshire Council,30.09.2023,13.09.2023,Children's Services,Education & Childrens Services - CS Dir,LEBARA MOBILE LIMITED,25,0,25,Telephones,Phone services
Bukcinghamshire Council,30.09.2023,13.09.2023,Children's Services,Partnerships - Children's Services,SAINSBURYS S/MKTS,6.95,0,6.95,"Courses, Conference and Seminar Fees",Grocery stores
Bukcinghamshire Council,30.09.2023,13.09.2023,Children's Services,Partnerships - Children's Services,AYLESBURY STATION T/O,40.3,0,40.3,Staff Travelling Expenses,Passenger railways
Bukcinghamshire Council,30.09.2023,13.09.2023,Adults and Health,Health & Wellbeing - Adults & Health Dir,ADEXA.CO.UK,574.8,0,574.8,Stationery & Office Supplies,Misc commercial machines equipment
Bukcinghamshire Council,30.09.2023,13.09.2023,Communities,Climate Change & Environment - Community,PAYPAL,23.2,0,23.2,Advertising,Passenger railways
Bukcinghamshire Council,30.09.2023,13.09.2023,Communities,Climate Change & Environment - Community,PAYPAL,4.6,0,4.6,Advertising,Passenger railways
Bukcinghamshire Council,30.09.2023,13.09.2023,Communities,Culture & Leisure - Communities Dir,WICKES AYLESBURY,35,7,42,Administrative Equipment & Tools,Timber & building supplies
Bukcinghamshire Council,30.09.2023,13.09.2023,Children's Services,Education & Childrens Services - CS Dir,SAINSBURY S S/MKTS,70.71,0,70.71,Consumable Supplies,Grocery stores
Bukcinghamshire Council,30.09.2023,13.09.2023,Deputy Chief Executive,AH&R- DCE Dir,CLOUDFLARE,210.74,0,210.74,Computer Consumables,Computer software stores
Bukcinghamshire Council,30.09.2023,13.09.2023,Children's Services,Education & Childrens Services - CS Dir,ASDA SUPERSTORE,3,0,3,General Provisions (Food),Grocery stores
Bukcinghamshire Council,30.09.2023,13.09.2023,Deputy Chief Executive,Leader - DCE,AMZNMKTPLACE,55.97,0,55.97,Events Expenditure,Miscellaneous retail
Bukcinghamshire Council,30.09.2023,13.09.2023,"Planning, Growth & Sustainability",AH&R - PGS Dir,AMZNMktplace,110.98,0,110.98,Awaiting Coding,Miscellaneous retail
Bukcinghamshire Council,30.09.2023,13.09.2023,Deputy Chief Executive,AH&R- DCE Dir,SAINSBURY S S/MKTS,250,0,250,Long Service Awards,Grocery stores
Bukcinghamshire Council,30.09.2023,13.09.2023,Children's Services,Education & Childrens Services - CS Dir,PREMIER INN,113.99,0,113.99,"Courses, Conference and Seminar Fees",Premier Inn
Bukcinghamshire Council,30.09.2023,13.09.2023,Resources,AH&R - Res Dir,TESCO STORES 4480,250,0,250,Long Service Awards,Grocery stores
Bukcinghamshire Council,30.09.2023,13.09.2023,Resources,AH&R - Res Dir,LINKEDIN ADS 9411625284,53.84,0,53.84,Permanent Recruitment Costs,Advertising services
Bukcinghamshire Council,30.09.2023,13.09.2023,Children's Services,Education & Childrens Services - CS Dir,AELP.ORG.UK,159,31.8,190.8,Training (Inc. Health & Safety Courses),Schools
Bukcinghamshire Council,30.09.2023,13.09.2023,Children's Services,Education & Childrens Services - CS Dir,HIGH SPEED TRAINING,93,18.6,111.6,Training (Inc. Health & Safety Courses),Schools
Bukcinghamshire Council,30.09.2023,13.09.2023,Children's Services,Education & Childrens Services - CS Dir,PARENTPAY E-COM R,15,0,15,Other Personal Needs,Colleges & universities
Bukcinghamshire Council,30.09.2023,13.09.2023,Children's Services,Education & Childrens Services - CS Dir,VOUCHER EXPRESS,100,0,100,Miscellaneous (Other)  Expenses,Misc business services
Bukcinghamshire Council,30.09.2023,13.09.2023,Communities,Transport - Communities Dir,SHELL 40-42 WOODSIDE ROAD,4.12,0,4.12,Petrol,Service stations
Bukcinghamshire Council,30.09.2023,13.09.2023,Adults and Health,Health & Wellbeing - Adults & Health Dir,NEALES TAXIS LTD,320,0,320,Staff Travelling Expenses,Taxicabs & limousines
Bukcinghamshire Council,30.09.2023,13.09.2023,Deputy Chief Executive,AH&R- DCE Dir,PLAZA CARS,50,0,50,Staff Travelling Expenses,Taxicabs & limousines
Bukcinghamshire Council,30.09.2023,13.09.2023,Deputy Chief Executive,AH&R- DCE Dir,PAYPAL,30,0,30,Awaiting Coding,Variety stores
Bukcinghamshire Council,30.09.2023,13.09.2023,Deputy Chief Executive,AH&R- DCE Dir,PAYPAL,284.28,0,284.28,Awaiting Coding,Variety stores
Bukcinghamshire Council,30.09.2023,13.09.2023,Deputy Chief Executive,AH&R- DCE Dir,PAYPAL,55.95,0,55.95,Awaiting Coding,Variety stores
Bukcinghamshire Council,30.09.2023,13.09.2023,Resources,AH&R - Res Dir,GEN REGISTER OFFICE,-14,0,-14,Miscellaneous (Other)  Expenses,Government services
Bukcinghamshire Council,30.09.2023,12.09.2023,Deputy Chief Executive,AH&R- DCE Dir,AO RETAIL LIMITED,100,0,100,Awaiting Coding,Household appliance stores
Bukcinghamshire Council,30.09.2023,12.09.2023,Communities,Climate Change & Environment - Community,MILAN INDIAN CUISINE,352.1,70.42,422.52,Subsistence,Restaurants
Bukcinghamshire Council,30.09.2023,12.09.2023,Communities,Climate Change & Environment - Community,MILAN INDIAN CUISINE,0.05,0,0.05,Subsistence,Restaurants
Bukcinghamshire Council,30.09.2023,12.09.2023,Communities,Climate Change & Environment - Community,CMT UK LTD TAXI FARE,12.6,0,12.6,Staff Travelling Expenses,Taxicabs & limousines
Bukcinghamshire Council,30.09.2023,12.09.2023,Communities,Climate Change & Environment - Community,TFL TRAVEL CH,2.8,0,2.8,Staff Travelling Expenses,Local commuter transport
Bukcinghamshire Council,30.09.2023,12.09.2023,Communities,Climate Change & Environment - Community,GWR OXFORD SST,39.2,0,39.2,Staff Travelling Expenses,Passenger railways
Bukcinghamshire Council,30.09.2023,12.09.2023,"Planning, Growth & Sustainability",Climate Change & Environment - PGS,TWITTER ONLINE ADS,59.99,0,59.99,Advertising,Advertising services
Bukcinghamshire Council,30.09.2023,12.09.2023,Deputy Chief Executive,Communities - DCE,AO RETAIL LIMITED,353.33,70.67,424,Other Personal Needs,Household appliance stores
Bukcinghamshire Council,30.09.2023,12.09.2023,Deputy Chief Executive,Communities - DCE,WWW.ARGOS.CO.UK,75.65,15.13,90.78,Other Personal Needs,Department stores
Bukcinghamshire Council,30.09.2023,12.09.2023,Deputy Chief Executive,Communities - DCE,WWW.ARGOS.CO.UK,29.95,5.99,35.94,Other Personal Needs,Department stores
Bukcinghamshire Council,30.09.2023,12.09.2023,Deputy Chief Executive,Communities - DCE,WWW.ARGOS.CO.UK,0.01,0,0.01,Other Personal Needs,Department stores
Bukcinghamshire Council,30.09.2023,12.09.2023,Deputy Chief Executive,Communities - DCE,WWW.ARGOS.CO.UK,42.45,8.49,50.94,Other Personal Needs,Department stores
Bukcinghamshire Council,30.09.2023,12.09.2023,Deputy Chief Executive,Communities - DCE,WWW.ARGOS.CO.UK,0.01,0,0.01,Other Personal Needs,Department stores
Bukcinghamshire Council,30.09.2023,12.09.2023,Deputy Chief Executive,Communities - DCE,AO RETAIL LIMITED,481.66,96.34,578,Other Personal Needs,Household appliance stores
Bukcinghamshire Council,30.09.2023,12.09.2023,Deputy Chief Executive,Communities - DCE,AO RETAIL LIMITED,527.5,105.5,633,Other Personal Needs,Household appliance stores
Bukcinghamshire Council,30.09.2023,12.09.2023,Deputy Chief Executive,Communities - DCE,AO RETAIL LIMITED,353.33,70.67,424,Other Personal Needs,Household appliance stores
Bukcinghamshire Council,30.09.2023,12.09.2023,Deputy Chief Executive,Communities - DCE,AO RETAIL LIMITED,-10,0,-10,Other Personal Needs,Household appliance stores
Bukcinghamshire Council,30.09.2023,12.09.2023,Deputy Chief Executive,Communities - DCE,AO RETAIL LIMITED,-424,0,-424,Other Personal Needs,Household appliance stores
Bukcinghamshire Council,30.09.2023,12.09.2023,Children's Services,Education & Childrens Services - CS Dir,SQ *PUBLIC POLICY EXCHANG,79,15.8,94.8,Professional Services (non curriculum) - External,Professional services
Bukcinghamshire Council,30.09.2023,12.09.2023,Deputy Chief Executive,Communities - DCE,EVENTBRITE.COM ORG FEE,7.99,0,7.99,Computer Consumables,Computer software stores
Bukcinghamshire Council,30.09.2023,12.09.2023,Deputy Chief Executive,Communities - DCE,EVENTBRITE.COM ORG FEE,7.99,0,7.99,Computer Consumables,Computer software stores
Bukcinghamshire Council,30.09.2023,12.09.2023,Communities,Climate Change & Environment - Community,DVLA VEHICLE TAX,322.5,0,322.5,Vehicle Insurance,Government services
Bukcinghamshire Council,30.09.2023,12.09.2023,Children's Services,Education & Childrens Services - CS Dir,WWW.MARKALLENGROUP.COM,269,53.8,322.8,Continuing Professional Development,Schools
Bukcinghamshire Council,30.09.2023,12.09.2023,Resources,AH&R - Res Dir,AMZNMKTPLACE,100.5,0,100.5,Equipment,Miscellaneous retail
Bukcinghamshire Council,30.09.2023,12.09.2023,Communities,Housing & Homelessness & Regulatory Comm,GEORGE BROWNS LTD CHESHAM,142.36,0,142.36,Maintenance of Grounds,Lawn & garden supply/nursery
Bukcinghamshire Council,30.09.2023,12.09.2023,Adults and Health,Health & Wellbeing - Adults & Health Dir,SWAN INN,140,0,140,"Courses, Conference and Seminar Fees",Restaurants
Bukcinghamshire Council,30.09.2023,12.09.2023,Children's Services,Education & Childrens Services - CS Dir,ARRIVA UK BUS,37.5,0,37.5,Sec 17: Transport,"Buses, charter & tour"
Bukcinghamshire Council,30.09.2023,12.09.2023,Children's Services,Education & Childrens Services - CS Dir,AMZNMKTPLACE,66.98,0,66.98,Telephones,Miscellaneous retail
Bukcinghamshire Council,30.09.2023,12.09.2023,"Planning, Growth & Sustainability",AH&R - PGS Dir,SCREWFIX DIR LTD,26.99,0,26.99,General Repairs & Maintenance,Timber & building supplies
Bukcinghamshire Council,30.09.2023,12.09.2023,Children's Services,Education & Childrens Services - CS Dir,MAILCHIMP,217.64,0,217.64,Service Development,
Bukcinghamshire Council,30.09.2023,12.09.2023,Communities,Culture & Leisure - Communities Dir,AMZNMKTPLACE,53.75,10.75,64.5,"Workshop - Materials,Tools & Equipment",Miscellaneous retail
Bukcinghamshire Council,30.09.2023,12.09.2023,Communities,Culture & Leisure - Communities Dir,AMZNMKTPLACE,0.01,0,0.01,"Workshop - Materials,Tools & Equipment",Miscellaneous retail
Bukcinghamshire Council,30.09.2023,12.09.2023,Communities,Transport - Communities Dir,AMZNMKTPLACE,117.87,0,117.87,Area Teams and Materials,Miscellaneous retail
Bukcinghamshire Council,30.09.2023,12.09.2023,Children's Services,Partnerships - Children's Services,SAINSBURY S S/MKTS,3,0,3,"Courses, Conference and Seminar Fees",Grocery stores
Bukcinghamshire Council,30.09.2023,12.09.2023,Resources,AH&R - Res Dir,AMZNMKTPLACE,112.61,0,112.61,IT Equipment Purchase,Miscellaneous retail
Bukcinghamshire Council,30.09.2023,12.09.2023,Communities,Climate Change & Environment - Community,WEST MIDLANDS RAIL,97,0,97,Staff Travelling Expenses,Passenger railways
Bukcinghamshire Council,30.09.2023,12.09.2023,Children's Services,Education & Childrens Services - CS Dir,ASHCO,18,0,18,Consumable Supplies,Hardware stores
Bukcinghamshire Council,30.09.2023,12.09.2023,Children's Services,Education & Childrens Services - CS Dir,BUDGETCARS.UK.COM,36,0,36,Sec 17: Transport,Taxicabs & limousines
Bukcinghamshire Council,30.09.2023,12.09.2023,Children's Services,Education & Childrens Services - CS Dir,BUDGETCARS.UK.COM,30,0,30,Sec 17: Transport,Taxicabs & limousines
Bukcinghamshire Council,30.09.2023,12.09.2023,Children's Services,Education & Childrens Services - CS Dir,B&M 426 - HS AYLESBURY,186.49,0,186.49,Leaving Care - Grants for Care Leavers,Misc. general merchandise
Bukcinghamshire Council,30.09.2023,12.09.2023,Children's Services,Education & Childrens Services - CS Dir,AMZNMKTPLACE,713.08,0,713.08,Furniture,Miscellaneous retail
Bukcinghamshire Council,30.09.2023,12.09.2023,Resources,AH&R - Res Dir,PAYPAL,8.99,0,8.99,IT - Computer Network Charges,Computer network information services
Bukcinghamshire Council,30.09.2023,12.09.2023,Children's Services,Education & Childrens Services - CS Dir,HIGH STREET VOUCHERS,347,0,347,Support for Foster Carers,Department stores
Bukcinghamshire Council,30.09.2023,12.09.2023,Children's Services,Education & Childrens Services - CS Dir,WH SMITH AYLESBURY,4.99,0,4.99,Support for Foster Carers,Newspapers / newsagents
Bukcinghamshire Council,30.09.2023,12.09.2023,Children's Services,Education & Childrens Services - CS Dir,TRAVELODGE GB0000,95.86,0,95.86,"Courses, Conference and Seminar Fees",Travelodge
Bukcinghamshire Council,30.09.2023,12.09.2023,"Planning, Growth & Sustainability",Leader - PGS,TESCO STORES 2041,75.08,0,75.08,Materials,Grocery stores
Bukcinghamshire Council,30.09.2023,12.09.2023,"Planning, Growth & Sustainability",Leader - PGS,TESCO STORES 2041,4.5,0,4.5,Materials,Grocery stores
Bukcinghamshire Council,30.09.2023,12.09.2023,Deputy Chief Executive,Leader - DCE,FACEBK SWXM6VTPN2,840,0,840,Advertising,Advertising services
Bukcinghamshire Council,30.09.2023,12.09.2023,"Planning, Growth & Sustainability",Leader - PGS,LINKEDIN ADS 9406298634,78.11,0,78.11,Advertising,Advertising services
Bukcinghamshire Council,30.09.2023,12.09.2023,Children's Services,Education & Childrens Services - CS Dir,TRAVELODGE GB0000,109.63,0,109.63,"Courses, Conference and Seminar Fees",Travelodge
Bukcinghamshire Council,30.09.2023,12.09.2023,Children's Services,Education & Childrens Services - CS Dir,AMZNMKTPLACE,16.97,0,16.97,Equipment (including storage),Miscellaneous retail
Bukcinghamshire Council,30.09.2023,12.09.2023,Children's Services,Education & Childrens Services - CS Dir,FIRST AVENUE SUPPLIES LIM,156,0,156,Protective Clothing & Uniforms,Uniforms & commercial clothing
Bukcinghamshire Council,30.09.2023,12.09.2023,Children's Services,Education & Childrens Services - CS Dir,GLOBAL PAYMENTS LLP,83.4,0,83.4,Bank Charges,Counselling services
Bukcinghamshire Council,30.09.2023,12.09.2023,Adults and Health,Health & Wellbeing - Adults & Health Dir,TESCO STORES 2640,100,0,100,Long Service Awards,Grocery stores
Bukcinghamshire Council,30.09.2023,12.09.2023,Resources,AH&R - Res Dir,SP INSTITUTE OF CS,112.8,0,112.8,Computer Consumables,Computer software stores
Bukcinghamshire Council,30.09.2023,12.09.2023,Adults and Health,Health & Wellbeing - Adults & Health Dir,AMZNMKTPLACE,32,6.4,38.4,Other Supplies,Miscellaneous retail
Bukcinghamshire Council,30.09.2023,12.09.2023,Children's Services,Education & Childrens Services - CS Dir,ODEON AYLESBURY,14.7,2.94,17.64,Activities Programme,Cinemas
Bukcinghamshire Council,30.09.2023,12.09.2023,Children's Services,Education & Childrens Services - CS Dir,ODEON AYLESBURY,0.01,0,0.01,Activities Programme,Cinemas
Bukcinghamshire Council,30.09.2023,12.09.2023,Adults and Health,Health & Wellbeing - Adults & Health Dir,TESCO SUBSCRIPTION,7.99,0,7.99,Stationery & Office Supplies,Continuous subscriptions
Bukcinghamshire Council,30.09.2023,12.09.2023,Adults and Health,Health & Wellbeing - Adults & Health Dir,NEALES TAXIS LTD,320,0,320,Staff Travelling Expenses,Taxicabs & limousines
Bukcinghamshire Council,30.09.2023,12.09.2023,Adults and Health,Health & Wellbeing - Adults & Health Dir,A1 TAXILINE,35,0,35,Staff Travelling Expenses,Taxicabs & limousines
Bukcinghamshire Council,30.09.2023,12.09.2023,Children's Services,Education & Childrens Services - CS Dir,UDEMY,15.99,0,15.99,Sec 17: Specialist Services,"Programming, data processing & system design"
Bukcinghamshire Council,30.09.2023,12.09.2023,Children's Services,Education & Childrens Services - CS Dir,WWW.PORT.AC.UK,-250,0,-250,Leaving Care - Higher Education Supp,Colleges & universities
Bukcinghamshire Council,30.09.2023,12.09.2023,Children's Services,Education & Childrens Services - CS Dir,WWW.PORT.AC.UK,"-2,824.00",0,"-2,824.00",Leaving Care - Higher Education Supp,Colleges & universities
Bukcinghamshire Council,30.09.2023,12.09.2023,Children's Services,Education & Childrens Services - CS Dir,AMZNMKTPLACE,50.19,0,50.19,Activities & General Recreation,Miscellaneous retail
Bukcinghamshire Council,30.09.2023,12.09.2023,Deputy Chief Executive,AH&R- DCE Dir,PAYPAL,12.31,0,12.31,Awaiting Coding,Variety stores
Bukcinghamshire Council,30.09.2023,12.09.2023,Deputy Chief Executive,AH&R- DCE Dir,PAYPAL,802,0,802,Awaiting Coding,Electronics shops
Bukcinghamshire Council,30.09.2023,12.09.2023,Deputy Chief Executive,AH&R- DCE Dir,PAYPAL,618.83,0,618.83,Awaiting Coding,Variety stores
Bukcinghamshire Council,30.09.2023,12.09.2023,Deputy Chief Executive,AH&R- DCE Dir,PAYPAL,19.95,0,19.95,Awaiting Coding,Variety stores
Bukcinghamshire Council,30.09.2023,12.09.2023,Deputy Chief Executive,AH&R- DCE Dir,PAYPAL,"1,413.95",0,"1,413.95",Awaiting Coding,Variety stores
Bukcinghamshire Council,30.09.2023,12.09.2023,Deputy Chief Executive,Communities - DCE,PAYPAL,233.25,46.65,279.9,Other Personal Needs,Variety stores
Bukcinghamshire Council,30.09.2023,12.09.2023,Deputy Chief Executive,Communities - DCE,PAYPAL,0.05,0,0.05,Other Personal Needs,Variety stores
Bukcinghamshire Council,30.09.2023,12.09.2023,Deputy Chief Executive,Communities - DCE,PAYPAL,16.25,3.25,19.5,Other Personal Needs,Variety stores
Bukcinghamshire Council,30.09.2023,11.09.2023,Children's Services,Education & Childrens Services - CS Dir,TRAINLINE,38.1,0,38.1,Sec 20/31: Transport,Passenger railways
Bukcinghamshire Council,30.09.2023,11.09.2023,Children's Services,Education & Childrens Services - CS Dir,SCOTTISH POWER,209.19,0,209.19,Accomodation Costs,Fuel dealers
Bukcinghamshire Council,30.09.2023,11.09.2023,Deputy Chief Executive,AH&R- DCE Dir,PAYPAL,538,0,538,Awaiting Coding,Electronics shops
Bukcinghamshire Council,30.09.2023,11.09.2023,Deputy Chief Executive,AH&R- DCE Dir,PAYPAL,787.95,0,787.95,Awaiting Coding,Variety stores
Bukcinghamshire Council,30.09.2023,11.09.2023,Deputy Chief Executive,AH&R- DCE Dir,PAYPAL,380.66,0,380.66,Awaiting Coding,Variety stores
Bukcinghamshire Council,30.09.2023,11.09.2023,Communities,Transport - Communities Dir,CJ'S LOCKSMITHS,168.8,0,168.8,Materials,Misc. repair services
Bukcinghamshire Council,30.09.2023,11.09.2023,Children's Services,Education & Childrens Services - CS Dir,EBAY O*27-10515-11084,16.17,0,16.17,"Exp of School, Club & College Activities",Department stores
Bukcinghamshire Council,30.09.2023,11.09.2023,Deputy Chief Executive,Communities - DCE,AO RETAIL LIMITED,739.16,147.84,887,Other Personal Needs,Household appliance stores
Bukcinghamshire Council,30.09.2023,11.09.2023,Deputy Chief Executive,Communities - DCE,AO RETAIL LIMITED,257.5,51.5,309,Other Personal Needs,Household appliance stores
Bukcinghamshire Council,30.09.2023,11.09.2023,Deputy Chief Executive,Communities - DCE,AO RETAIL LIMITED,207.5,41.5,249,Other Personal Needs,Household appliance stores
Bukcinghamshire Council,30.09.2023,11.09.2023,Deputy Chief Executive,Communities - DCE,AO RETAIL LIMITED,548.33,109.67,658,Other Personal Needs,Household appliance stores
Bukcinghamshire Council,30.09.2023,11.09.2023,Deputy Chief Executive,Communities - DCE,AO RETAIL LIMITED,573.33,114.67,688,Other Personal Needs,Household appliance stores
Bukcinghamshire Council,30.09.2023,11.09.2023,Deputy Chief Executive,Communities - DCE,WWW.ARGOS.CO.UK,224.1,44.82,268.92,Other Personal Needs,Department stores
Bukcinghamshire Council,30.09.2023,11.09.2023,Deputy Chief Executive,Communities - DCE,WWW.ARGOS.CO.UK,0.03,0,0.03,Other Personal Needs,Department stores
Bukcinghamshire Council,30.09.2023,11.09.2023,Deputy Chief Executive,Communities - DCE,WWW.ARGOS.CO.UK,224.1,44.82,268.92,Other Personal Needs,Department stores
Bukcinghamshire Council,30.09.2023,11.09.2023,Deputy Chief Executive,Communities - DCE,WWW.ARGOS.CO.UK,0.03,0,0.03,Other Personal Needs,Department stores
Bukcinghamshire Council,30.09.2023,11.09.2023,Deputy Chief Executive,Communities - DCE,WWW.ARGOS.CO.UK,341.75,68.35,410.1,Other Personal Needs,Department stores
Bukcinghamshire Council,30.09.2023,11.09.2023,Deputy Chief Executive,Communities - DCE,WWW.ARGOS.CO.UK,340.79,68.16,408.95,Other Personal Needs,Department stores
Bukcinghamshire Council,30.09.2023,11.09.2023,Deputy Chief Executive,Communities - DCE,WWW.ARGOS.CO.UK,310.79,62.16,372.95,Other Personal Needs,Department stores
Bukcinghamshire Council,30.09.2023,11.09.2023,Deputy Chief Executive,Communities - DCE,WWW.ARGOS.CO.UK,711.6,142.32,853.92,Other Personal Needs,Department stores
Bukcinghamshire Council,30.09.2023,11.09.2023,Deputy Chief Executive,Communities - DCE,WWW.ARGOS.CO.UK,0.03,0,0.03,Other Personal Needs,Department stores
Bukcinghamshire Council,30.09.2023,11.09.2023,Children's Services,Education & Childrens Services - CS Dir,AMZNMKTPLACE,19.98,0,19.98,Activities & General Recreation,Miscellaneous retail
Bukcinghamshire Council,30.09.2023,11.09.2023,Children's Services,Education & Childrens Services - CS Dir,TESCO STORES 2041,210.1,0,210.1,General Provisions (Food),Grocery stores
Bukcinghamshire Council,30.09.2023,11.09.2023,Deputy Chief Executive,Leader - DCE,SAINSBURY S S/MKTS,4,0,4,General Provisions (Food),Grocery stores
Bukcinghamshire Council,30.09.2023,11.09.2023,Communities,Transport - Communities Dir,HALFORDS 0894,91.96,0,91.96,Vehicle Hire,"Bicycle shops, sales & service"
Bukcinghamshire Council,30.09.2023,11.09.2023,Communities,Culture & Leisure - Communities Dir,WWW.SCREWFIX.COM,23.3,4.66,27.96,"Workshop - Materials,Tools & Equipment",Timber & building supplies
Bukcinghamshire Council,30.09.2023,11.09.2023,Communities,Culture & Leisure - Communities Dir,WWW.SCREWFIX.COM,0.02,0,0.02,"Workshop - Materials,Tools & Equipment",Timber & building supplies
Bukcinghamshire Council,30.09.2023,11.09.2023,Adults and Health,Communities - Adults & Health,AMAZON.CO.UK,19.2,0,19.2,Security & Safety Supplies & Equipment,Direct sales companies
Bukcinghamshire Council,30.09.2023,11.09.2023,Deputy Chief Executive,AH&R- DCE Dir,AMZNMKTPLACE,5.94,0,5.94,Other Personal Needs,Miscellaneous retail
Bukcinghamshire Council,30.09.2023,11.09.2023,Children's Services,Education & Childrens Services - CS Dir,TESCO GIFT CARD,60,0,60,Consumable Supplies,Grocery stores
Bukcinghamshire Council,30.09.2023,11.09.2023,Children's Services,Education & Childrens Services - CS Dir,TESCO GIFT CARD,50,0,50,Consumable Supplies,Grocery stores
Bukcinghamshire Council,30.09.2023,11.09.2023,Children's Services,Education & Childrens Services - CS Dir,WICKES CHESHAM,13.3,0,13.3,General Repairs & Maintenance,Timber & building supplies
Bukcinghamshire Council,30.09.2023,11.09.2023,Children's Services,Education & Childrens Services - CS Dir,HOBBYCRAFT,90,18,108,Educational Equipment,Art & craft shops
Bukcinghamshire Council,30.09.2023,11.09.2023,Deputy Chief Executive,Communities - DCE,SHORTS GROUP LTD,-100,0,-100,Payments - Other Bodies,"Equipment, tool, furniture hire & leasing"
Bukcinghamshire Council,30.09.2023,11.09.2023,Children's Services,Education & Childrens Services - CS Dir,WWW.SCREWFIX.COM,42.99,0,42.99,Miscellaneous (Other)  Expenses,Timber & building supplies
Bukcinghamshire Council,30.09.2023,11.09.2023,Children's Services,Education & Childrens Services - CS Dir,LOCK & KEY CENTRE,40,0,40,Miscellaneous (Other)  Expenses,Misc business services
Bukcinghamshire Council,30.09.2023,11.09.2023,Deputy Chief Executive,Communities - DCE,SAINSBURY S S/MKTS,30.85,0,30.85,General Provisions (Food),Grocery stores
Bukcinghamshire Council,30.09.2023,11.09.2023,Resources,AH&R - Res Dir,FT LIVE,207.41,0,207.41,"Courses, Conference and Seminar Fees",Misc business services
Bukcinghamshire Council,30.09.2023,11.09.2023,Communities,Climate Change & Environment - Community,HELLOPRINT UNITED KINGDOM,187.2,0,187.2,Photocopiers,Photocopy & reproduction services
Bukcinghamshire Council,30.09.2023,11.09.2023,Resources,AH&R - Res Dir,GMO GLOBALSIGN LIM,226.8,0,226.8,Annual Licence (IT),Computer network information services
Bukcinghamshire Council,30.09.2023,11.09.2023,Resources,AH&R - Res Dir,GMO GLOBALSIGN LIM,226.8,0,226.8,Annual Licence (IT),Computer network information services
Bukcinghamshire Council,30.09.2023,11.09.2023,Children's Services,Education & Childrens Services - CS Dir,HETLEYS LIMITED,403.03,0,403.03,Equipment (including storage),Furniture & home furnishing
Bukcinghamshire Council,30.09.2023,11.09.2023,Communities,Partnerships - Communities,THE BELL,65.36,0,65.36,Subsistence,Restaurants
Bukcinghamshire Council,30.09.2023,11.09.2023,Children's Services,Education & Childrens Services - CS Dir,AMZNMKTPLACE,99.99,0,99.99,Leaving Care - Grants for Care Leavers,Miscellaneous retail
Bukcinghamshire Council,30.09.2023,11.09.2023,Children's Services,Education & Childrens Services - CS Dir,HM PASSPORT OFFICE,82.5,0,82.5,Sec 20/31: Financial Assistance One Off,Government services
Bukcinghamshire Council,30.09.2023,11.09.2023,Children's Services,Education & Childrens Services - CS Dir,WWW.ARGOS.CO.UK,-45,0,-45,Leaving Care - Grants for Care Leavers,Department stores
Bukcinghamshire Council,30.09.2023,11.09.2023,Children's Services,Education & Childrens Services - CS Dir,WWW.SOLOPRESS.COM,132.95,0,132.95,Printing & Stationery,Publishing & printing services
Bukcinghamshire Council,30.09.2023,11.09.2023,Adults and Health,Health & Wellbeing - Adults & Health Dir,TESCO STORES 5135,208.82,0,208.82,General Provisions (Food),Grocery stores
Bukcinghamshire Council,30.09.2023,11.09.2023,Communities,Communities - Trust Accounts,COSTCO WHOLESALE #102,155.98,0,155.98,Stationery & Office Supplies,Buying & shopping services/clubs
Bukcinghamshire Council,30.09.2023,11.09.2023,Communities,Culture & Leisure - Communities Dir,JEWSON,140.39,28.08,168.47,"Workshop - Materials,Tools & Equipment",Timber & building supplies
Bukcinghamshire Council,30.09.2023,11.09.2023,"Planning, Growth & Sustainability",Housing & Homelessness & Regulatory PGS,FEE2PAYONLINE,1.1,0,1.1,General Postage,Postal services
Bukcinghamshire Council,30.09.2023,11.09.2023,Adults and Health,Health & Wellbeing - Adults & Health Dir,HIGH STREET VOUCHERS,404.25,0,404.25,Special Projects,Department stores
Bukcinghamshire Council,30.09.2023,11.09.2023,Adults and Health,Health & Wellbeing - Adults & Health Dir,TESCO STORES 5135,85.39,0,85.39,General Provisions (Food),Grocery stores
Bukcinghamshire Council,30.09.2023,11.09.2023,Children's Services,Education & Childrens Services - CS Dir,ARRIVA UK BUS,8,0,8,Sec 20/31: Supp for Contact,"Buses, charter & tour"
Bukcinghamshire Council,30.09.2023,11.09.2023,Children's Services,Education & Childrens Services - CS Dir,FIRST BUS - WEB,15.6,0,15.6,Sec 20/31: Supp for Contact,"Buses, charter & tour"
Bukcinghamshire Council,30.09.2023,11.09.2023,Communities,Transport - Communities Dir,SHELL 40-42 WOODSIDE ROAD,6.14,0,6.14,Petrol,Service stations
Bukcinghamshire Council,30.09.2023,11.09.2023,Adults and Health,Health & Wellbeing - Adults & Health Dir,TRAVELODGE GB0000,921.93,0,921.93,Other Short Term Support,Travelodge
Bukcinghamshire Council,30.09.2023,11.09.2023,Communities,Housing & Homelessness & Regulatory Comm,ASDA GEORGE COM LEEDS,39.5,0,39.5,Protective Clothing & Uniforms,Grocery stores
Bukcinghamshire Council,30.09.2023,11.09.2023,Children's Services,Education & Childrens Services - CS Dir,SUMUP  *CABS4U,360,0,360,Sec 17: Specialist Services,Taxicabs & limousines
Bukcinghamshire Council,30.09.2023,11.09.2023,Children's Services,Education & Childrens Services - CS Dir,UDEMY,15.99,0,15.99,Sec 17: Specialist Services,"Programming, data processing & system design"
Bukcinghamshire Council,30.09.2023,11.09.2023,Children's Services,Education & Childrens Services - CS Dir,TESCO GIFT CARD,50,0,50,Sec 17: Financial Assistance One Off,Grocery stores
Bukcinghamshire Council,30.09.2023,11.09.2023,Communities,Partnerships - Communities,BT PLC BUSINESS MOTO BPAY,64,12.8,76.8,Telephones,Phone services
Bukcinghamshire Council,30.09.2023,11.09.2023,Communities,Partnerships - Communities,BT PLC BUSINESS MOTO BPAY,0.01,0,0.01,Telephones,Phone services
Bukcinghamshire Council,30.09.2023,10.09.2023,Communities,Climate Change & Environment - Community,WWW.AVANTIWESTCOAST.CO,77.2,0,77.2,Staff Travelling Expenses,Passenger railways
Bukcinghamshire Council,30.09.2023,10.09.2023,Communities,Housing & Homelessness & Regulatory Comm,AMZNMKTPLACE,27.98,0,27.98,Maintenance of Grounds,Miscellaneous retail
Bukcinghamshire Council,30.09.2023,10.09.2023,Communities,Transport - Communities Dir,AMAZON.CO.UK,161.65,0,161.65,Miscellaneous (Other)  Expenses,Direct sales companies
Bukcinghamshire Council,30.09.2023,10.09.2023,Children's Services,Education & Childrens Services - CS Dir,AMAZON PRIME,8.99,0,8.99,Miscellaneous (Other)  Expenses,Continuous subscriptions
Bukcinghamshire Council,30.09.2023,10.09.2023,Communities,Culture & Leisure - Communities Dir,AMZNMKTPLACE,39.4,0,39.4,Administrative Equipment & Tools,Miscellaneous retail
Bukcinghamshire Council,30.09.2023,10.09.2023,Communities,Climate Change & Environment - Community,ALDI 73 775,10.74,0,10.74,Equipment,Grocery stores
Bukcinghamshire Council,30.09.2023,09.09.2023,"Planning, Growth & Sustainability",Climate Change & Environment - PGS,HTTPS://SCRIBE.HOW/B,23.99,0,23.99,Computer Consumables,Computer software stores
Bukcinghamshire Council,30.09.2023,09.09.2023,Children's Services,Education & Childrens Services - CS Dir,DOMINO S PIZZA,57.49,0,57.49,"Exp of School, Club & College Activities",Restaurants
Bukcinghamshire Council,30.09.2023,09.09.2023,Communities,Partnerships - Communities,MAILCHIMP,18.52,3.71,22.23,Computer Consumables,
Bukcinghamshire Council,30.09.2023,09.09.2023,Communities,Partnerships - Communities,ADOBE CREATIVE CLOUD,43.32,0,43.32,Computer Consumables,Computer software stores
Bukcinghamshire Council,30.09.2023,09.09.2023,Children's Services,Education & Childrens Services - CS Dir,MAILCHIMP,48.44,0,48.44,Computer Consumables,
Bukcinghamshire Council,30.09.2023,09.09.2023,Communities,Climate Change & Environment - Community,ROADWARRIOR,12.4,0,12.4,Computer Support Services,"Programming, data processing & system design"
Bukcinghamshire Council,30.09.2023,09.09.2023,Children's Services,Education & Childrens Services - CS Dir,TESCO STORES 2041,85.63,0,85.63,Activities Programme,Grocery stores
Bukcinghamshire Council,30.09.2023,08.09.2023,Children's Services,Education & Childrens Services - CS Dir,AMZNMKTPLACE,19.98,0,19.98,YOS - Direct Work,Miscellaneous retail
Bukcinghamshire Council,30.09.2023,08.09.2023,Communities,Climate Change & Environment - Community,FACEBK FJWLJTPBM2,1.61,0,1.61,Advertising,Advertising services
Bukcinghamshire Council,30.09.2023,08.09.2023,"Planning, Growth & Sustainability",Housing & Homelessness & Regulatory PGS,HPI INSTANT INK UK,4.49,0,4.49,Awaiting Coding,Electronics shops
Bukcinghamshire Council,30.09.2023,08.09.2023,Deputy Chief Executive,AH&R- DCE Dir,AO RETAIL LIMITED,39.99,0,39.99,Miscellaneous (Other)  Expenses,Household appliance stores
Bukcinghamshire Council,30.09.2023,08.09.2023,Deputy Chief Executive,AH&R- DCE Dir,AO RETAIL LIMITED,229,0,229,Other Personal Needs,Household appliance stores
Bukcinghamshire Council,30.09.2023,08.09.2023,Deputy Chief Executive,AH&R- DCE Dir,PAYPAL,409,0,409,Miscellaneous (Other)  Expenses,Electronics shops
Bukcinghamshire Council,30.09.2023,08.09.2023,Deputy Chief Executive,AH&R- DCE Dir,PAYPAL,272.95,0,272.95,Miscellaneous (Other)  Expenses,Variety stores
Bukcinghamshire Council,30.09.2023,08.09.2023,Deputy Chief Executive,AH&R- DCE Dir,PAYPAL,721.59,0,721.59,Miscellaneous (Other)  Expenses,Variety stores
Bukcinghamshire Council,30.09.2023,08.09.2023,Deputy Chief Executive,AH&R- DCE Dir,PAYPAL,402.49,0,402.49,Miscellaneous (Other)  Expenses,Variety stores
Bukcinghamshire Council,30.09.2023,08.09.2023,Deputy Chief Executive,AH&R- DCE Dir,PAYPAL,424.95,0,424.95,Miscellaneous (Other)  Expenses,Variety stores
Bukcinghamshire Council,30.09.2023,08.09.2023,Deputy Chief Executive,AH&R- DCE Dir,PAYPAL,854,0,854,Miscellaneous (Other)  Expenses,Electronics shops
Bukcinghamshire Council,30.09.2023,08.09.2023,Deputy Chief Executive,AH&R- DCE Dir,PAYPAL,-351,0,-351,Awaiting Coding,Electronics shops
Bukcinghamshire Council,30.09.2023,08.09.2023,"Planning, Growth & Sustainability",AH&R - PGS Dir,CTC.TRAINING,199,0,199,Course Fees & Post Entry Training,
Bukcinghamshire Council,30.09.2023,08.09.2023,"Planning, Growth & Sustainability",Planning & Regeneration - PGS,TEXTANYWHERE,39,0,39,Computer Consumables,Computer software stores
Bukcinghamshire Council,30.09.2023,08.09.2023,Children's Services,Education & Childrens Services - CS Dir,LYNKPAY* 001 TAXIS,149.35,0,149.35,Sec 20/31: Transport,
Bukcinghamshire Council,30.09.2023,08.09.2023,Children's Services,Education & Childrens Services - CS Dir,LYNKPAY* 001 TAXIS,149.35,0,149.35,Sec 20/31: Transport,
Bukcinghamshire Council,30.09.2023,08.09.2023,"Planning, Growth & Sustainability",Climate Change & Environment - PGS,NEW YORK (AYLESBURY) LTD,4.96,0,4.96,Subsistence,Restaurants
Bukcinghamshire Council,30.09.2023,08.09.2023,"Planning, Growth & Sustainability",Climate Change & Environment - PGS,NEW YORK (AYLESBURY) LTD,125.1,0,125.1,Subsistence,Restaurants
Bukcinghamshire Council,30.09.2023,08.09.2023,Children's Services,Education & Childrens Services - CS Dir,ONE4ALL,150.99,0,150.99,"Exp of School, Club & College Activities",Department stores
Bukcinghamshire Council,30.09.2023,08.09.2023,Deputy Chief Executive,Communities - DCE,WWW.ARGOS.CO.UK,219.95,43.99,263.94,Other Personal Needs,Department stores
Bukcinghamshire Council,30.09.2023,08.09.2023,Deputy Chief Executive,Communities - DCE,WWW.ARGOS.CO.UK,0.01,0,0.01,Other Personal Needs,Department stores
Bukcinghamshire Council,30.09.2023,08.09.2023,Deputy Chief Executive,Communities - DCE,WWW.ARGOS.CO.UK,30.64,6.14,36.78,Other Personal Needs,Department stores
Bukcinghamshire Council,30.09.2023,08.09.2023,Children's Services,Education & Childrens Services - CS Dir,PRIME - STANHOPE HOUSE,"3,074.00",0,"3,074.00",Leaving Care - Higher Education Supp,"Hotels, motels & resorts"
Bukcinghamshire Council,30.09.2023,08.09.2023,Children's Services,Education & Childrens Services - CS Dir,AMZNMKTPLACE,13.99,0,13.99,Other Personal Needs,Miscellaneous retail
Bukcinghamshire Council,30.09.2023,08.09.2023,Deputy Chief Executive,Communities - DCE,AO RETAIL LIMITED,768.33,153.67,922,Other Personal Needs,Household appliance stores
Bukcinghamshire Council,30.09.2023,08.09.2023,Deputy Chief Executive,Communities - DCE,VERY,828.98,0,828.98,Stationery & Office Supplies,Catalogue sales
Bukcinghamshire Council,30.09.2023,08.09.2023,Deputy Chief Executive,Leader - DCE,SMART PARKING (E),10.5,0,10.5,Staff Travelling Expenses,Car parking & garages
Bukcinghamshire Council,30.09.2023,08.09.2023,"Planning, Growth & Sustainability",Housing & Homelessness & Regulatory PGS,CHARTERED INSTITUTE OF EN,99,0,99,Course Fees & Post Entry Training,Charitable organisations
Bukcinghamshire Council,30.09.2023,08.09.2023,Communities,Partnerships - Communities,NEW YORK DELI GATEHOUSE,16.8,0,16.8,Equipment,Restaurants
Bukcinghamshire Council,30.09.2023,08.09.2023,Communities,Housing & Homelessness & Regulatory Comm,HOMEBASE,205.5,0,205.5,Maintenance of Grounds,Home supply warehouse stores
Bukcinghamshire Council,30.09.2023,08.09.2023,Communities,Housing & Homelessness & Regulatory Comm,TESCO STORES 2020,52,0,52,Furniture Fittings & IT,Grocery stores
Bukcinghamshire Council,30.09.2023,08.09.2023,Children's Services,Education & Childrens Services - CS Dir,AMZNMKTPLACE,13.74,0,13.74,Activities & General Recreation,Miscellaneous retail
Bukcinghamshire Council,30.09.2023,08.09.2023,Children's Services,Education & Childrens Services - CS Dir,TRAINLINE,31.55,0,31.55,Sec 20/31: Supp for Contact,Passenger railways
Bukcinghamshire Council,30.09.2023,08.09.2023,Children's Services,Education & Childrens Services - CS Dir,TRAINLINE,51.8,0,51.8,Sec 20/31: Supp for Contact,Passenger railways
Bukcinghamshire Council,30.09.2023,08.09.2023,Children's Services,Education & Childrens Services - CS Dir,TRAINLINE,111.41,0,111.41,Sec 20/31: Supp for Contact,Passenger railways
Bukcinghamshire Council,30.09.2023,08.09.2023,Children's Services,Education & Childrens Services - CS Dir,ASDA GROCERIES ONLINE,41.71,0,41.71,General Provisions (Food),Grocery stores
Bukcinghamshire Council,30.09.2023,08.09.2023,Adults and Health,Health & Wellbeing - Adults & Health Dir,TRAVELODGE GB0000,857.93,0,857.93,Other Short Term Support,Travelodge
Bukcinghamshire Council,30.09.2023,08.09.2023,Communities,Climate Change & Environment - Community,PAYPAL,60,0,60,Advertising,Advertising services
Bukcinghamshire Council,30.09.2023,08.09.2023,"Planning, Growth & Sustainability",Planning & Regeneration - PGS,RTPI,102,0,102,Miscellaneous (Other)  Expenses,"Member clubs, sport, recreation & golf"
Bukcinghamshire Council,30.09.2023,08.09.2023,"Planning, Growth & Sustainability",Planning & Regeneration - PGS,RTPI,102,0,102,Miscellaneous (Other)  Expenses,"Member clubs, sport, recreation & golf"
Bukcinghamshire Council,30.09.2023,08.09.2023,Children's Services,Education & Childrens Services - CS Dir,GIFFGAFF,35,0,35,Telephones,Phone services
Bukcinghamshire Council,30.09.2023,08.09.2023,Communities,Culture & Leisure - Communities Dir,AMERSHAM DECORATIN,112.63,22.53,135.16,"Workshop - Materials,Tools & Equipment",Timber & building supplies
Bukcinghamshire Council,30.09.2023,08.09.2023,Children's Services,Education & Childrens Services - CS Dir,ASDA  STORES 4396,14.25,0,14.25,General Provisions (Food),Grocery stores
Bukcinghamshire Council,30.09.2023,08.09.2023,Communities,Transport - Communities Dir,AMZNMKTPLACE,42.8,0,42.8,Protective Clothing & Uniforms,Miscellaneous retail
Bukcinghamshire Council,30.09.2023,08.09.2023,Children's Services,Education & Childrens Services - CS Dir,COSTA COFFEE BEDGROVE,5.7,0,5.7,Subsistence,Fast food restaurants
Bukcinghamshire Council,30.09.2023,08.09.2023,Children's Services,Education & Childrens Services - CS Dir,AMZNMKTPLACE,19.99,0,19.99,Leaving Care - Grants for Care Leavers,Miscellaneous retail
Bukcinghamshire Council,30.09.2023,08.09.2023,Communities,Communities - Trust Accounts,BISHOPSPORT,400.8,0,400.8,Awaiting Coding,Sporting goods shops
Bukcinghamshire Council,30.09.2023,08.09.2023,Communities,Communities - Trust Accounts,SETON,17.4,0,17.4,Awaiting Coding,Misc Durable goods
Bukcinghamshire Council,30.09.2023,08.09.2023,Communities,Communities - Trust Accounts,BATTERYSTATION.CO.UK,80.5,0,80.5,Awaiting Coding,Miscellaneous retail
Bukcinghamshire Council,30.09.2023,08.09.2023,Communities,Communities - Trust Accounts,BOOKER LTD - 38531354,77.52,0,77.52,Awaiting Coding,Grocery stores
Bukcinghamshire Council,30.09.2023,08.09.2023,Communities,Communities - Trust Accounts,BOOKER LTD - 38531354,-86.02,0,-86.02,Awaiting Coding,Grocery stores
Bukcinghamshire Council,30.09.2023,08.09.2023,Children's Services,Education & Childrens Services - CS Dir,WWW.EVERYONEACTIVE.COM,5,0,5,Activities & General Recreation,Sport & recreational camps
Bukcinghamshire Council,30.09.2023,08.09.2023,Children's Services,Education & Childrens Services - CS Dir,COSTCO WHOLESALE #102,13.48,0,13.48,Stationery & Office Supplies,Buying & shopping services/clubs
Bukcinghamshire Council,30.09.2023,08.09.2023,"Planning, Growth & Sustainability",Planning & Regeneration - PGS,SAS EVENT AND ASSOCIATION,372,0,372,Other Training Expenses,Misc business services
Bukcinghamshire Council,30.09.2023,08.09.2023,Communities,Transport - Communities Dir,SHELL 40-42 WOODSIDE ROAD,82.31,0,82.31,Petrol,Service stations
Bukcinghamshire Council,30.09.2023,08.09.2023,Communities,Transport - Communities Dir,CHARGEMASTER LIMITED,5.84,0,5.84,Petrol,
Bukcinghamshire Council,30.09.2023,08.09.2023,Children's Services,Education & Childrens Services - CS Dir,NEALES TAXIS LTD,625,125,750,Sec 20/31: Transport,Taxicabs & limousines
Bukcinghamshire Council,30.09.2023,07.09.2023,Communities,Climate Change & Environment - Community,AMZNMKTPLACE,268.5,0,268.5,Equipment,Miscellaneous retail
Bukcinghamshire Council,30.09.2023,07.09.2023,Children's Services,Education & Childrens Services - CS Dir,AMZNMKTPLACE,5.99,0,5.99,Miscellaneous (Other)  Expenses,Miscellaneous retail
Bukcinghamshire Council,30.09.2023,07.09.2023,Children's Services,Education & Childrens Services - CS Dir,AMZNMKTPLACE,5.99,0,5.99,Miscellaneous (Other)  Expenses,Miscellaneous retail
Bukcinghamshire Council,30.09.2023,07.09.2023,"Planning, Growth & Sustainability",Housing & Homelessness & Regulatory PGS,SUMUP  *CABS4U,10,0,10,Staff Travelling Expenses,Taxicabs & limousines
Bukcinghamshire Council,30.09.2023,07.09.2023,"Planning, Growth & Sustainability",Housing & Homelessness & Regulatory PGS,ALDI 110 775,8.94,0,8.94,General Allowances,Grocery stores
Bukcinghamshire Council,30.09.2023,07.09.2023,Adults and Health,Health & Wellbeing - Adults & Health Dir,B & Q 1124,35,0,35,General Repairs & Maintenance,Home supply warehouse stores
Bukcinghamshire Council,30.09.2023,07.09.2023,Adults and Health,Health & Wellbeing - Adults & Health Dir,SAINSBURYS S/MKTS,2.9,0,2.9,General Provisions (Food),Grocery stores
Bukcinghamshire Council,30.09.2023,07.09.2023,Adults and Health,Health & Wellbeing - Adults & Health Dir,ALDI STORES,7.67,0,7.67,Activities & General Recreation,Grocery stores
Bukcinghamshire Council,30.09.2023,07.09.2023,"Planning, Growth & Sustainability",Housing & Homelessness & Regulatory PGS,LAND REGISTRY ECOM CCC,3,0,3,Homelessness,Government services
Bukcinghamshire Council,30.09.2023,07.09.2023,"Planning, Growth & Sustainability",Climate Change & Environment - PGS,TRAINLINE,99.6,0,99.6,Staff Travelling Expenses,Passenger railways
Bukcinghamshire Council,30.09.2023,07.09.2023,"Planning, Growth & Sustainability",Climate Change & Environment - PGS,TRAINLINE,22.7,0,22.7,Staff Travelling Expenses,Passenger railways
Bukcinghamshire Council,30.09.2023,07.09.2023,Deputy Chief Executive,Communities - DCE,AO RETAIL LIMITED,797.49,159.51,957,Other Personal Needs,Household appliance stores
Bukcinghamshire Council,30.09.2023,07.09.2023,Deputy Chief Executive,Communities - DCE,AO RETAIL LIMITED,776.66,155.34,932,Other Personal Needs,Household appliance stores
Bukcinghamshire Council,30.09.2023,07.09.2023,Deputy Chief Executive,Communities - DCE,AO RETAIL LIMITED,-723.33,-144.67,-868,Other Personal Needs,Household appliance stores
Bukcinghamshire Council,30.09.2023,07.09.2023,Deputy Chief Executive,Communities - DCE,WWW.ARGOS.CO.UK,233.25,46.65,279.9,Other Personal Needs,Department stores
Bukcinghamshire Council,30.09.2023,07.09.2023,Deputy Chief Executive,Communities - DCE,WWW.ARGOS.CO.UK,0.05,0,0.05,Other Personal Needs,Department stores
Bukcinghamshire Council,30.09.2023,07.09.2023,Communities,Climate Change & Environment - Community,B&Q LTD,210,0,210,General Repairs & Maintenance,Timber & building supplies
Bukcinghamshire Council,30.09.2023,07.09.2023,Children's Services,Education & Childrens Services - CS Dir,VOUCHER EXPRESS,250,0,250,Long Service Awards,Misc business services
Bukcinghamshire Council,30.09.2023,07.09.2023,Deputy Chief Executive,AH&R- DCE Dir,AO RETAIL LIMITED,358,0,358,Administrative Equipment & Tools,Household appliance stores
Bukcinghamshire Council,30.09.2023,07.09.2023,Communities,Housing & Homelessness & Regulatory Comm,WWW.TUDORENVIRONMENTAL,193.34,0,193.34,Seeds & Plants,Lawn & garden supply/nursery
Bukcinghamshire Council,30.09.2023,07.09.2023,Children's Services,Education & Childrens Services - CS Dir,SUMUP  *HAMZA CO,92.25,0,92.25,Sec 17: Transport,Membership organisations
Bukcinghamshire Council,30.09.2023,07.09.2023,Adults and Health,Health & Wellbeing - Adults & Health Dir,ABILITY SMART,490,98,588,"Courses, Conference and Seminar Fees",Computer software stores
Bukcinghamshire Council,30.09.2023,07.09.2023,Communities,Housing & Homelessness & Regulatory Comm,ST JOHN AMBULANCE,340,68,408,"Courses, Conference and Seminar Fees",Charitable organisations
Bukcinghamshire Council,30.09.2023,07.09.2023,"Planning, Growth & Sustainability",AH&R - PGS Dir,TIMPSON LTD,10,0,10,General Repairs & Maintenance,Miscellaneous retail
Bukcinghamshire Council,30.09.2023,07.09.2023,Communities,Culture & Leisure - Communities Dir,TESCO STORES 2564,14.87,2.98,17.85,Events Expenditure,Grocery stores
Bukcinghamshire Council,30.09.2023,07.09.2023,Children's Services,Education & Childrens Services - CS Dir,AMAZON.CO.UK,33.9,0,33.9,"Books, Records, Films & Oth Publications",Direct sales companies
Bukcinghamshire Council,30.09.2023,07.09.2023,Children's Services,Education & Childrens Services - CS Dir,WWW.ARGOS.CO.UK,59.99,0,59.99,Furniture,Department stores
Bukcinghamshire Council,30.09.2023,07.09.2023,Children's Services,Education & Childrens Services - CS Dir,REZUMEUKLTD,349.12,0,349.12,Professional Services (non curriculum) - External,Consultants & public relation services
Bukcinghamshire Council,30.09.2023,07.09.2023,Deputy Chief Executive,AH&R- DCE Dir,UNIV OF OXFORD,350,0,350,General Allowances,Colleges & universities
Bukcinghamshire Council,30.09.2023,07.09.2023,Children's Services,Education & Childrens Services - CS Dir,DOMINO S PIZZA,32.78,0,32.78,Activities & General Recreation,Restaurants
Bukcinghamshire Council,30.09.2023,07.09.2023,"Planning, Growth & Sustainability",AH&R - PGS Dir,WWW.SCREWFIX.COM,19.15,3.83,22.98,General Repairs & Maintenance,Timber & building supplies
Bukcinghamshire Council,30.09.2023,07.09.2023,Deputy Chief Executive,AH&R- DCE Dir,LOCK & KEY CENTRE,10.83,2.17,13,Stationery & Office Supplies,Misc business services
Bukcinghamshire Council,30.09.2023,07.09.2023,Children's Services,Education & Childrens Services - CS Dir,ONWARD TRAVEL SOLUTIONS,218,0,218,Staff Travelling Expenses,Taxicabs & limousines
Bukcinghamshire Council,30.09.2023,07.09.2023,Children's Services,Education & Childrens Services - CS Dir,AMZNMKTPLACE,49.99,0,49.99,Leaving Care - Grants for Care Leavers,Miscellaneous retail
Bukcinghamshire Council,30.09.2023,07.09.2023,Resources,AH&R - Res Dir,AMZNMKTPLACE,14.04,0,14.04,Leaving Care - Grants for Care Leavers,Miscellaneous retail
Bukcinghamshire Council,30.09.2023,07.09.2023,Children's Services,Education & Childrens Services - CS Dir,WF *UK3946211994,-84.98,0,-84.98,Leaving Care - Grants for Care Leavers,Furniture & home furnishing
Bukcinghamshire Council,30.09.2023,07.09.2023,Children's Services,Education & Childrens Services - CS Dir,WWW.SCREWFIX.COM,42.99,0,42.99,Leaving Care ? Financial Assistance One Off,Timber & building supplies
Bukcinghamshire Council,30.09.2023,07.09.2023,Children's Services,Education & Childrens Services - CS Dir,TRAVELODGE GB0000,58.12,0,58.12,Staff Travelling Expenses,Travelodge
Bukcinghamshire Council,30.09.2023,07.09.2023,Deputy Chief Executive,Communities - DCE,COSTA IVER,4.4,0,4.4,Subsistence,Fast food restaurants
Bukcinghamshire Council,30.09.2023,07.09.2023,Deputy Chief Executive,Leader - DCE,NEW YORK DELI GATEHOUSE,66.78,0,66.78,Contract Catering,Restaurants
Bukcinghamshire Council,30.09.2023,07.09.2023,Communities,Communities - Trust Accounts,RIGBY TAYLOR LIMITED,86.51,0,86.51,Awaiting Coding,Miscellaneous retail
Bukcinghamshire Council,30.09.2023,07.09.2023,Communities,Communities - Trust Accounts,COSTCO WHOLESALE #102,181.63,0,181.63,Stationery & Office Supplies,Buying & shopping services/clubs
Bukcinghamshire Council,30.09.2023,07.09.2023,"Planning, Growth & Sustainability",Planning & Regeneration - PGS,ARRIVA THE SHIRES LIMITED,5.6,0,5.6,Staff Travelling Expenses,"Buses, charter & tour"
Bukcinghamshire Council,30.09.2023,07.09.2023,Resources,AH&R - Res Dir,LINKEDIN ADS 9390626824,55.18,0,55.18,Permanent Recruitment Costs,Advertising services
Bukcinghamshire Council,30.09.2023,07.09.2023,Children's Services,Education & Childrens Services - CS Dir,COOKSON PRECIOUS M,7.54,0,7.54,Educational Equipment,"Precious stones, metals & jewellery"
Bukcinghamshire Council,30.09.2023,07.09.2023,Communities,Climate Change & Environment - Community,AMZNMKTPLACE,579.97,0,579.97,Health & Safety Supplies & Services,Miscellaneous retail
Bukcinghamshire Council,30.09.2023,07.09.2023,Communities,Culture & Leisure - Communities Dir,RADIODETECTION LTD,438.78,87.76,526.54,"Workshop - Materials,Tools & Equipment",Electrical parts & equipment
Bukcinghamshire Council,30.09.2023,07.09.2023,Communities,Climate Change & Environment - Community,LIDL GB OAKFIELD ROAD,17.1,0,17.1,Equipment,Grocery stores
Bukcinghamshire Council,30.09.2023,07.09.2023,Adults and Health,Health & Wellbeing - Adults & Health Dir,AMZNMKTPLACE,79.99,16,95.99,Other Supplies,Miscellaneous retail
Bukcinghamshire Council,30.09.2023,07.09.2023,"Planning, Growth & Sustainability",Housing & Homelessness & Regulatory PGS,HOLIDAY INN AYLESB,863.3,0,863.3,"Courses, Conference and Seminar Fees","Hotels, motels & resorts"
Bukcinghamshire Council,30.09.2023,07.09.2023,"Planning, Growth & Sustainability",Housing & Homelessness & Regulatory PGS,AMZNMKTPLACE,129.99,0,129.99,Awaiting Coding,Miscellaneous retail
Bukcinghamshire Council,30.09.2023,07.09.2023,Adults and Health,Health & Wellbeing - Adults & Health Dir,NEALES TAXIS LTD,960,0,960,Staff Travelling Expenses,Taxicabs & limousines
Bukcinghamshire Council,30.09.2023,07.09.2023,Adults and Health,Health & Wellbeing - Adults & Health Dir,AMZNMktplace,43.33,0,43.33,Awaiting Coding,Miscellaneous retail
Bukcinghamshire Council,30.09.2023,07.09.2023,Children's Services,Education & Childrens Services - CS Dir,ANGLIA RUSKIN UNIVERSITY,"4,625.00",0,"4,625.00",Leaving Care - Higher Education Supp,Colleges & universities
Bukcinghamshire Council,30.09.2023,07.09.2023,Children's Services,Education & Childrens Services - CS Dir,TRAINLINE,72.2,0,72.2,Staff Travelling Expenses,Passenger railways
Bukcinghamshire Council,30.09.2023,07.09.2023,Children's Services,Education & Childrens Services - CS Dir,TRAINLINE,12.65,0,12.65,Staff Travelling Expenses,Passenger railways
Bukcinghamshire Council,30.09.2023,07.09.2023,Children's Services,Education & Childrens Services - CS Dir,TRAINLINE,81.7,0,81.7,Staff Travelling Expenses,Passenger railways
Bukcinghamshire Council,30.09.2023,06.09.2023,Children's Services,Education & Childrens Services - CS Dir,AMZNMKTPLACE,49.45,0,49.45,Consumable Supplies,Miscellaneous retail
Bukcinghamshire Council,30.09.2023,06.09.2023,Adults and Health,Health & Wellbeing - Adults & Health Dir,SAINSBURYS S/MKTS,3,0,3,General Provisions (Food),Grocery stores
Bukcinghamshire Council,30.09.2023,06.09.2023,"Planning, Growth & Sustainability",Housing & Homelessness & Regulatory PGS,ALDI 110 775,10.73,0,10.73,General Allowances,Grocery stores
Bukcinghamshire Council,30.09.2023,06.09.2023,Communities,Culture & Leisure - Communities Dir,AMZNMKTPLACE,27,0,27,Events Expenditure,Miscellaneous retail
Bukcinghamshire Council,30.09.2023,06.09.2023,Deputy Chief Executive,Communities - DCE,WWW.ARGOS.CO.UK,113.29,22.66,135.95,Other Personal Needs,Department stores
Bukcinghamshire Council,30.09.2023,06.09.2023,Deputy Chief Executive,Communities - DCE,AO RETAIL LIMITED,335.83,67.17,403,Other Personal Needs,Household appliance stores
Bukcinghamshire Council,30.09.2023,06.09.2023,Children's Services,Education & Childrens Services - CS Dir,OPEN UNIVERSITY MOTO,"3,468.00",0,"3,468.00",Leaving Care - Higher Education Supp,Colleges & universities
Bukcinghamshire Council,30.09.2023,06.09.2023,Children's Services,Education & Childrens Services - CS Dir,AMZNMKTPLACE,66.87,0,66.87,Furniture,Miscellaneous retail
Bukcinghamshire Council,30.09.2023,06.09.2023,Communities,Culture & Leisure - Communities Dir,SP JENNYCHEM,22.5,4.5,27,"Workshop - Materials,Tools & Equipment",Computer software stores
Bukcinghamshire Council,30.09.2023,06.09.2023,Communities,Culture & Leisure - Communities Dir,WWW.DIRECTHYGIENE.COM,49.43,9.89,59.32,"Workshop - Materials,Tools & Equipment",Misc business services
Bukcinghamshire Council,30.09.2023,06.09.2023,Deputy Chief Executive,AH&R- DCE Dir,EVENT* NO5 CHAMBERS,60,0,60,"Courses, Conference and Seminar Fees",Computer software stores
Bukcinghamshire Council,30.09.2023,06.09.2023,Communities,Housing & Homelessness & Regulatory Comm,SHELL HAZLEMERE,33.26,0,33.26,Maintenance of Grounds,Service stations
Bukcinghamshire Council,30.09.2023,06.09.2023,Adults and Health,Health & Wellbeing - Adults & Health Dir,SAINSBURYS S/MKTS,19.94,0,19.94,Cleaning Materials,Grocery stores
Bukcinghamshire Council,30.09.2023,06.09.2023,Children's Services,Education & Childrens Services - CS Dir,NEW YORK DELI (AYLESBURY),27,0,27,Purchase.of Refreshments and Food,Restaurants
Bukcinghamshire Council,30.09.2023,06.09.2023,"Planning, Growth & Sustainability",AH&R - PGS Dir,AMAZON.CO.UK,9.9,0,9.9,General Repairs & Maintenance,Direct sales companies
Bukcinghamshire Council,30.09.2023,06.09.2023,"Planning, Growth & Sustainability",AH&R - PGS Dir,LOCK & KEY CENTRE,30,0,30,General Repairs & Maintenance,Misc business services
Bukcinghamshire Council,30.09.2023,06.09.2023,Deputy Chief Executive,AH&R- DCE Dir,AMZNMKTPLACE,15.95,0,15.95,Other Personal Needs,Miscellaneous retail
Bukcinghamshire Council,30.09.2023,06.09.2023,Deputy Chief Executive,AH&R- DCE Dir,AMAZON.CO.UK,30.99,0,30.99,Other Personal Needs,Direct sales companies
Bukcinghamshire Council,30.09.2023,06.09.2023,Children's Services,Education & Childrens Services - CS Dir,TESCO GIFT CARD,50,0,50,Consumable Supplies,Grocery stores
Bukcinghamshire Council,30.09.2023,06.09.2023,Children's Services,Education & Childrens Services - CS Dir,DOMINO S PIZZA,36.5,0,36.5,Consumable Supplies,Restaurants
Bukcinghamshire Council,30.09.2023,06.09.2023,Children's Services,Education & Childrens Services - CS Dir,POST OFFICE COUNTER,21,0,21,General Postage,Postal services
Bukcinghamshire Council,30.09.2023,06.09.2023,Children's Services,Education & Childrens Services - CS Dir,TESCO STORES 4770,18.7,0,18.7,Consumable Supplies,Grocery stores
Bukcinghamshire Council,30.09.2023,06.09.2023,Deputy Chief Executive,Leader - DCE,WWW.COTSWOLDOUTDOOR.COM,100,0,100,Miscellaneous (Other)  Expenses,Men & womens clothing shops
Bukcinghamshire Council,30.09.2023,06.09.2023,Adults and Health,Health & Wellbeing - Adults & Health Dir,ASDA SUPERSTORE,12,0,12,Cleaning & Domestic Equipment,Grocery stores
Bukcinghamshire Council,30.09.2023,06.09.2023,Children's Services,Education & Childrens Services - CS Dir,AMZNMKTPLACE,52.49,0,52.49,Miscellaneous (Other)  Expenses,Miscellaneous retail
Bukcinghamshire Council,30.09.2023,06.09.2023,Communities,Transport - Communities Dir,WILKO RETAIL LIMITED,12.35,0,12.35,Materials,Misc. general merchandise
Bukcinghamshire Council,30.09.2023,06.09.2023,Children's Services,Education & Childrens Services - CS Dir,SUMUP  *CABS4U,125,0,125,Sec 20/31: Transport,Taxicabs & limousines
Bukcinghamshire Council,30.09.2023,06.09.2023,Children's Services,Education & Childrens Services - CS Dir,PREMIER INN,82,0,82,Sec 20/31: Supp for Contact,Premier Inn
Bukcinghamshire Council,30.09.2023,06.09.2023,Children's Services,Education & Childrens Services - CS Dir,TESCO STORES 2038,28.75,0,28.75,General Provisions (Food),Grocery stores
Bukcinghamshire Council,30.09.2023,06.09.2023,Communities,Climate Change & Environment - Community,RACKING SOLUTIONS,712.8,0,712.8,General Repairs & Maintenance,Office & commercial furniture
Bukcinghamshire Council,30.09.2023,06.09.2023,Children's Services,Education & Childrens Services - CS Dir,BUCKINGHAMSHIRE CNCL,11,0,11,Sec 20/31: Financial Assistance One Off,Government services
Bukcinghamshire Council,30.09.2023,06.09.2023,Communities,Climate Change & Environment - Community,SP UKMC PRO LTD,12.28,0,12.28,Waste Prevention costs,Sporting goods shops
Bukcinghamshire Council,30.09.2023,06.09.2023,Communities,Climate Change & Environment - Community,TRAINLINE,28.1,0,28.1,Staff Travelling Expenses,Passenger railways
Bukcinghamshire Council,30.09.2023,06.09.2023,Communities,Culture & Leisure - Communities Dir,TOOLSTATION LTD,4.9,0.98,5.88,Administrative Equipment & Tools,Timber & building supplies
Bukcinghamshire Council,30.09.2023,06.09.2023,Children's Services,Education & Childrens Services - CS Dir,ZETTLE_*ANGEL CARS,71,0,71,Sec 20/31: Transport,Taxicabs & limousines
Bukcinghamshire Council,30.09.2023,06.09.2023,"Planning, Growth & Sustainability",Climate Change & Environment - PGS,WWW.SCREWFIX.COM,138.56,27.72,166.28,Equipment,Timber & building supplies
Bukcinghamshire Council,30.09.2023,06.09.2023,"Planning, Growth & Sustainability",Climate Change & Environment - PGS,SAVEMONEYCUTCARBON.COM,612,122.4,734.4,Advertising,Misc. general merchandise
Bukcinghamshire Council,30.09.2023,06.09.2023,Children's Services,Education & Childrens Services - CS Dir,AMZ*SPORTS248,-68.95,0,-68.95,Furniture,Miscellaneous retail
Bukcinghamshire Council,30.09.2023,06.09.2023,Children's Services,Education & Childrens Services - CS Dir,TESCO STORES 6747,7.4,0,7.4,General Provisions (Food),Grocery stores
Bukcinghamshire Council,30.09.2023,06.09.2023,Children's Services,Education & Childrens Services - CS Dir,AMAZON.CO.UK,124.99,0,124.99,Equipment (including storage),Direct sales companies
Bukcinghamshire Council,30.09.2023,06.09.2023,"Planning, Growth & Sustainability",Leader - PGS,LINKEDIN ADS 9385927984,105.94,0,105.94,Advertising,Advertising services
Bukcinghamshire Council,30.09.2023,06.09.2023,Children's Services,Education & Childrens Services - CS Dir,WWW.HARPER-ADAMS.AC.UK,300,0,300,Leaving Care - Higher Education Supp,Colleges & universities
Bukcinghamshire Council,30.09.2023,06.09.2023,Children's Services,Education & Childrens Services - CS Dir,WWW.ARGOS.CO.UK,207.99,0,207.99,Leaving Care - Grants for Care Leavers,Department stores
Bukcinghamshire Council,30.09.2023,06.09.2023,Communities,Communities - Trust Accounts,LANGLEY MOTORISTS DISC,35.87,0,35.87,Repair & Maint of Vehicles & Plant,Automotive parts & accessories
Bukcinghamshire Council,30.09.2023,06.09.2023,Communities,Communities - Trust Accounts,BOOKER LIMITED ECOM,773.59,0,773.59,Purchase of Food for Re-sale,Grocery stores
Bukcinghamshire Council,30.09.2023,06.09.2023,Children's Services,Education & Childrens Services - CS Dir,SAFETY SIGNS 4 LESS,31.6,0,31.6,Health & Safety Supplies & Services,Misc commercial machines equipment
Bukcinghamshire Council,30.09.2023,06.09.2023,Children's Services,Education & Childrens Services - CS Dir,COOKSON PRECIOUS M,151.81,0,151.81,Educational Equipment,"Precious stones, metals & jewellery"
Bukcinghamshire Council,30.09.2023,06.09.2023,Adults and Health,Health & Wellbeing - Adults & Health Dir,TESCO STORES 4395,6.2,0,6.2,Awaiting Coding,Grocery stores
Bukcinghamshire Council,30.09.2023,06.09.2023,Resources,AH&R - Res Dir,LAND REGISTRY ECOM CCC,6,0,6,Awaiting Coding,Government services
Bukcinghamshire Council,30.09.2023,06.09.2023,Resources,AH&R - Res Dir,EXPO* LARAC UK,774,0,774,Awaiting Coding,Misc business services
Bukcinghamshire Council,30.09.2023,06.09.2023,Children's Services,Education & Childrens Services - CS Dir,TESCO STORES 2041,78.45,0,78.45,Activities Programme,Grocery stores
Bukcinghamshire Council,30.09.2023,06.09.2023,"Planning, Growth & Sustainability",Housing & Homelessness & Regulatory PGS,HOLIDAY INN,901.13,0,901.13,"Courses, Conference and Seminar Fees","Hotels, motels & resorts"
Bukcinghamshire Council,30.09.2023,06.09.2023,Communities,Transport - Communities Dir,SCREWFIX DIRECT,32.98,0,32.98,Area Teams and Materials,Timber & building supplies
Bukcinghamshire Council,30.09.2023,06.09.2023,Children's Services,Education & Childrens Services - CS Dir,NEALES TAXIS LTD,266,0,266,Staff Travelling Expenses,Taxicabs & limousines
Bukcinghamshire Council,30.09.2023,06.09.2023,Communities,Transport - Communities Dir,CJ'S LOCKSMITHS,14.9,0,14.9,Petrol,Misc. repair services
Bukcinghamshire Council,30.09.2023,06.09.2023,Communities,Communities - Trading Accounts,DVLA VEHICLE TAX,165,0,165,Vehicle Taxation Costs,Tax payments
Bukcinghamshire Council,30.09.2023,06.09.2023,"Planning, Growth & Sustainability",AH&R - PGS Dir,FIRST RESCUE TRAIN,400.8,0,400.8,General Repairs & Maintenance,Misc. general merchandise
Bukcinghamshire Council,30.09.2023,06.09.2023,Deputy Chief Executive,Communities - DCE,HARRINGTONS OF READING,-78,0,-78,Other Personal Needs,Fuel dealers
Bukcinghamshire Council,30.09.2023,05.09.2023,Deputy Chief Executive,AH&R- DCE Dir,PAYPAL,-19.95,0,-19.95,Miscellaneous (Other)  Expenses,Variety stores
Bukcinghamshire Council,30.09.2023,05.09.2023,Communities,Culture & Leisure - Communities Dir,AMZNMKTPLACE,19.47,0,19.47,Events Expenditure,Miscellaneous retail
Bukcinghamshire Council,30.09.2023,05.09.2023,Deputy Chief Executive,Communities - DCE,AO RETAIL LIMITED,324.16,64.84,389,Other Personal Needs,Household appliance stores
Bukcinghamshire Council,30.09.2023,05.09.2023,Deputy Chief Executive,Communities - DCE,AO RETAIL LIMITED,45,0,45,Other Personal Needs,Household appliance stores
Bukcinghamshire Council,30.09.2023,05.09.2023,Deputy Chief Executive,Communities - DCE,AO RETAIL LIMITED,569.16,113.84,683,Other Personal Needs,Household appliance stores
Bukcinghamshire Council,30.09.2023,05.09.2023,Communities,Culture & Leisure - Communities Dir,WORDPRESS U7DEZ8XKYU,307.2,0,307.2,Computer Software Licences & Purchase,Computer software stores
Bukcinghamshire Council,30.09.2023,05.09.2023,Communities,Housing & Homelessness & Regulatory Comm,WWW.OFFICEFURNITUREONLINE,459,91.8,550.8,Furniture,Office & commercial furniture
Bukcinghamshire Council,30.09.2023,05.09.2023,"Planning, Growth & Sustainability",AH&R - PGS Dir,TESCO STORES 2020,8.7,0,8.7,Purchase.of Refreshments and Food,Grocery stores
Bukcinghamshire Council,30.09.2023,05.09.2023,Children's Services,Education & Childrens Services - CS Dir,AELP.ORG.UK,69,13.8,82.8,Training (Inc. Health & Safety Courses),Schools
Bukcinghamshire Council,30.09.2023,05.09.2023,Children's Services,Education & Childrens Services - CS Dir,AELP.ORG.UK,318,63.6,381.6,Training (Inc. Health & Safety Courses),Schools
Bukcinghamshire Council,30.09.2023,05.09.2023,Children's Services,Education & Childrens Services - CS Dir,AELP.ORG.UK,49,9.8,58.8,Training (Inc. Health & Safety Courses),Schools
Bukcinghamshire Council,30.09.2023,05.09.2023,Communities,Culture & Leisure - Communities Dir,WAITROSE,200,0,200,Administrative Equipment & Tools,Grocery stores
Bukcinghamshire Council,30.09.2023,05.09.2023,Deputy Chief Executive,AH&R- DCE Dir,STORAGEMART UK #5318,81.59,0,81.59,Other Personal Needs,"Haulage, removals & delivery"
Bukcinghamshire Council,30.09.2023,05.09.2023,Deputy Chief Executive,AH&R- DCE Dir,AMZNMKTPLACE,35.99,0,35.99,Other Personal Needs,Miscellaneous retail
Bukcinghamshire Council,30.09.2023,05.09.2023,Deputy Chief Executive,AH&R- DCE Dir,AMZNMKTPLACE,35.99,0,35.99,Other Personal Needs,Miscellaneous retail
Bukcinghamshire Council,30.09.2023,05.09.2023,Children's Services,Education & Childrens Services - CS Dir,TESCO STORES 2020,10.04,0,10.04,Activities & General Recreation,Grocery stores
Bukcinghamshire Council,30.09.2023,05.09.2023,Children's Services,Education & Childrens Services - CS Dir,SAINSBURYS S/MKTS,21.17,0,21.17,Activities & General Recreation,Grocery stores
Bukcinghamshire Council,30.09.2023,05.09.2023,Children's Services,Education & Childrens Services - CS Dir,AMZNMKTPLACE,6.99,0,6.99,Consumable Supplies,Miscellaneous retail
Bukcinghamshire Council,30.09.2023,05.09.2023,Communities,Climate Change & Environment - Community,WWW.AGRI-GEM.CO.UK,"1,000.00",0,"1,000.00",Equipment,Misc Industrial supplies
Bukcinghamshire Council,30.09.2023,05.09.2023,Communities,Climate Change & Environment - Community,WWW.AGRI-GEM.CO.UK,"1,000.00",0,"1,000.00",Equipment,Misc Industrial supplies
Bukcinghamshire Council,30.09.2023,05.09.2023,Communities,Climate Change & Environment - Community,WWW.AGRI-GEM.CO.UK,"1,000.00",0,"1,000.00",Equipment,Misc Industrial supplies
Bukcinghamshire Council,30.09.2023,05.09.2023,Communities,Climate Change & Environment - Community,WWW.AGRI-GEM.CO.UK,"1,000.00",0,"1,000.00",Equipment,Misc Industrial supplies
Bukcinghamshire Council,30.09.2023,05.09.2023,Communities,Climate Change & Environment - Community,WWW.AGRI-GEM.CO.UK,258.99,0,258.99,Equipment,Misc Industrial supplies
Bukcinghamshire Council,30.09.2023,05.09.2023,Communities,Transport - Communities Dir,AYLESBURY GADGET EXCHANGE,23.5,0,23.5,Vehicle Hire,Electronics shops
Bukcinghamshire Council,30.09.2023,05.09.2023,Adults and Health,Health & Wellbeing - Adults & Health Dir,PHJ* PUBLIC HEALTH BD7,300,0,300,Advertising,Misc business services
Bukcinghamshire Council,30.09.2023,05.09.2023,Communities,Climate Change & Environment - Community,HELLOPRINT UNITED KINGDOM,119.51,0,119.51,Photocopiers,Photocopy & reproduction services
Bukcinghamshire Council,30.09.2023,05.09.2023,Communities,Climate Change & Environment - Community,PREMIER INN,171.99,0,171.99,"Courses, Conference and Seminar Fees",Premier Inn
Bukcinghamshire Council,30.09.2023,05.09.2023,"Planning, Growth & Sustainability",AH&R - PGS Dir,ASDA SUPERSTORE,13.05,0,13.05,General Provisions (Food),Grocery stores
Bukcinghamshire Council,30.09.2023,05.09.2023,Resources,AH&R - Res Dir,SumUp  *Cabs4u,10,0,10,Staff Travelling Expenses,Taxicabs & limousines
Bukcinghamshire Council,30.09.2023,05.09.2023,"Planning, Growth & Sustainability",AH&R - PGS Dir,SCREWFIX DIR LTD,125.03,0,125.03,General Repairs & Maintenance,Timber & building supplies
Bukcinghamshire Council,30.09.2023,05.09.2023,"Planning, Growth & Sustainability",AH&R - PGS Dir,WOLSELEY UK,29.99,6,35.99,Community Premises Expenditure,"Heating, plumbing & air conditioning"
Bukcinghamshire Council,30.09.2023,05.09.2023,Children's Services,Education & Childrens Services - CS Dir,BT.COM CONSUMER BP,40.99,0,40.99,Leaving Care  - Financial Assistance,Phone services
Bukcinghamshire Council,30.09.2023,05.09.2023,Children's Services,Education & Childrens Services - CS Dir,WWW.MDX.AC.UK,"3,275.87",0,"3,275.87",Leaving Care - Higher Education Supp,Colleges & universities
